Workbook

Sheet alapadatok
E1: Termék_csoport_1 | T1: Termék_csoport_2 | AI1: Termék_csoport_3_B | AN1: Termék_csoport_4
A2: 2021 | E2: Termék_1 | H2: Termék_2 | K2: Termék_3 | N2: Termék_4 | Q2: Termék_5 | T2: Termék_6 | W2: Termék_7 | Z2: Termék_8 | AC2: Termék_9 | AF2: Termék_10 | AI2: Termék_11 | AJ2: Termék_12 | AK2: Termék_13 | AL2: Termék_14 | AM2: Termék_15 | AN2: Termék_16 | AO2: Termék_17 | AP2: Termék_18 | AQ2: Termék_19 | AR2: Termék_20
E3: Készlet (db) | H3: Készlet | K3: Készlet | N3: Készlet | Q3: Készlet | T3: Készlet | W3: Készlet | Z3: Készlet | AC3: Készlet | AF3: Készlet
A4: Negyedév | B4: Hét | C4: Adat frissítés időpntja | E4: Kimenő | F4: Beérkező | G4: Készletszint | H4: Kimenő | I4: Beérkező | J4: Készletszint | K4: Kimenő | L4: Beérkező | M4: Készletszint | N4: Kimenő | O4: Beérkező | P4: Készletszint | Q4: Kimenő | R4: Beérkező | S4: Készletszint | T4: Kimenő | U4: Beérkező | V4: Készletszint | W4: Kimenő | X4: Beérkező | Y4: Készletszint | Z4: Kimenő | AA4: Beérkező | AB4: Készletszint | AC4: Kimenő | AD4: Beérkező | AE4: Készletszint | AF4: Kimenő | AG4: Beérkező | AH4: Készletszint
A5: 1 | B5: 1 | C5: 2020-01-10T15:00:00 | E5: 118 | F5: 0 | G5: 1898 | H5: 170 | I5: 0 | J5: 1001 | K5: 4 | L5: 0 | M5: 705 | N5: 3 | O5: 0 | P5: 310 | Q5: 1 | R5: 0 | S5: 277 | T5: 16 | U5: 0 | V5: 290 | W5: 3 | X5: 0 | Y5: 151 | Z5: 88 | AA5: 0 | AB5: 289 | AC5: 0 | AD5: 0 | AE5: 198 | AF5: 0 | AG5: 0 | AH5: 76
B6: 2 | C6: 2020-01-17T15:00:00 | E6: 146 | F6: 0 | G6: 1752 | H6: 193 | I6: 0 | J6: 808 | K6: 25 | L6: 0 | M6: 680 | N6: 41 | O6: 0 | P6: 269 | Q6: 2 | R6: 0 | S6: 275 | T6: 88 | U6: 0 | V6: 202 | W6: 41 | X6: 0 | Y6: 110 | Z6: 139 | AA6: 0 | AB6: 150 | AC6: 0 | AD6: 0 | AE6: 198 | AF6: 7 | AG6: 0 | AH6: 69
B7: 3 | C7: 2020-01-24T15:00:00 | E7: 202 | F7: 1000 | G7: 2550 | H7: 649 | I7: 1000 | J7: 1159 | K7: 190 | L7: 500 | M7: 990 | N7: 39 | O7: 1000 | P7: 1230 | Q7: 9 | R7: 500 | S7: 766 | T7: 97 | U7: 0 | V7: 105 | W7: 46 | X7: 500 | Y7: 564 | Z7: 128 | AA7: 1000 | AB7: 1022 | AC7: 13 | AD7: 500 | AE7: 685 | AF7: 20 | AG7: 500 | AH7: 549
B8: 4 | C8: 2020-01-31T15:00:00 | E8: 724 | F8: 0 | G8: 1826 | H8: 605 | I8: 0 | J8: 554 | K8: 141 | L8: 0 | M8: 849 | N8: 166 | O8: 0 | P8: 1064 | Q8: 16 | R8: 0 | S8: 750 | T8: 103 | U8: 0 | V8: 2 | W8: 77 | X8: 0 | Y8: 487 | Z8: 208 | AA8: 0 | AB8: 814 | AC8: 62 | AD8: 0 | AE8: 623 | AF8: 23 | AG8: 0 | AH8: 526
B9: 5 | C9: 2020-02-07T15:00:00 | E9: 855 | F9: 1500 | G9: 2471 | H9: 335 | I9: 1000 | J9: 1219 | K9: 243 | L9: 1000 | M9: 1606 | N9: 392 | O9: 1000 | P9: 1672 | Q9: 17 | R9: 500 | S9: 1233 | T9: 107 | U9: 1000 | V9: 895 | W9: 98 | X9: 0 | Y9: 389 | Z9: 381 | AA9: 0 | AB9: 433 | AC9: 63 | AD9: 0 | AE9: 560 | AF9: 24 | AG9: 0 | AH9: 502
B10: 6 | C10: 2020-02-14T15:00:00 | E10: 908 | F10: 0 | G10: 1563 | H10: 347 | I10: 0 | J10: 872 | K10: 410 | L10: 0 | M10: 1196 | N10: 239 | O10: 0 | P10: 1433 | Q10: 63 | R10: 0 | S10: 1170 | T10: 123 | U10: 0 | V10: 772 | W10: 83 | X10: 0 | Y10: 306 | Z10: 288 | AA10: 0 | AB10: 145 | AC10: 68 | AD10: 0 | AE10: 492 | AF10: 17 | AG10: 0 | AH10: 485
B11: 7 | C11: 2020-02-21T15:00:00 | E11: 259 | F11: 1500 | G11: 2804 | H11: 633 | I11: 1500 | J11: 1739 | K11: 840 | L11: 1000 | M11: 1356 | N11: 98 | O11: 1000 | P11: 2335 | Q11: 157 | R11: 500 | S11: 1513 | T11: 125 | U11: 0 | V11: 647 | W11: 172 | X11: 1000 | Y11: 1134 | Z11: 246 | AA11: 1000 | AB11: 899 | AC11: 91 | AD11: 500 | AE11: 901 | AF11: 85 | AG11: 500 | AH11: 900
B12: 8 | C12: 2020-02-28T15:00:00 | E12: 463 | F12: 0 | G12: 2341 | H12: 210 | I12: 0 | J12: 1529 | K12: 627 | L12: 0 | M12: 729 | N12: 742 | O12: 0 | P12: 1593 | Q12: 272 | R12: 0 | S12: 1241 | T12: 185 | U12: 0 | V12: 462 | W12: 241 | X12: 0 | Y12: 893 | Z12: 368 | AA12: 0 | AB12: 531 | AC12: 107 | AD12: 0 | AE12: 794 | AF12: 157 | AG12: 0 | AH12: 743
B13: 9 | C13: 2020-03-06T15:00:00 | E13: 729 | F13: 1000 | G13: 2612 | H13: 310 | I13: 1500 | J13: 2719 | K13: 567 | L13: 1000 | M13: 1162 | N13: 786 | O13: 1000 | P13: 1807 | Q13: 349 | R13: 500 | S13: 1392 | T13: 210 | U13: 1000 | V13: 1252 | W13: 217 | X13: 0 | Y13: 676 | Z13: 382 | AA13: 500 | AB13: 649 | AC13: 128 | AD13: 0 | AE13: 666 | AF13: 170 | AG13: 0 | AH13: 573
B14: 10 | C14: 2020-03-13T15:00:00 | E14: 888 | F14: 0 | G14: 1724 | H14: 670 | I14: 0 | J14: 2049 | K14: 765 | L14: 0 | M14: 397 | N14: 652 | O14: 0 | P14: 1155 | Q14: 400 | R14: 0 | S14: 992 | T14: 234 | U14: 0 | V14: 1018 | W14: 261 | X14: 0 | Y14: 415 | Z14: 246 | AA14: 0 | AB14: 403 | AC14: 176 | AD14: 0 | AE14: 490 | AF14: 137 | AG14: 0 | AH14: 436
B15: 11 | C15: 2020-03-20T15:00:00 | E15: 361 | F15: 1500 | G15: 2863 | H15: 498 | I15: 1500 | J15: 3051 | K15: 671 | L15: 1000 | M15: 726 | N15: 795 | O15: 1000 | P15: 1360 | Q15: 433 | R15: 500 | S15: 1059 | T15: 305 | U15: 0 | V15: 713 | W15: 204 | X15: 1000 | Y15: 1211 | Z15: 230 | AA15: 1000 | AB15: 1173 | AC15: 209 | AD15: 500 | AE15: 781 | AF15: 156 | AG15: 0 | AH15: 280
B16: 12 | C16: 2020-03-27T15:00:00 | E16: 285 | F16: 0 | G16: 2578 | H16: 668 | I16: 0 | J16: 2383 | K16: 452 | L16: 0 | M16: 274 | N16: 842 | O16: 0 | P16: 518 | Q16: 547 | R16: 0 | S16: 512 | T16: 307 | U16: 0 | V16: 406 | W16: 263 | X16: 0 | Y16: 948 | Z16: 357 | AA16: 0 | AB16: 816 | AC16: 224 | AD16: 0 | AE16: 557 | AF16: 149 | AG16: 0 | AH16: 131
B17: 13 | C17: 2020-04-03T15:00:00 | E17: 624 | F17: 1500 | G17: 3454 | H17: 356 | I17: 1000 | J17: 3027 | K17: 673 | L17: 1000 | M17: 601 | N17: 773 | O17: 1500 | P17: 1245 | Q17: 617 | R17: 1000 | S17: 895 | T17: 337 | U17: 1000 | V17: 1069 | W17: 268 | X17: 0 | Y17: 680 | Z17: 285 | AA17: 0 | AB17: 531 | AC17: 249 | AD17: 0 | AE17: 308 | AF17: 151 | AG17: 500 | AH17: 480
A18: 2 | B18: 14 | C18: 2020-04-10T15:00:00 | E18: 748 | F18: 0 | G18: 2706 | H18: 1423 | I18: 0 | J18: 1604 | K18: 369 | L18: 0 | M18: 232 | N18: 652 | O18: 0 | P18: 593 | Q18: 642 | R18: 0 | S18: 253 | T18: 54 | U18: 0 | V18: 1015 | W18: 216 | X18: 0 | Y18: 464 | Z18: 339 | AA18: 0 | AB18: 192 | AC18: 172 | AD18: 0 | AE18: 136 | AF18: 163 | AG18: 0 | AH18: 317
B19: 15 | C19: 2020-04-17T15:00:00 | E19: 596 | F19: 1000 | G19: 3110 | H19: 321 | I19: 1000 | J19: 2283 | K19: 107 | L19: 1000 | M19: 1125 | N19: 641 | O19: 1500 | P19: 1452 | Q19: 20 | R19: 500 | S19: 733 | T19: 23 | U19: 0 | V19: 992 | W19: 251 | X19: 500 | Y19: 713 | Z19: 314 | AA19: 1000 | AB19: 878 | AC19: 165 | AD19: 500 | AE19: 471 | AF19: 162 | AG19: 500 | AH19: 655
B20: 16 | C20: 2020-04-24T15:00:00 | E20: 595.5 | F20: 0 | G20: 2515 | H20: 424 | I20: 0 | J20: 1859 | K20: 660 | L20: 0 | M20: 465 | N20: 749 | O20: 0 | P20: 703 | Q20: 53 | R20: 0 | S20: 680 | T20: 135 | U20: 0 | V20: 857 | W20: 185 | X20: 0 | Y20: 528 | Z20: 229 | AA20: 0 | AB20: 649 | AC20: 189 | AD20: 0 | AE20: 282 | AF20: 162 | AG20: 0 | AH20: 493
B21: 17 | C21: 2020-05-01T15:00:00 | E21: 340 | F21: 1000 | G21: 3175 | H21: 1101 | I21: 1500 | J21: 2258 | K21: 290 | L21: 1000 | M21: 1175 | N21: 333 | O21: 1500 | P21: 1870 | Q21: 60 | R21: 500 | S21: 1120 | T21: 145 | U21: 1000 | V21: 1712 | W21: 181 | X21: 0 | Y21: 347 | Z21: 308 | AA21: 500 | AB21: 841 | AC21: 70 | AD21: 0 | AE21: 212 | AF21: 143 | AG21: 0 | AH21: 350
B22: 18 | C22: 2020-05-08T15:00:00 | E22: 917 | F22: 0 | G22: 2258 | H22: 410 | I22: 0 | J22: 1848 | K22: 898 | L22: 0 | M22: 277 | N22: 373 | O22: 0 | P22: 1497 | Q22: 106 | R22: 0 | S22: 1014 | T22: 292 | U22: 0 | V22: 1420 | W22: 172 | X22: 0 | Y22: 175 | Z22: 267 | AA22: 0 | AB22: 574 | AC22: 180 | AD22: 0 | AE22: 32 | AF22: 138 | AG22: 0 | AH22: 212
B23: 19 | C23: 2020-05-15T15:00:00 | E23: 714 | F23: 1000 | G23: 2544 | H23: 298 | I23: 1500 | J23: 3050 | K23: 311 | L23: 1500 | M23: 1466 | N23: 769 | O23: 1500 | P23: 2228 | Q23: 109 | R23: 500 | S23: 1405 | T23: 195 | U23: 0 | V23: 1225 | W23: 221 | X23: 1000 | Y23: 954 | Z23: 262 | AA23: 1000 | AB23: 1312 | AC23: 170 | AD23: 500 | AE23: 362 | AF23: 129 | AG23: 500 | AH23: 583
B24: 20 | C24: 2020-05-22T15:00:00 | E24: 1263 | F24: 0 | G24: 1281 | H24: 1127 | I24: 0 | J24: 1923 | K24: 920 | L24: 0 | M24: 546 | N24: 728 | O24: 0 | P24: 1500 | Q24: 320 | R24: 0 | S24: 1085 | T24: 128 | U24: 0 | V24: 1097 | W24: 129 | X24: 0 | Y24: 825 | Z24: 227 | AA24: 0 | AB24: 1085 | AC24: 112 | AD24: 0 | AE24: 250 | AF24: 122 | AG24: 0 | AH24: 461
B25: 21 | C25: 2020-05-29T15:00:00 | E25: 938 | F25: 1000 | G25: 1342 | H25: 411 | I25: 1500 | J25: 3012 | K25: 948 | L25: 1500 | M25: 1098 | N25: 844 | O25: 1500 | P25: 2156 | Q25: 337 | R25: 500 | S25: 1248 | T25: 105 | U25: 0 | V25: 992 | W25: 183 | X25: 0 | Y25: 642 | Z25: 325 | AA25: 500 | AB25: 1260 | AC25: 133 | AD25: 500 | AE25: 617 | AF25: 119 | AG25: 0 | AH25: 342
B26: 22 | C26: 2020-06-05T15:00:00 | E26: 742 | F26: 0 | G26: 601 | H26: 1418 | I26: 0 | J26: 1594 | K26: 997 | L26: 0 | M26: 101 | N26: 116 | O26: 0 | P26: 2040 | Q26: 352 | R26: 0 | S26: 896 | T26: 305 | U26: 0 | V26: 687 | W26: 233 | X26: 0 | Y26: 409 | Z26: 337 | AA26: 0 | AB26: 923 | AC26: 151 | AD26: 0 | AE26: 466 | AF26: 105 | AG26: 0 | AH26: 237
B27: 23 | C27: 2020-06-12T15:00:00 | E27: 973 | F27: 1000 | G27: 628 | H27: 672 | I27: 1500 | J27: 2422 | K27: 980 | L27: 1500 | M27: 621 | N27: 715 | O27: 1000 | P27: 2325 | Q27: 379 | R27: 1000 | S27: 1517 | T27: 163 | U27: 1000 | V27: 1524 | W27: 244 | X27: 1000 | Y27: 1165 | Z27: 337 | AA27: 500 | AB27: 1086 | AC27: 131 | AD27: 0 | AE27: 335 | AF27: 101 | AG27: 500 | AH27: 636
B28: 24 | C28: 2020-06-19T15:00:00 | E28: 326 | F28: 0 | G28: 302 | H28: 412 | I28: 0 | J28: 2010 | K28: 403 | L28: 0 | M28: 218 | N28: 612 | O28: 0 | P28: 1713 | Q28: 445 | R28: 0 | S28: 1072 | T28: 188 | U28: 0 | V28: 1336 | W28: 195 | X28: 0 | Y28: 970 | Z28: 340 | AA28: 0 | AB28: 746 | AC28: 86 | AD28: 0 | AE28: 249 | AF28: 94 | AG28: 0 | AH28: 542
B29: 25 | C29: 2020-06-26T15:00:00 | E29: 174 | F29: 1500 | G29: 1628 | H29: 1487 | I29: 1500 | J29: 2023 | K29: 537 | L29: 1500 | M29: 1181 | N29: 774 | O29: 1500 | P29: 2439 | Q29: 581 | R29: 1000 | S29: 1491 | T29: 272 | U29: 0 | V29: 1064 | W29: 40 | X29: 0 | Y29: 930 | Z29: 249 | AA29: 1000 | AB29: 1497 | AC29: 56 | AD29: 0 | AE29: 193 | AF29: 90 | AG29: 0 | AH29: 452
B30: 26 | C30: 2020-07-03T15:00:00 | E30: 1312 | F30: 0 | G30: 316 | H30: 1903 | I30: 0 | J30: 120 | K30: 818 | L30: 0 | M30: 363 | N30: 873 | O30: 0 | P30: 1566 | Q30: 830 | R30: 0 | S30: 661 | T30: 369 | U30: 0 | V30: 695 | W30: 24 | X30: 0 | Y30: 906 | Z30: 314 | AA30: 0 | AB30: 1183 | AC30: 100 | AD30: 0 | AE30: 93 | AF30: 80 | AG30: 0 | AH30: 372
A31: 3 | B31: 27 | C31: 2020-07-10T15:00:00 | E31: 1450 | F31: 2500 | G31: 1366 | H31: 1761 | I31: 2000 | J31: 359 | K31: 1046 | L31: 1500 | M31: 817 | N31: 475 | O31: 1000 | P31: 2091 | Q31: 469 | R31: 1000 | S31: 1192 | T31: 421 | U31: 1000 | V31: 1274 | W31: 164 | X31: 500 | Y31: 1242 | Z31: 400 | AA31: 500 | AB31: 1283 | AC31: 169 | AD31: 500 | AE31: 424 | AF31: 97 | AG31: 500 | AH31: 775
B32: 28 | C32: 2020-07-17T15:00:00 | E32: 1021 | F32: 1500 | G32: 1845 | H32: 131 | I32: 1500 | J32: 1728 | K32: 1471 | L32: 1500 | M32: 846 | N32: 1275 | O32: 1500 | P32: 2316 | Q32: 457 | R32: 0 | S32: 735 | T32: 390 | U32: 0 | V32: 884 | W32: 138 | X32: 0 | Y32: 1104 | Z32: 372 | AA32: 0 | AB32: 911 | AC32: 175 | AD32: 0 | AE32: 249 | AF32: 79 | AG32: 0 | AH32: 696
B33: 29 | C33: 2020-07-24T15:00:00 | E33: 2271 | F33: 2500 | G33: 2074 | H33: 345 | I33: 1500 | J33: 2883 | K33: 1870 | L33: 1500 | M33: 476 | N33: 1269 | O33: 1000 | P33: 2047 | Q33: 725 | R33: 1000 | S33: 1010 | T33: 379 | U33: 0 | V33: 505 | W33: 252 | X33: 0 | Y33: 852 | Z33: 344 | AA33: 500 | AB33: 1067 | AC33: 198 | AD33: 500 | AE33: 551 | AF33: 126 | AG33: 0 | AH33: 570
B34: 30 | C34: 2020-07-31T15:00:00 | E34: 2215 | F34: 1500 | G34: 1359 | H34: 1838 | I34: 1500 | J34: 2545 | K34: 1167 | L34: 1500 | M34: 809 | N34: 448 | O34: 1000 | P34: 2599 | Q34: 478 | R34: 0 | S34: 532 | T34: 353 | U34: 0 | V34: 152 | W34: 168 | X34: 0 | Y34: 684 | Z34: 308 | AA34: 0 | AB34: 759 | AC34: 143 | AD34: 0 | AE34: 408 | AF34: 206 | AG34: 0 | AH34: 364
B35: 31 | C35: 2020-08-07T15:00:00 | E35: 2336 | F35: 2500 | G35: 1523 | H35: 1242 | I35: 1500 | J35: 2803 | K35: 1274 | L35: 1500 | M35: 1035 | N35: 1901 | O35: 1000 | P35: 1698 | Q35: 566 | R35: 1000 | S35: 966 | T35: 351 | U35: 1000 | V35: 801 | W35: 224 | X35: 500 | Y35: 960 | Z35: 263 | AA35: 500 | AB35: 996 | AC35: 168 | AD35: 500 | AE35: 740 | AF35: 225 | AG35: 500 | AH35: 639
B36: 32 | C36: 2020-08-14T15:00:00 | E36: 1238 | F36: 0 | G36: 285 | H36: 1502 | I36: 0 | J36: 1301 | K36: 33 | L36: 0 | M36: 1002 | N36: 1749 | O36: 0 | P36: -51 | Q36: 546 | R36: 0 | S36: 420 | T36: 332 | U36: 0 | V36: 469 | W36: 240 | X36: 0 | Y36: 720 | Z36: 422 | AA36: 0 | AB36: 574 | AC36: 135 | AD36: 0 | AE36: 605 | AF36: 239 | AG36: 0 | AH36: 400
B37: 33 | C37: 2020-08-21T15:00:00 | E37: 0 | F37: 0 | G37: 285 | H37: 0 | I37: 0 | J37: 1301 | K37: 0 | L37: 0 | M37: 1002 | N37: 0 | O37: 0 | P37: -51 | Q37: 0 | R37: 0 | S37: 420 | T37: 0 | U37: 0 | V37: 469 | W37: 0 | X37: 0 | Y37: 720 | Z37: 0 | AA37: 0 | AB37: 574 | AC37: 0 | AD37: 0 | AE37: 605 | AF37: 0 | AG37: 0 | AH37: 400
B38: 34 | C38: 2020-08-28T15:00:00 | E38: 1655 | F38: 2000 | G38: 630 | H38: 1712 | I38: 1500 | J38: 1089 | K38: 1672 | L38: 1500 | M38: 830 | N38: 859 | O38: 1500 | P38: 590 | Q38: 785 | R38: 1000 | S38: 635 | T38: 290 | U38: 1000 | V38: 1179 | W38: 184 | X38: 500 | Y38: 1036 | Z38: 256 | AA38: 1000 | AB38: 1318 | AC38: 154 | AD38: 500 | AE38: 951 | AF38: 180 | AG38: 500 | AH38: 720
B39: 35 | C39: 2020-09-04T15:00:00 | E39: 1363 | F39: 1500 | G39: 767 | H39: 1395 | I39: 2000 | J39: 1694 | K39: 1154 | L39: 1500 | M39: 1176 | N39: 1086 | O39: 1500 | P39: 1004 | Q39: 806 | R39: 1000 | S39: 829 | T39: 276 | U39: 0 | V39: 903 | W39: 238 | X39: 0 | Y39: 798 | Z39: 224 | AA39: 0 | AB39: 1094 | AC39: 156 | AD39: 0 | AE39: 795 | AF39: 169 | AG39: 0 | AH39: 551
B40: 36 | C40: 2020-09-11T15:00:00 | E40: 1550 | F40: 1000 | G40: 217 | H40: 1015 | I40: 2000 | J40: 2679 | K40: 1233 | L40: 1000 | M40: 943 | N40: 485 | O40: 1000 | P40: 1519 | Q40: 659 | R40: 1000 | S40: 1170 | T40: 246 | U40: 0 | V40: 657 | W40: 151 | X40: 0 | Y40: 647 | Z40: 387 | AA40: 0 | AB40: 707 | AC40: 134 | AD40: 0 | AE40: 661 | AF40: 88 | AG40: 0 | AH40: 463
B41: 37 | C41: 2020-09-18T15:00:00 | E41: 672 | F41: 1000 | G41: 545 | H41: 1233 | I41: 1500 | J41: 2946 | K41: 1340 | L41: 1000 | M41: 603 | N41: 1796 | O41: 1000 | P41: 723 | Q41: 492 | R41: 1000 | S41: 1678 | T41: 346 | U41: 1000 | V41: 1311 | W41: 237 | X41: 500 | Y41: 910 | Z41: 325 | AA41: 1000 | AB41: 1382 | AC41: 168 | AD41: 500 | AE41: 993 | AF41: 62 | AG41: 0 | AH41: 401
B42: 38 | C42: 2020-09-25T15:00:00 | E42: 631 | F42: 1000 | G42: 914 | H42: 650 | I42: 1000 | J42: 3296 | K42: 700 | L42: 1000 | M42: 903 | N42: 1128 | O42: 1500 | P42: 1095 | Q42: 458 | R42: 1000 | S42: 2220 | T42: 193 | U42: 0 | V42: 1118 | W42: 234 | X42: 0 | Y42: 676 | Z42: 373 | AA42: 0 | AB42: 1009 | AC42: 192 | AD42: 0 | AE42: 801 | AF42: 64 | AG42: 0 | AH42: 337
B43: 39 | C43: 2020-10-02T15:00:00 | E43: 161 | F43: 1500 | G43: 2253 | H43: 1265 | I43: 1000 | J43: 3031 | K43: 1199 | L43: 1000 | M43: 704 | N43: 1583 | O43: 1500 | P43: 1012 | Q43: 835 | R43: 500 | S43: 1885 | T43: 21 | U43: 0 | V43: 1097 | W43: 171 | X43: 0 | Y43: 505 | Z43: 373 | AA43: 0 | AB43: 636 | AC43: 230 | AD43: 0 | AE43: 571 | AF43: 66 | AG43: 0 | AH43: 271
A44: 4 | B44: 40 | C44: 2020-10-09T15:00:00 | E44: 1929 | F44: 1000 | G44: 1324 | H44: 1059 | I44: 1000 | J44: 2972 | K44: 908 | L44: 1000 | M44: 796 | N44: 859 | O44: 1500 | P44: 1653 | Q44: 424 | R44: 500 | S44: 1961 | T44: 366 | U44: 1000 | V44: 1731 | W44: 279 | X44: 0 | Y44: 226 | Z44: 336 | AA44: 1000 | AB44: 1300 | AC44: 247 | AD44: 0 | AE44: 324 | AF44: 114 | AG44: 0 | AH44: 157
B45: 41 | C45: 2020-10-16T15:00:00 | E45: 1884 | F45: 1500 | G45: 940 | H45: 252 | I45: 0 | J45: 2720 | K45: 1739 | L45: 1500 | M45: 557 | N45: 1465 | O45: 1500 | P45: 1688 | Q45: 369 | R45: 500 | S45: 2092 | T45: 360 | U45: 0 | V45: 1371 | W45: 298 | X45: 1000 | Y45: 928 | Z45: 671 | AA45: 0 | AB45: 629 | AC45: 305 | AD45: 500 | AE45: 519 | AF45: 105 | AG45: 500 | AH45: 552
B46: 42 | C46: 2020-10-23T15:00:00 | E46: 1720 | F46: 1000 | G46: 220 | H46: 1051 | I46: 1500 | J46: 3169 | K46: 1392 | L46: 1500 | M46: 665 | N46: 690 | O46: 1000 | P46: 1998 | Q46: 292 | R46: 500 | S46: 2300 | T46: 328 | U46: 0 | V46: 1043 | W46: 268 | X46: 0 | Y46: 660 | Z46: 451 | AA46: 1000 | AB46: 1178 | AC46: 250 | AD46: 0 | AE46: 269 | AF46: 122 | AG46: 0 | AH46: 430
B47: 43 | C47: 2020-10-30T15:00:00 | E47: 248 | F47: 1000 | G47: 972 | H47: 1347 | I47: 0 | J47: 1822 | K47: 1195 | L47: 1500 | M47: 970 | N47: 729 | O47: 1000 | P47: 2269 | Q47: 551 | R47: 500 | S47: 2249 | T47: 287 | U47: 1000 | V47: 1756 | W47: 166 | X47: 0 | Y47: 494 | Z47: 419 | AA47: 0 | AB47: 759 | AC47: 195 | AD47: 0 | AE47: 74 | AF47: 171 | AG47: 0 | AH47: 259
B48: 44 | C48: 2020-11-06T15:00:00 | E48: 1201 | F48: 1500 | G48: 1271 | H48: 558 | I48: 2000 | J48: 3264 | K48: 1629 | L48: 1500 | M48: 841 | N48: 938 | O48: 1500 | P48: 2831 | Q48: 659 | R48: 500 | S48: 2090 | T48: 227 | U48: 0 | V48: 1529 | W48: 287 | X48: 0 | Y48: 207 | Z48: 367 | AA48: 1000 | AB48: 1392 | AC48: 157 | AD48: 500 | AE48: 417 | AF48: 161 | AG48: 0 | AH48: 98
B49: 45 | C49: 2020-11-13T15:00:00 | E49: 1272 | F49: 1000 | G49: 999 | H49: 939 | I49: 0 | J49: 2325 | K49: 1870 | L49: 1000 | M49: -29 | N49: 1370 | O49: 1500 | P49: 2961 | Q49: 669 | R49: 500 | S49: 1921 | T49: 215 | U49: 0 | V49: 1314 | W49: 176 | X49: 1000 | Y49: 1031 | Z49: 359 | AA49: 0 | AB49: 1033 | AC49: 148 | AD49: 0 | AE49: 269 | AF49: 168 | AG49: 500 | AH49: 430
B50: 46 | C50: 2020-11-20T15:00:00 | E50: 1724 | F50: 2500 | G50: 1775 | H50: 1260 | I50: 1500 | J50: 2565 | K50: 496 | L50: 1500 | M50: 975 | N50: 1624 | O50: 1500 | P50: 2837 | Q50: 893 | R50: 500 | S50: 1528 | T50: 209 | U50: 0 | V50: 1105 | W50: 239 | X50: 0 | Y50: 792 | Z50: 350 | AA50: 1000 | AB50: 1683 | AC50: 203 | AD50: 500 | AE50: 566 | AF50: 148 | AG50: 0 | AH50: 282
B51: 47 | C51: 2020-11-27T15:00:00 | E51: 1283 | F51: 0 | G51: 492 | H51: 558 | I51: 0 | J51: 2007 | K51: 563 | L51: 0 | M51: 412 | N51: 1691 | O51: 0 | P51: 1146 | Q51: 762 | R51: 0 | S51: 766 | T51: 192 | U51: 0 | V51: 913 | W51: 265 | X51: 0 | Y51: 527 | Z51: 328 | AA51: 0 | AB51: 1355 | AC51: 109 | AD51: 0 | AE51: 457 | AF51: 170 | AG51: 0 | AH51: 112
B52: 48 | C52: 2020-12-04T15:00:00 | E52: 495 | F52: 2000 | G52: 1997 | H52: 370 | I52: 1500 | J52: 3137 | K52: 235 | L52: 1000 | M52: 1177 | N52: 430 | O52: 1000 | P52: 1716 | Q52: 792 | R52: 500 | S52: 474 | T52: 97 | U52: 0 | V52: 816 | W52: 119 | X52: 500 | Y52: 908 | Z52: 323 | AA52: 500 | AB52: 1532 | AC52: 113 | AD52: 500 | AE52: 844 | AF52: 178 | AG52: 500 | AH52: 434
B53: 49 | C53: 2020-12-11T15:00:00 | E53: 378 | F53: 0 | G53: 1649 | H53: 724 | I53: 0 | J53: 2413 | K53: 277 | L53: 0 | M53: 900 | N53: 216 | O53: 0 | P53: 1500 | Q53: 42 | R53: 0 | S53: 432 | T53: 44 | U53: 0 | V53: 772 | W53: 162 | X53: 0 | Y53: 746 | Z53: 258 | AA53: 0 | AB53: 1274 | AC53: 181 | AD53: 0 | AE53: 663 | AF53: 89 | AG53: 0 | AH53: 345
B54: 50 | C54: 2020-12-18T15:00:00 | E54: 356 | F54: 0 | G54: 1263 | H54: 768 | I54: 0 | J54: 1645 | K54: 371 | L54: 0 | M54: 529 | N54: 586 | O54: 0 | P54: 914 | Q54: 34 | R54: 0 | S54: 398 | T54: 17 | U54: 0 | V54: 755 | W54: 84 | X54: 0 | Y54: 662 | Z54: 107 | AA54: 0 | AB54: 1167 | AC54: 85 | AD54: 0 | AE54: 578 | AF54: 57 | AG54: 0 | AH54: 288
B55: 51 | C55: 2020-12-25T15:00:00 | E55: 0 | F55: 0 | G55: 1263 | H55: 0 | I55: 0 | J55: 1645 | K55: 0 | L55: 0 | M55: 529 | N55: 0 | O55: 0 | P55: 914 | Q55: 0 | R55: 0 | S55: 398 | T55: 0 | U55: 0 | V55: 755 | W55: 0 | X55: 0 | Y55: 662 | Z55: 0 | AA55: 0 | AB55: 1167 | AC55: 0 | AD55: 0 | AE55: 578 | AF55: 0 | AG55: 0 | AH55: 288
B56: 52 | C56: 2021-01-01T15:00:00 | E56: 0 | F56: 0 | G56: 1263 | H56: 0 | I56: 0 | J56: 1645 | K56: 0 | L56: 0 | M56: 529 | N56: 0 | O56: 0 | P56: 914 | Q56: 0 | R56: 0 | S56: 398 | T56: 0 | U56: 0 | V56: 755 | W56: 0 | X56: 0 | Y56: 662 | Z56: 0 | AA56: 0 | AB56: 1167 | AC56: 0 | AD56: 0 | AE56: 578 | AF56: 0 | AG56: 0 | AH56: 288
A57: 1 | B57: 1 | C57: 2021-01-08T15:00:00 | E57: 80 | F57: 0 | G57: 1183 | H57: 35 | I57: 0 | J57: 1610 | K57: 67 | L57: 0 | M57: 462 | N57: 161 | O57: 0 | P57: 753 | Q57: 4 | R57: 0 | S57: 394 | T57: 4 | U57: 0 | V57: 751 | W57: 66 | X57: 0 | Y57: 596 | Z57: 82 | AA57: 0 | AB57: 1085 | AC57: 45 | AD57: 0 | AE57: 533 | AF57: 62 | AG57: 0 | AH57: 226
B58: 2 | C58: 2021-01-15T15:00:00 | E58: 172 | F58: 0 | G58: 1011 | H58: 199 | I58: 0 | J58: 1411 | K58: 68 | L58: 0 | M58: 394 | N58: 399 | O58: 0 | P58: 354 | Q58: 6 | R58: 0 | S58: 388 | T58: 91 | U58: 0 | V58: 660 | W58: 87 | X58: 0 | Y58: 509 | Z58: 52 | AA58: 0 | AB58: 1033 | AC58: 48 | AD58: 0 | AE58: 485 | AF58: 87 | AG58: 0 | AH58: 139
B59: 3 | C59: 2021-01-22T15:00:00 | E59: 238 | F59: 0 | G59: 773 | H59: 335 | I59: 0 | J59: 1076 | K59: 183 | L59: 0 | M59: 211 | N59: 537 | O59: 0 | P59: -183 | Q59: 14 | R59: 0 | S59: 374 | T59: 156 | U59: 0 | V59: 504 | W59: 116 | X59: 0 | Y59: 393 | Z59: 166 | AA59: 0 | AB59: 867 | AC59: 65 | AD59: 0 | AE59: 420 | AF59: 88 | AG59: 0 | AH59: 51
B60: 4 | C60: 2021-01-29T15:00:00 | E60: 336 | F60: 1000 | G60: 1437 | H60: 342 | I60: 1000 | J60: 1734 | K60: 174 | L60: 1000 | M60: 1037 | N60: 481 | O60: 1500 | P60: 836 | Q60: 31 | R60: 500 | S60: 843 | T60: 164 | U60: 1000 | V60: 1340 | W60: 136 | X60: 500 | Y60: 757 | Z60: 181 | AA60: 500 | AB60: 1186 | AC60: 72 | AD60: 500 | AE60: 848 | AF60: 90 | AG60: 500 | AH60: 461
B61: 5 | C61: 2021-02-05T15:00:00 | E61: 546 | F61: 0 | G61: 428 | H61: 363 | I61: 0 | J61: 1371 | K61: 225 | L61: 0 | M61: 812 | N61: 488 | O61: 0 | P61: 348 | Q61: 104 | R61: 0 | S61: 739 | T61: 185 | U61: 0 | V61: 1155 | W61: 140 | X61: 0 | Y61: 617 | Z61: 194 | AA61: 0 | AB61: 992 | AC61: 105 | AD61: 0 | AE61: 743 | AF61: 102 | AG61: 0 | AH61: 359
B62: 6 | C62: 2021-02-12T15:00:00 | E62: 426 | F62: 1000 | G62: 397 | H62: 481 | I62: 1000 | J62: 1890 | K62: 478 | L62: 1000 | M62: 1334 | N62: 960 | O62: 2000 | P62: 1388 | Q62: 284 | R62: 500 | S62: 955 | T62: 194 | U62: 0 | V62: 961 | W62: 169 | X62: 0 | Y62: 448 | Z62: 242 | AA62: 500 | AB62: 1250 | AC62: 120 | AD62: 0 | AE62: 623 | AF62: 104 | AG62: 0 | AH62: 255
B63: 7 | C63: 2021-02-19T15:00:00 | E63: 305 | F63: 0 | G63: 92 | H63: 726 | I63: 0 | J63: 1164 | K63: 389 | L63: 0 | M63: 945 | N63: 998 | O63: 0 | P63: 390 | Q63: 218 | R63: 0 | S63: 737 | T63: 222 | U63: 0 | V63: 739 | W63: 172 | X63: 0 | Y63: 276 | Z63: 374 | AA63: 0 | AB63: 876 | AC63: 126 | AD63: 0 | AE63: 497 | AF63: 106 | AG63: 0 | AH63: 149
B64: 8 | C64: 2021-02-26T15:00:00 | E64: 1031 | F64: 1500 | G64: 1046 | H64: 740 | I64: 1500 | J64: 1924 | K64: 590 | L64: 1500 | M64: 1855 | N64: 680 | O64: 1500 | P64: 1210 | Q64: 296 | R64: 500 | S64: 941 | T64: 225 | U64: 1000 | V64: 1514 | W64: 205 | X64: 1000 | Y64: 1071 | Z64: 362 | AA64: 500 | AB64: 1014 | AC64: 122 | AD64: 500 | AE64: 875 | AF64: 114 | AG64: 500 | AH64: 535
B65: 9 | C65: 2021-03-05T15:00:00 | E65: 860 | F65: 0 | G65: 186 | H65: 761 | I65: 0 | J65: 1163 | K65: 735 | L65: 0 | M65: 1120 | N65: 771 | O65: 0 | P65: 439 | Q65: 390 | R65: 0 | S65: 551 | T65: 232 | U65: 0 | V65: 1282 | W65: 208 | X65: 0 | Y65: 863 | Z65: 376 | AA65: 0 | AB65: 638 | AC65: 158 | AD65: 0 | AE65: 717 | AF65: 118 | AG65: 0 | AH65: 417
B66: 10 | C66: 2021-03-12T15:00:00 | E66: 1007 | F66: 1500 | G66: 679 | H66: 568 | I66: 1500 | J66: 2095 | K66: 759 | L66: 1500 | M66: 1861 | N66: 773 | O66: 1500 | P66: 1166 | Q66: 447 | R66: 500 | S66: 604 | T66: 249 | U66: 0 | V66: 1033 | W66: 263 | X66: 0 | Y66: 600 | Z66: 378 | AA66: 500 | AB66: 760 | AC66: 161 | AD66: 0 | AE66: 556 | AF66: 129 | AG66: 0 | AH66: 288
B67: 11 | C67: 2021-03-19T15:00:00 | E67: 1009 | F67: 0 | G67: 253 | H67: 571 | I67: 0 | J67: 1524 | K67: 865 | L67: 0 | M67: 996 | N67: 816 | O67: 0 | P67: 350 | Q67: 458 | R67: 0 | S67: 146 | T67: 289 | U67: 0 | V67: 744 | W67: 256 | X67: 0 | Y67: 344 | Z67: 435 | AA67: 0 | AB67: 325 | AC67: 162 | AD67: 0 | AE67: 394 | AF67: 141 | AG67: 0 | AH67: 147
B68: 12 | C68: 2021-03-26T15:00:00 | E68: 854 | F68: 1500 | G68: 899 | H68: 821 | I68: 1500 | J68: 2203 | K68: 900 | L68: 1500 | M68: 1596 | N68: 567 | O68: 1000 | P68: 783 | Q68: 464 | R68: 1000 | S68: 682 | T68: 292 | U68: 1000 | V68: 1452 | W68: 260 | X68: 1000 | Y68: 1084 | Z68: 456 | AA68: 1000 | AB68: 869 | AC68: 165 | AD68: 500 | AE68: 729 | AF68: 142 | AG68: 500 | AH68: 505
B69: 13 | C69: 2021-04-02T15:00:00 | E69: 736 | F69: 0 | G69: 163 | H69: 689 | I69: 0 | J69: 1514 | K69: 1107 | L69: 0 | M69: 489 | N69: 602 | O69: 0 | P69: 181 | Q69: 490 | R69: 0 | S69: 192 | T69: 293 | U69: 0 | V69: 1159 | W69: 264 | X69: 0 | Y69: 820 | Z69: 404 | AA69: 0 | AB69: 465 | AC69: 256 | AD69: 0 | AE69: 473 | AF69: 172 | AG69: 0 | AH69: 333
A70: 2 | B70: 14 | C70: 2021-04-09T15:00:00 | E70: 882 | F70: 1500 | G70: 781 | H70: 1003 | I70: 1500 | J70: 2011 | K70: 1038 | L70: 2000 | M70: 1451 | N70: 475 | O70: 2000 | P70: 1706 | Q70: 376 | R70: 1000 | S70: 816 | T70: 301 | U70: 0 | V70: 858 | W70: 273 | X70: 0 | Y70: 547 | Z70: 366 | AA70: 500 | AB70: 599 | AC70: 195 | AD70: 0 | AE70: 278 | AF70: 176 | AG70: 0 | AH70: 157
B71: 15 | C71: 2021-04-16T15:00:00 | E71: 703 | F71: 0 | G71: 78 | H71: 666 | I71: 0 | J71: 1345 | K71: 1008 | L71: 0 | M71: 443 | N71: 346 | O71: 0 | P71: 1360 | Q71: 421 | R71: 0 | S71: 395 | T71: 294 | U71: 0 | V71: 564 | W71: 133 | X71: 0 | Y71: 414 | Z71: 358 | AA71: 0 | AB71: 241 | AC71: 143 | AD71: 0 | AE71: 135 | AF71: 126 | AG71: 0 | AH71: 31
B72: 16 | C72: 2021-04-23T15:00:00 | E72: 703 | F72: 1500 | G72: 875 | H72: 776 | I72: 1500 | J72: 2069 | K72: 783 | L72: 1500 | M72: 1160 | N72: 278 | O72: 1500 | P72: 2582 | Q72: 429 | R72: 1000 | S72: 966 | T72: 201 | U72: 1000 | V72: 1363 | W72: 239 | X72: 1000 | Y72: 1175 | Z72: 282 | AA72: 500 | AB72: 459 | AC72: 192 | AD72: 500 | AE72: 443 | AF72: 127 | AG72: 500 | AH72: 404
B73: 17 | C73: 2021-04-30T15:00:00 | E73: 501 | F73: 0 | G73: 374 | H73: 955 | I73: 0 | J73: 1114 | K73: 468 | L73: 0 | M73: 692 | N73: 653 | O73: 0 | P73: 1929 | Q73: 130 | R73: 0 | S73: 836 | T73: 272 | U73: 0 | V73: 1091 | W73: 248 | X73: 0 | Y73: 927 | Z73: 375 | AA73: 0 | AB73: 84 | AC73: 125 | AD73: 0 | AE73: 318 | AF73: 121 | AG73: 0 | AH73: 283
B74: 18 | C74: 2021-05-07T15:00:00 | E74: 205 | F74: 2000 | G74: 1292 | H74: 769 | I74: 2000 | J74: 2345 | K74: 134 | L74: 1000 | M74: 1558 | N74: 774 | O74: 1000 | P74: 2155 | Q74: 486 | R74: 1000 | S74: 1350 | T74: 202 | U74: 0 | V74: 889 | W74: 217 | X74: 0 | Y74: 710 | Z74: 168 | AA74: 1000 | AB74: 916 | AC74: 111 | AD74: 0 | AE74: 207 | AF74: 108 | AG74: 500 | AH74: 675
B75: 19 | C75: 2021-05-14T15:00:00 | E75: 875 | F75: 0 | G75: 417 | H75: 915 | I75: 0 | J75: 1430 | K75: 244 | L75: 0 | M75: 1314 | N75: 818 | O75: 0 | P75: 1337 | Q75: 621 | R75: 0 | S75: 729 | T75: 275 | U75: 0 | V75: 614 | W75: 212 | X75: 0 | Y75: 498 | Z75: 462 | AA75: 0 | AB75: 454 | AC75: 178 | AD75: 0 | AE75: 29 | AF75: 175 | AG75: 0 | AH75: 500
B76: 20 | C76: 2021-05-21T15:00:00 | E76: 842 | F76: 2000 | G76: 1575 | H76: 956 | I76: 2000 | J76: 2474 | K76: 336 | L76: 1000 | M76: 1978 | N76: 880 | O76: 1500 | P76: 1957 | Q76: 468 | R76: 1000 | S76: 1261 | T76: 200 | U76: 1000 | V76: 1414 | W76: 183 | X76: 1000 | Y76: 1315 | Z76: 397 | AA76: 500 | AB76: 557 | AC76: 124 | AD76: 500 | AE76: 405 | AF76: 138 | AG76: 500 | AH76: 862
B77: 21 | C77: 2021-05-28T15:00:00 | E77: 684 | F77: 0 | G77: 568 | H77: 1025 | I77: 0 | J77: 1449 | K77: 596 | L77: 0 | M77: 1382 | N77: 752 | O77: 0 | P77: 1205 | Q77: 201 | R77: 0 | S77: 1060 | T77: 278 | U77: 0 | V77: 1136 | W77: 199 | X77: 0 | Y77: 1116 | Z77: 357 | AA77: 0 | AB77: 200 | AC77: 174 | AD77: 0 | AE77: 231 | AF77: 142 | AG77: 0 | AH77: 720
B78: 22 | C78: 2021-06-04T15:00:00 | E78: 1190 | F78: 2000 | G78: 1378 | H78: 1125 | I78: 2000 | J78: 2324 | K78: 994 | L78: 1500 | M78: 1888 | N78: 760 | O78: 1500 | P78: 1945 | Q78: 343 | R78: 500 | S78: 1217 | T78: 244 | U78: 0 | V78: 892 | W78: 125 | X78: 0 | Y78: 991 | Z78: 88 | AA78: 500 | AB78: 612 | AC78: 113 | AD78: 500 | AE78: 618 | AF78: 179 | AG78: 0 | AH78: 541
B79: 23 | C79: 2021-06-11T15:00:00 | E79: 1148 | F79: 0 | G79: 230 | H79: 1306 | I79: 0 | J79: 1018 | K79: 1118 | L79: 0 | M79: 770 | N79: 1019 | O79: 0 | P79: 926 | Q79: 600 | R79: 0 | S79: 617 | T79: 137 | U79: 0 | V79: 755 | W79: 165 | X79: 0 | Y79: 826 | Z79: 405 | AA79: 0 | AB79: 207 | AC79: 154 | AD79: 0 | AE79: 464 | AF79: 80 | AG79: 0 | AH79: 461
B80: 24 | C80: 2021-06-18T15:00:00 | E80: 1007 | F80: 2000 | G80: 1546 | H80: 1333 | I80: 2000 | J80: 1685 | K80: 1182 | L80: 1500 | M80: 1088 | N80: 1029 | O80: 2000 | P80: 1897 | Q80: 322 | R80: 500 | S80: 795 | T80: 129 | U80: 1000 | V80: 1626 | W80: 277 | X80: 500 | Y80: 1049 | Z80: 389 | AA80: 500 | AB80: 318 | AC80: 161 | AD80: 500 | AE80: 803 | AF80: 149 | AG80: 500 | AH80: 812
B81: 25 | C81: 2021-06-25T15:00:00 | E81: 1082 | F81: 0 | G81: 1341 | H81: 1232 | I81: 0 | J81: 453 | K81: 961 | L81: 0 | M81: 127 | N81: 788 | O81: 0 | P81: 1109 | Q81: 588 | R81: 0 | S81: 207 | T81: 219 | U81: 0 | V81: 1407 | W81: 235 | X81: 0 | Y81: 814 | Z81: 261 | AA81: 0 | AB81: 57 | AC81: 160 | AD81: 0 | AE81: 643 | AF81: 145 | AG81: 0 | AH81: 667
B82: 26 | C82: 2021-07-02T15:00:00 | E82: 1548 | F82: 2000 | G82: 1793 | H82: 1342 | I82: 1500 | J82: 611 | K82: 1112 | L82: 1500 | M82: 515 | N82: 551 | O82: 1000 | P82: 1558 | Q82: 452 | R82: 1000 | S82: 755 | T82: 289 | U82: 0 | V82: 1118 | W82: 234 | X82: 0 | Y82: 580 | Z82: 262 | AA82: 1000 | AB82: 795 | AC82: 242 | AD82: 500 | AE82: 901 | AF82: 265 | AG82: 0 | AH82: 402
A83: 3 | B83: 27 | C83: 2021-07-09T15:00:00 | E83: 1711 | F83: 1500 | G83: 1582 | H83: 1174 | I83: 1500 | J83: 937 | K83: 428 | L83: 1500 | M83: 1587 | N83: 1278 | O83: 1000 | P83: 1280 | Q83: 618 | R83: 0 | S83: 137 | T83: 305 | U83: 0 | V83: 813 | W83: 247 | X83: 0 | Y83: 333 | Z83: 431 | AA83: 0 | AB83: 364 | AC83: 248 | AD83: 0 | AE83: 653 | AF83: 193 | AG83: 0 | AH83: 209
B84: 28 | C84: 2021-07-16T15:00:00 | E84: 2456 | F84: 2000 | G84: 1126 | H84: 1425 | I84: 1500 | J84: 1012 | K84: 1680 | L84: 1500 | M84: 1407 | N84: 1353 | O84: 1500 | P84: 1427 | Q84: 626 | R84: 1000 | S84: 511 | T84: 286 | U84: 1000 | V84: 1527 | W84: 318 | X84: 1000 | Y84: 1015 | Z84: 486 | AA84: 1000 | AB84: 878 | AC84: 117 | AD84: 0 | AE84: 536 | AF84: 160 | AG84: 500 | AH84: 549
B85: 29 | C85: 2021-07-23T15:00:00 | E85: 2679 | F85: 2000 | G85: 447 | H85: 1895 | I85: 1500 | J85: 617 | K85: 1414 | L85: 2000 | M85: 1993 | N85: 1496 | O85: 1500 | P85: 1431 | Q85: 731 | R85: 1000 | S85: 780 | T85: 378 | U85: 0 | V85: 1149 | W85: 292 | X85: 0 | Y85: 723 | Z85: 501 | AA85: 0 | AB85: 377 | AC85: 212 | AD85: 0 | AE85: 324 | AF85: 189 | AG85: 0 | AH85: 360
B86: 30 | C86: 2021-07-30T15:00:00 | E86: 2613 | F86: 2500 | G86: 334 | H86: 1349 | I86: 2000 | J86: 1268 | K86: 1763 | L86: 2000 | M86: 2230 | N86: 1037 | O86: 1500 | P86: 1894 | Q86: 650 | R86: 1000 | S86: 1130 | T86: 244 | U86: 0 | V86: 905 | W86: 238 | X86: 0 | Y86: 485 | Z86: 419 | AA86: 1000 | AB86: 958 | AC86: 116 | AD86: 500 | AE86: 708 | AF86: 298 | AG86: 500 | AH86: 562
B87: 31 | C87: 2021-08-06T15:00:00 | E87: 1204 | F87: 2500 | G87: 1630 | H87: 1159 | I87: 2000 | J87: 2109 | K87: 1583 | L87: 1500 | M87: 2147 | N87: 1015 | O87: 1500 | P87: 2379 | Q87: 522 | R87: 1000 | S87: 1608 | T87: 240 | U87: 1000 | V87: 1665 | W87: 314 | X87: 500 | Y87: 671 | Z87: 371 | AA87: 0 | AB87: 587 | AC87: 221 | AD87: 0 | AE87: 487 | AF87: 146 | AG87: 0 | AH87: 416
B88: 32 | C88: 2021-08-13T15:00:00 | E88: 1460 | F88: 0 | G88: 170 | H88: 1723 | I88: 0 | J88: 386 | K88: 1588 | L88: 0 | M88: 559 | N88: 1112 | O88: 0 | P88: 1267 | Q88: 648 | R88: 0 | S88: 960 | T88: 320 | U88: 0 | V88: 1345 | W88: 290 | X88: 0 | Y88: 381 | Z88: 483 | AA88: 0 | AB88: 104 | AC88: 137 | AD88: 0 | AE88: 350 | AF88: 46 | AG88: 0 | AH88: 370
B89: 33 | C89: 2021-08-20T15:00:00 | E89: 0 | F89: 0 | G89: 170 | H89: 0 | I89: 0 | J89: 386 | K89: 0 | L89: 0 | M89: 559 | N89: 0 | O89: 0 | P89: 1267 | Q89: 0 | R89: 0 | S89: 960 | T89: 0 | U89: 0 | V89: 1345 | W89: 0 | X89: 0 | Y89: 381 | Z89: 0 | AA89: 0 | AB89: 104 | AC89: 0 | AD89: 0 | AE89: 350 | AF89: 0 | AG89: 0 | AH89: 370
B90: 34 | C90: 2021-08-27T15:00:00 | E90: 1952 | F90: 2000 | G90: 218 | H90: 1495 | I90: 2000 | J90: 891 | K90: 1440 | L90: 2000 | M90: 1119 | N90: 1589 | O90: 1500 | P90: 1178 | Q90: 550 | R90: 1000 | S90: 1410 | T90: 263 | U90: 0 | V90: 1082 | W90: 95 | X90: 500 | Y90: 786 | Z90: 220 | AA90: 1000 | AB90: 884 | AC90: 127 | AD90: 500 | AE90: 723 | AF90: 72 | AG90: 500 | AH90: 798
B91: 35 | C91: 2021-09-03T15:00:00 | E91: 1608 | F91: 1500 | G91: 110 | H91: 1322 | I91: 2000 | J91: 1569 | K91: 1498 | L91: 1500 | M91: 1121 | N91: 1379 | O91: 1500 | P91: 1299 | Q91: 568 | R91: 1000 | S91: 1842 | T91: 210 | U91: 0 | V91: 872 | W91: 91 | X91: 0 | Y91: 695 | Z91: 280 | AA91: 0 | AB91: 604 | AC91: 186 | AD91: 0 | AE91: 537 | AF91: 81 | AG91: 0 | AH91: 717
B92: 36 | C92: 2021-09-10T15:00:00 | E92: 1329 | F92: 1500 | G92: 281 | H92: 2033 | I92: 2000 | J92: 1536 | K92: 1129 | L92: 1500 | M92: 1492 | N92: 1279 | O92: 1500 | P92: 1520 | Q92: 818 | R92: 500 | S92: 1524 | T92: 353 | U92: 1000 | V92: 1519 | W92: 321 | X92: 1000 | Y92: 1374 | Z92: 314 | AA92: 500 | AB92: 790 | AC92: 226 | AD92: 500 | AE92: 849 | AF92: 107 | AG92: 0 | AH92: 610
B93: 37 | C93: 2021-09-17T15:00:00 | E93: 1092 | F93: 1500 | G93: 689 | H93: 1291 | I93: 1500 | J93: 1745 | K93: 1071 | L93: 1500 | M93: 1921 | N93: 707 | O93: 1500 | P93: 2313 | Q93: 326 | R93: 1000 | S93: 2198 | T93: 187 | U93: 0 | V93: 1332 | W93: 327 | X93: 0 | Y93: 1047 | Z93: 231 | AA93: 0 | AB93: 559 | AC93: 465 | AD93: 0 | AE93: 623 | AF93: 243 | AG93: 0 | AH93: 367
B94: 38 | C94: 2021-09-24T15:00:00 | E94: 744 | F94: 1500 | G94: 1445 | H94: 758 | I94: 1500 | J94: 2487 | K94: 1048 | L94: 1000 | M94: 1873 | N94: 620 | O94: 1000 | P94: 2693 | Q94: 788 | R94: 1000 | S94: 2410 | T94: 184 | U94: 0 | V94: 1148 | W94: 195 | X94: 0 | Y94: 852 | Z94: 398 | AA94: 500 | AB94: 661 | AC94: 240 | AD94: 0 | AE94: 383 | AF94: 207 | AG94: 500 | AH94: 660
B95: 39 | C95: 2021-10-01T15:00:00 | E95: 689 | F95: 1500 | G95: 2256 | H95: 931 | I95: 1000 | J95: 2556 | K95: 771 | L95: 1000 | M95: 2102 | N95: 709 | O95: 1000 | P95: 2984 | Q95: 568 | R95: 500 | S95: 2342 | T95: 313 | U95: 0 | V95: 835 | W95: 231 | X95: 0 | Y95: 621 | Z95: 488 | AA95: 0 | AB95: 173 | AC95: 188 | AD95: 0 | AE95: 195 | AF95: 190 | AG95: 0 | AH95: 470
A96: 4 | B96: 40 | C96: 2021-10-08T15:00:00 | E96: 2276 | F96: 1500 | G96: 1480 | H96: 935 | I96: 1000 | J96: 2621 | K96: 728 | L96: 1000 | M96: 2374 | N96: 1516 | O96: 1000 | P96: 2468 | Q96: 848 | R96: 1000 | S96: 2494 | T96: 458 | U96: 1000 | V96: 1377 | W96: 157 | X96: 500 | Y96: 964 | Z96: 430 | AA96: 1000 | AB96: 743 | AC96: 310 | AD96: 500 | AE96: 385 | AF96: 311 | AG96: 500 | AH96: 659
B97: 41 | C97: 2021-10-15T15:00:00 | E97: 2023 | F97: 2000 | G97: 1457 | H97: 1186 | I97: 0 | J97: 1435 | K97: 741 | L97: 1000 | M97: 2633 | N97: 1227 | O97: 1000 | P97: 2241 | Q97: 889 | R97: 1000 | S97: 2605 | T97: 429 | U97: 0 | V97: 948 | W97: 318 | X97: 0 | Y97: 646 | Z97: 581 | AA97: 0 | AB97: 162 | AC97: 291 | AD97: 0 | AE97: 94 | AF97: 213 | AG97: 0 | AH97: 446
B98: 42 | C98: 2021-10-22T15:00:00 | E98: 2029 | F98: 2000 | G98: 1427 | H98: 1170 | I98: 2000 | J98: 2265 | K98: 945 | L98: 1000 | M98: 2688 | N98: 1663 | O98: 1500 | P98: 2078 | Q98: 980 | R98: 0 | S98: 1625 | T98: 410 | U98: 0 | V98: 538 | W98: 318 | X98: 0 | Y98: 328 | Z98: 557 | AA98: 1000 | AB98: 605 | AC98: 288 | AD98: 500 | AE98: 306 | AF98: 190 | AG98: 500 | AH98: 756
B99: 43 | C99: 2021-10-29T15:00:00 | E99: 1212 | F99: 1500 | G99: 1716 | H99: 1495 | I99: 0 | J99: 770 | K99: 1817 | L99: 1000 | M99: 1871 | N99: 1522 | O99: 1500 | P99: 2056 | Q99: 767 | R99: 1000 | S99: 1858 | T99: 378 | U99: 0 | V99: 160 | W99: 304 | X99: 0 | Y99: 24 | Z99: 503 | AA99: 0 | AB99: 102 | AC99: 252 | AD99: 0 | AE99: 54 | AF99: 275 | AG99: 0 | AH99: 481
B100: 44 | C100: 2021-11-05T15:00:00 | E100: 1417 | F100: 1500 | G100: 1799 | H100: 346 | I100: 2000 | J100: 2424 | K100: 1921 | L100: 1500 | M100: 1450 | N100: 954 | O100: 1500 | P100: 2602 | Q100: 600 | R100: 500 | S100: 1758 | T100: 314 | U100: 1000 | V100: 846 | W100: 286 | X100: 1000 | Y100: 738 | Z100: 488 | AA100: 1000 | AB100: 614 | AC100: 294 | AD100: 500 | AE100: 260 | AF100: 168 | AG100: 0 | AH100: 313
B101: 45 | C101: 2021-11-12T15:00:00 | E101: 1500 | F101: 1500 | G101: 1799 | H101: 824 | I101: 0 | J101: 1600 | K101: 1154 | L101: 2000 | M101: 2296 | N101: 1708 | O101: 1500 | P101: 2394 | Q101: 732 | R101: 0 | S101: 1026 | T101: 301 | U101: 0 | V101: 545 | W101: 468 | X101: 0 | Y101: 270 | Z101: 431 | AA101: 0 | AB101: 183 | AC101: 243 | AD101: 0 | AE101: 17 | AF101: 158 | AG101: 0 | AH101: 155
B102: 46 | C102: 2021-11-19T15:00:00 | E102: 1534 | F102: 1500 | G102: 165 | H102: 705 | I102: 1500 | J102: 2395 | K102: 1340 | L102: 1500 | M102: 2456 | N102: 1445 | O102: 1500 | P102: 2449 | Q102: 585 | R102: 1000 | S102: 1441 | T102: 290 | U102: 0 | V102: 255 | W102: 325 | X102: 1000 | Y102: 945 | Z102: 422 | AA102: 1000 | AB102: 761 | AC102: 197 | AD102: 500 | AE102: 320 | AF102: 148 | AG102: 500 | AH102: 507
B103: 47 | C103: 2021-11-26T15:00:00 | E103: 1513 | F103: 0 | G103: 252 | H103: 774 | I103: 0 | J103: 1621 | K103: 1400 | L103: 0 | M103: 1056 | N103: 1334 | O103: 1500 | P103: 2615 | Q103: 579 | R103: 0 | S103: 862 | T103: 172 | U103: 0 | V103: 83 | W103: 260 | X103: 0 | Y103: 685 | Z103: 362 | AA103: 0 | AB103: 399 | AC103: 165 | AD103: 0 | AE103: 155 | AF103: 91 | AG103: 0 | AH103: 416
B104: 48 | C104: 2021-12-03T15:00:00 | E104: 584 | F104: 1500 | G104: 1168 | H104: 700 | I104: 1500 | J104: 2421 | K104: 1473 | L104: 2000 | M104: 1583 | N104: 889 | O104: 1000 | P104: 2726 | Q104: 324 | R104: 500 | S104: 1038 | T104: 186 | U104: 1000 | V104: 897 | W104: 246 | X104: 500 | Y104: 939 | Z104: 337 | AA104: 1000 | AB104: 1062 | AC104: 152 | AD104: 500 | AE104: 503 | AF104: 86 | AG104: 0 | AH104: 330
B105: 49 | C105: 2021-12-10T15:00:00 | E105: 446 | F105: 0 | G105: 722 | H105: 874 | I105: 0 | J105: 1547 | K105: 570 | L105: 0 | M105: 1013 | N105: 778 | O105: 0 | P105: 1948 | Q105: 265 | R105: 0 | S105: 773 | T105: 113 | U105: 0 | V105: 784 | W105: 131 | X105: 0 | Y105: 808 | Z105: 255 | AA105: 0 | AB105: 807 | AC105: 99 | AD105: 0 | AE105: 404 | AF105: 41 | AG105: 0 | AH105: 289
B106: 50 | C106: 2021-12-17T15:00:00 | E106: 200 | F106: 0 | G106: 522 | H106: 871 | I106: 0 | J106: 676 | K106: 586 | L106: 0 | M106: 427 | N106: 539 | O106: 0 | P106: 1409 | Q106: 117 | R106: 0 | S106: 656 | T106: 99 | U106: 0 | V106: 685 | W106: 26 | X106: 0 | Y106: 782 | Z106: 138 | AA106: 0 | AB106: 669 | AC106: 64 | AD106: 0 | AE106: 340 | AF106: 22 | AG106: 0 | AH106: 267
B107: 51 | C107: 2021-12-24T15:00:00 | E107: 0 | F107: 0 | G107: 522 | H107: 0 | I107: A | J107: 676 | K107: 0 | L107: 0 | M107: 427 | N107: 0 | O107: 0 | P107: 1409 | Q107: 0 | R107: 0 | S107: 656 | T107: 0 | U107: 0 | V107: 685 | W107: 0 | X107: 0 | Y107: 782 | Z107: 0 | AA107: 0 | AB107: 669 | AC107: 0 | AD107: 0 | AE107: 340 | AF107: 0 | AG107: 0 | AH107: 267
B108: 52 | C108: 2021-12-31T15:00:00 | E108: 0 | F108: 0 | G108: 522 | H108: 0 | I108: 0 | J108: 676 | K108: 0 | L108: 0 | M108: 427 | N108: 0 | O108: 0 | P108: 1409 | Q108: 0 | R108: 0 | S108: 656 | T108: 0 | U108: 0 | V108: 685 | W108: 0 | X108: 0 | Y108: 782 | Z108: 0 | AA108: 0 | AB108: 669 | AC108: 0 | AD108: 0 | AE108: 340 | AF108: 0 | AG108: 0 | AH108: 267
L109: A
G110: MAX készlet | J110: MAX készlet | M110: MAX készlet | P110: MAX készlet | S110: MAX készlet | V110: MAX készlet | Y110: MAX készlet | AB110: MAX készlet | AE110: MAX készlet | AH110: MAX készlet
A111: 2020 | C111: Negyedév | D111: 1 | E111: 6561.975 | F111: =SUM(F5:F17) -> 8000 | G111: =MAX(G5:G17) -> 3454 | H111: 5643 | I111: =SUM(I5:I17) -> 7500 | J111: =MAX(J5:J17) -> 3051 | K111: 5608 | L111: =SUM(L5:L17) -> 5500 | M111: =MAX(M5:M17) -> 1606 | N111: 5568 | O111: =SUM(O5:O17) -> 6500 | P111: =MAX(P5:P17) -> 2335 | Q111: 2882.6 | R111: =SUM(R5:R17) -> 3500 | S111: =MAX(S5:S17) -> 1513 | T111: 2236.812 | U111: =SUM(U5:U17) -> 3000 | V111: =MAX(V5:V17) -> 1252 | W111: 1974 | X111: =SUM(X5:X17) -> 2500 | Y111: =MAX(Y5:Y17) -> 1211 | Z111: 3346 | AA111: =SUM(AA5:AA17) -> 3500 | AB111: =MAX(AB5:AB17) -> 1173 | AC111: 1390 | AD111: =SUM(AD5:AD17) -> 1500 | AE111: =MAX(AE5:AE17) -> 901 | AF111: 1096 | AG111: =SUM(AG5:AG17) -> 1500 | AH111: =MAX(AH5:AH17) -> 900
D112: 2 | E112: 9639.315 | F112: =SUM(F18:F30) -> 6500 | G112: =MAX(G18:G30) -> 3175 | H112: 11407 | I112: =SUM(I18:I30) -> 8500 | J112: =MAX(J18:J30) -> 3050 | K112: 8238 | L112: =SUM(L18:L30) -> 8000 | M112: =MAX(M18:M30) -> 1466 | N112: 8179.2 | O112: =SUM(O18:O30) -> 8500 | P112: =MAX(P18:P30) -> 2439 | Q112: 4234.44 | R112: =SUM(R18:R30) -> 4000 | S112: =MAX(S18:S30) -> 1517 | T112: 2373.975 | U112: =SUM(U18:U30) -> 2000 | V112: =MAX(V18:V30) -> 1712 | W112: 2274 | X112: =SUM(X18:X30) -> 2500 | Y112: =MAX(Y18:Y30) -> 1165 | Z112: 3848 | AA112: =SUM(AA18:AA30) -> 4500 | AB112: =MAX(AB18:AB30) -> 1497 | AC112: 1715 | AD112: =SUM(AD18:AD30) -> 1500 | AE112: =MAX(AE18:AE30) -> 617 | AF112: 1608 | AG112: =SUM(AG18:AG30) -> 1500 | AH112: =MAX(AH18:AH30) -> 655
D113: 3 | E113: 16563.33 | F113: =SUM(F31:F43) -> 18500 | G113: =MAX(G31:G43) -> 2253 | H113: 14089 | I113: =SUM(I31:I43) -> 17000 | J113: =MAX(J31:J43) -> 3296 | K113: 14159 | L113: =SUM(L31:L43) -> 14500 | M113: =MAX(M31:M43) -> 1176 | N113: 14054.4 | O113: =SUM(O31:O43) -> 13500 | P113: =MAX(P31:P43) -> 2599 | Q113: 7276.08 | R113: =SUM(R31:R43) -> 8500 | S113: =MAX(S31:S43) -> 2220 | T113: 3597.891 | U113: =SUM(U31:U43) -> 4000 | V113: =MAX(V31:V43) -> 1311 | W113: 2401 | X113: =SUM(X31:X43) -> 2000 | Y113: =MAX(Y31:Y43) -> 1242 | Z113: 4047 | AA113: =SUM(AA31:AA43) -> 3500 | AB113: =MAX(AB31:AB43) -> 1382 | AC113: 2022 | AD113: =SUM(AD31:AD43) -> 2500 | AE113: =MAX(AE31:AE43) -> 993 | AF113: 1601 | AG113: =SUM(AG31:AG43) -> 1500 | AH113: =MAX(AH31:AH43) -> 775
D114: 4 | E114: 12490.38 | F114: =SUM(F44:F56) -> 11500 | G114: =MAX(G44:G56) -> 1997 | H114: 8886 | I114: =SUM(I44:I56) -> 7500 | J114: =MAX(J44:J56) -> 3264 | K114: 10675 | L114: =SUM(L44:L56) -> 10500 | M114: =MAX(M44:M56) -> 1177 | N114: 10598.4 | O114: =SUM(O44:O56) -> 10500 | P114: =MAX(P44:P56) -> 2961 | Q114: 5486.88 | R114: =SUM(R44:R56) -> 4000 | S114: =MAX(S44:S56) -> 2300 | T114: 2342.322 | U114: =SUM(U44:U56) -> 2000 | V114: =MAX(V44:V56) -> 1756 | W114: 2343 | X114: =SUM(X44:X56) -> 2500 | Y114: =MAX(Y44:Y56) -> 1031 | Z114: 3969 | AA114: =SUM(AA44:AA56) -> 4500 | AB114: =MAX(AB44:AB56) -> 1683 | AC114: 1993 | AD114: =SUM(AD44:AD56) -> 2000 | AE114: =MAX(AE44:AE56) -> 844 | AF114: 1483 | AG114: =SUM(AG44:AG56) -> 1500 | AH114: =MAX(AH44:AH56) -> 552
D115: tot | E115: =SUM(E111:E114) -> 45255 | F115: =SUM(F111:F114) -> 44500 | H115: =SUM(H111:H114) -> 40025 | I115: =SUM(I111:I114) -> 40500 | K115: =SUM(K111:K114) -> 38680 | L115: =SUM(L111:L114) -> 38500 | N115: =SUM(N111:N114) -> 38400 | O115: =SUM(O111:O114) -> 39000 | Q115: =SUM(Q111:Q114) -> 19880 | R115: =SUM(R111:R114) -> 20000 | T115: =SUM(T111:T114) -> 10551 | U115: =SUM(U111:U114) -> 11000 | W115: =SUM(W111:W114) -> 8992 | X115: =SUM(X111:X114) -> 9500 | Z115: =SUM(Z111:Z114) -> 15210 | AA115: =SUM(AA111:AA114) -> 16000 | AC115: =SUM(AC111:AC114) -> 7120 | AD115: =SUM(AD111:AD114) -> 7500 | AF115: =SUM(AF111:AF114) -> 5788 | AG115: =SUM(AG111:AG114) -> 6000
A117: 2021 | C117: Negyedév | D117: 1 | E117: =SUM(E57:E69) -> 7600 | F117: =SUM(F57:F69) -> 6500 | G117: =MAX(G57:G69) -> 1437 | H117: 6631 | I117: =SUM(I57:I69) -> 6500 | J117: =MAX(J57:J69) -> 2203 | K117: 6549 | L117: =SUM(L57:L69) -> 6500 | M117: =MAX(M57:M69) -> 1861 | N117: 8233 | O117: =SUM(O57:O69) -> 7500 | P117: =MAX(P57:P69) -> 1388 | Q117: 3206 | R117: =SUM(R57:R69) -> 3000 | S117: =MAX(S57:S69) -> 955 | T117: 2596 | U117: =SUM(U57:U69) -> 3000 | V117: =MAX(V57:V69) -> 1514 | W117: 2342 | X117: =SUM(X57:X69) -> 2500 | Y117: =MAX(Y57:Y69) -> 1084 | Z117: 3702 | AA117: =SUM(AA57:AA69) -> 3000 | AB117: =MAX(AB57:AB69) -> 1250 | AC117: 1605 | AD117: =SUM(AD57:AD69) -> 1500 | AE117: =MAX(AE57:AE69) -> 875 | AF117: 1445 | AG117: =SUM(AG57:AG69) -> 1500 | AH117: =MAX(AH57:AH69) -> 535
D118: 2 | E118: =SUM(E70:E82) -> 11370 | F118: =SUM(F70:F82) -> 13000 | G118: =MAX(G70:G82) -> 1793 | H118: 13403 | I118: =SUM(I70:I82) -> 12500 | J118: =MAX(J70:J82) -> 2474 | K118: 9974 | L118: =SUM(L70:L82) -> 10000 | M118: =MAX(M70:M82) -> 1978 | N118: 9123 | O118: =SUM(O70:O82) -> 10500 | P118: =MAX(P70:P82) -> 2582 | Q118: 5437 | R118: =SUM(R70:R82) -> 6000 | S118: =MAX(S70:S82) -> 1350 | T118: 3041 | U118: =SUM(U70:U82) -> 3000 | V118: =MAX(V70:V82) -> 1626 | W118: 2740 | X118: =SUM(X70:X82) -> 2500 | Y118: =MAX(Y70:Y82) -> 1315 | Z118: 4170 | AA118: =SUM(AA70:AA82) -> 4500 | AB118: =MAX(AB70:AB82) -> 916 | AC118: 2072 | AD118: =SUM(AD70:AD82) -> 2500 | AE118: =MAX(AE70:AE82) -> 901 | AF118: 1931 | AG118: =SUM(AG70:AG82) -> 2000 | AH118: =MAX(AH70:AH82) -> 862
D119: 3 | E119: =SUM(E83:E95) -> 19537 | F119: =SUM(F83:F95) -> 20000 | G119: =MAX(G83:G95) -> 2256 | H119: 16555 | I119: =SUM(I83:I95) -> 18500 | J119: =MAX(J83:J95) -> 2556 | K119: 16251 | L119: =SUM(L83:L95) -> 17000 | M119: =MAX(M83:M95) -> 2230 | N119: 13574 | O119: =SUM(O83:O95) -> 15000 | P119: =MAX(P83:P95) -> 2984 | Q119: 7413 | R119: =SUM(R83:R95) -> 9000 | S119: =MAX(S83:S95) -> 2410 | T119: 3283 | U119: =SUM(U83:U95) -> 3000 | V119: =MAX(V83:V95) -> 1665 | W119: 2959 | X119: =SUM(X83:X95) -> 3000 | Y119: =MAX(Y83:Y95) -> 1374 | Z119: 4622 | AA119: =SUM(AA83:AA95) -> 4000 | AB119: =MAX(AB83:AB95) -> 958 | AC119: 2483 | AD119: =SUM(AD83:AD95) -> 1500 | AE119: =MAX(AE83:AE95) -> 849 | AF119: 1932 | AG119: =SUM(AG83:AG95) -> 2000 | AH119: =MAX(AH83:AH95) -> 798
D120: 4 | E120: =SUM(E96:E108) -> 14734 | F120: =SUM(F96:F108) -> 13000 | G120: =MAX(G96:G108) -> 1799 | H120: 9880 | I120: =SUM(I96:I108) -> 8000 | J120: =MAX(J96:J108) -> 2621 | K120: 12675 | L120: =SUM(L96:L108) -> 11000 | M120: =MAX(M96:M108) -> 2688 | N120: 13575 | O120: =SUM(O96:O108) -> 12000 | P120: =MAX(P96:P108) -> 2726 | Q120: 6686 | R120: =SUM(R96:R108) -> 5000 | S120: =MAX(S96:S108) -> 2605 | T120: 3150 | U120: =SUM(U96:U108) -> 3000 | V120: =MAX(V96:V108) -> 1377 | W120: 2839 | X120: =SUM(X96:X108) -> 3000 | Y120: =MAX(Y96:Y108) -> 964 | Z120: 4504 | AA120: =SUM(AA96:AA108) -> 5000 | AB120: =MAX(AB96:AB108) -> 1062 | AC120: 2355 | AD120: =SUM(AD96:AD108) -> 2500 | AE120: =MAX(AE96:AE108) -> 503 | AF120: 1703 | AG120: =SUM(AG96:AG108) -> 1500 | AH120: =MAX(AH96:AH108) -> 756
D121: tot | E121: =SUM(E117:E120) -> 53241 | F121: =SUM(F117:F120) -> 52500 | H121: =SUM(H117:H120) -> 46469 | I121: =SUM(I117:I120) -> 45500 | K121: =SUM(K117:K120) -> 45449 | L121: =SUM(L117:L120) -> 44500 | N121: =SUM(N117:N120) -> 44505 | O121: =SUM(O117:O120) -> 45000 | Q121: =SUM(Q117:Q120) -> 22742 | R121: =SUM(R117:R120) -> 23000 | T121: =SUM(T117:T120) -> 12070 | U121: =SUM(U117:U120) -> 12000 | W121: =SUM(W117:W120) -> 10880 | X121: =SUM(X117:X120) -> 11000 | Z121: =SUM(Z117:Z120) -> 16998 | AA121: =SUM(AA117:AA120) -> 16500 | AC121: =SUM(AC117:AC120) -> 8515 | AD121: =SUM(AD117:AD120) -> 8000 | AF121: =SUM(AF117:AF120) -> 7011 | AG121: =SUM(AG117:AG120) -> 7000
D123: MINIMUM készlet | G123: 500 | J123: 500 | M123: 250 | P123: 250 | S123: 250 | V123: 250 | Y123: 250 | AB123: 250 | AE123: 200 | AH123: 200
D124: MAXIMUM készlet | G124: 2500 | J124: 3000 | M124: 2000 | P124: 3000 | S124: 2000 | V124: 1500 | Y124: 1250 | AB124: 1250 | AE124: 1000 | AH124: 1000

Sheet mozgóátlag_minősítés
A1: 2021 | C1: 2020-2021 év mozgóátlag szemléltetés | K1: Az eltérések abszolút értékének különbsége
A2: Negyedév | B2: Hét | C2: K (db) | D2: MA1 | E2: MA2 | F2: MA3 | G2: MA4 | H2: MA5 | I2: MA6 | J2: MA7 | K2: abshiba1 | L2: abshiba2 | M2: abshiba3 | N2: abshiba4 | O2: abshiba5 | P2: abshiba6 | Q2: abshiba7
A3: 1 | B3: 1 | C3: 1898 | D3: - | E3: - | F3: - | G3: - | H3: - | I3: - | J3: - | K3: - | L3: - | M3: - | N3: - | O3: - | P3: - | Q3: -
B4: 2 | C4: 1752 | D4: =C3 -> 1898 | E4: - | F4: - | G4: - | H4: - | I4: - | J4: - | K4: =ABS($C4-D4) -> 146 | L4: - | M4: - | N4: - | O4: - | P4: - | Q4: -
B5: 3 | C5: 2550 | D5: =C4 -> 1752 | E5: =AVERAGE(C3:C4) -> 1825 | F5: - | G5: - | H5: - | I5: - | J5: - | K5: =ABS($C5-D5) -> 798 | L5: 725 | M5: - | N5: - | O5: - | P5: - | Q5: - | S5: Jelmagyarázat
B6: 4 | C6: 1826 | D6: 2550 | E6: =AVERAGE(C4:C5) -> 2151 | F6: =AVERAGE(C3:C5) -> 2066.666667 | G6: - | H6: - | I6: - | J6: - | K6: 724 | L6: 325 | M6: 240.6666667 | N6: - | O6: - | P6: - | Q6: -
B7: 5 | C7: 2471 | D7: 1826 | E7: 2188 | F7: =AVERAGE(C4:C6) -> 2042.666667 | G7: =AVERAGE(C3:C6) -> 2006.5 | H7: - | I7: - | J7: - | K7: 645 | L7: 283 | M7: 428.3333333 | N7: 464.5 | O7: - | P7: - | Q7: - | S7: MA1 = | T7: 1 periódusú mozgóátlag
B8: 6 | C8: 1563 | D8: 2471 | E8: 2148.5 | F8: 2282.333333 | G8: =AVERAGE(C4:C7) -> 2149.75 | H8: =AVERAGE(C3:C7) -> 2099.4 | I8: - | J8: - | K8: 908 | L8: 585.5 | M8: 719.3333333 | N8: 586.75 | O8: 536.4 | P8: - | Q8: - | S8: MA2 = | T8: 2 periódusú mozgóátlag
B9: 7 | C9: 2804 | D9: 1563 | E9: 2017 | F9: 1953.333333 | G9: 2102.5 | H9: =AVERAGE(C4:C8) -> 2032.4 | I9: =AVERAGE(C3:C8) -> 2010 | J9: - | K9: 1241 | L9: 787 | M9: 850.6666667 | N9: 701.5 | O9: 771.6 | P9: =ABS($C9-I9) -> 794 | Q9: - | S9: MA3 = | T9: 3 periódusú mozgóátlag
B10: 8 | C10: 2341 | D10: 2804 | E10: 2183.5 | F10: 2279.333333 | G10: 2166 | H10: 2242.8 | I10: =AVERAGE(C4:C9) -> 2161 | J10: =AVERAGE(C3:C9) -> 2123.428571 | K10: 463 | L10: 157.5 | M10: 61.66666667 | N10: 175 | O10: =ABS($C10-H10) -> 98.2 | P10: 180 | Q10: 217.5714286 | S10: MA4 = | T10: 4 periódusú mozgóátlag | AA10: hét | AB10: K (db) | AC10: MA1 | AD10: MA2 | AE10: MA3 | AF10: MA4 | AG10: MA5 | AH10: MA6 | AI10: MA7 | AJ10: vizualizációs okok miatt szerepel
B11: 9 | C11: 2612 | D11: 2341 | E11: 2572.5 | F11: 2236 | G11: 2294.75 | H11: 2201 | I11: 2259.166667 | J11: =AVERAGE(C4:C10) -> 2186.714286 | K11: 271 | L11: 39.5 | M11: 376 | N11: 317.25 | O11: 411 | P11: 352.8333333 | Q11: 425.2857143 | S11: MA5 = | T11: 5 periódusú mozgóátlag | AA11: 8 | AB11: 2341 | AC11: 2804 | AD11: 2183.5 | AE11: 2279.333333 | AF11: 2166 | AG11: 2242.8 | AH11: 2161 | AI11: 2123.428571 | AJ11: 2123.428571
B12: 10 | C12: 1724 | D12: 2612 | E12: 2476.5 | F12: 2585.666667 | G12: 2330 | H12: 2358.2 | I12: 2269.5 | J12: =AVERAGE(C5:C11) -> 2309.571429 | K12: 888 | L12: 752.5 | M12: 861.6666667 | N12: 606 | O12: 634.2 | P12: 545.5 | Q12: 585.5714286 | S12: MA6 = | T12: 6 periódusú mozgóátlag | AA12: 9 | AB12: 2612 | AC12: 2341 | AD12: 2572.5 | AE12: 2236 | AF12: 2294.75 | AG12: 2201 | AH12: 2259.166667 | AI12: 2186.714286 | AJ12: 2186.714286
B13: 11 | C13: 2863 | D13: 1724 | E13: 2168 | F13: 2225.666667 | G13: 2370.25 | H13: 2208.8 | I13: 2252.5 | J13: =AVERAGE(C6:C12) -> 2191.571429 | K13: 1139 | L13: 695 | M13: 637.3333333 | N13: 492.75 | O13: 654.2 | P13: 610.5 | Q13: 671.4285714 | S13: MA7 = | T13: 7 periódusú mozgóátlag | AA13: 10 | AB13: 1724 | AC13: 2612 | AD13: 2476.5 | AE13: 2585.666667 | AF13: 2330 | AG13: 2358.2 | AH13: 2269.5 | AI13: 2309.571429 | AJ13: 2309.571429
B14: 12 | C14: 2578 | D14: 2863 | E14: 2293.5 | F14: 2399.666667 | G14: 2385 | H14: 2468.8 | I14: 2317.833333 | J14: =AVERAGE(C7:C13) -> 2339.714286 | K14: 285 | L14: 284.5 | M14: 178.3333333 | N14: 193 | O14: 109.2 | P14: 260.1666667 | Q14: 238.2857143 | AA14: 11 | AB14: 2863 | AC14: 1724 | AD14: 2168 | AE14: 2225.666667 | AF14: 2370.25 | AG14: 2208.8 | AH14: 2252.5 | AI14: 2191.571429 | AJ14: 2191.571429
B15: 13 | C15: 3454 | D15: 2578 | E15: 2720.5 | F15: 2388.333333 | G15: 2444.25 | H15: 2423.6 | I15: 2487 | J15: 2355 | K15: 876 | L15: 733.5 | M15: 1065.666667 | N15: 1009.75 | O15: 1030.4 | P15: 967 | Q15: 1099 | S15: K = | T15: Raktár készlet | AA15: 12 | AB15: 2578 | AC15: 2863 | AD15: 2293.5 | AE15: 2399.666667 | AF15: 2385 | AG15: 2468.8 | AH15: 2317.833333 | AI15: 2339.714286 | AJ15: 2339.714286
A16: 2 | B16: 14 | C16: 2706 | D16: 3454 | E16: 3016 | F16: 2965 | G16: 2654.75 | H16: 2646.2 | I16: 2595.333333 | J16: 2625.142857 | K16: 748 | L16: 310 | M16: 259 | N16: 51.25 | O16: 59.8 | P16: 110.6666667 | Q16: 80.85714286 | AA16: 13 | AB16: 3454 | AC16: 2578 | AD16: 2720.5 | AE16: 2388.333333 | AF16: 2444.25 | AG16: 2423.6 | AH16: 2487 | AI16: 2355 | AJ16: 2355
B17: 15 | C17: 3110 | D17: 2706 | E17: 3080 | F17: 2912.666667 | G17: 2900.25 | H17: 2665 | I17: 2656.166667 | J17: 2611.142857 | K17: 404 | L17: 30 | M17: 197.3333333 | N17: 209.75 | O17: 445 | P17: 453.8333333 | Q17: 498.8571429 | S17: Az eltérések abszolút értékének különbsége | AA17: 14 | AB17: 2706 | AC17: 3454 | AD17: 3016 | AE17: 2965 | AF17: 2654.75 | AG17: 2646.2 | AH17: 2595.333333 | AI17: 2625.142857 | AJ17: 2625.142857
B18: 16 | C18: 2515 | D18: 3110 | E18: 2908 | F18: 3090 | G18: 2962 | H18: 2942.2 | I18: 2739.166667 | J18: 2721 | K18: 595 | L18: 393 | M18: 575 | N18: 447 | O18: 427.2 | P18: 224.1666667 | Q18: 206 | S18: abshiba1= | T18: abszolút értékű hiba mértéke 1 periódusú mozgóátlagnál | AA18: 15 | AB18: 3110 | AC18: 2706 | AD18: 3080 | AE18: 2912.666667 | AF18: 2900.25 | AG18: 2665 | AH18: 2656.166667 | AI18: 2611.142857 | AJ18: 2611.142857
B19: 17 | C19: 3175 | D19: 2515 | E19: 2812.5 | F19: 2777 | G19: 2946.25 | H19: 2872.6 | I19: 2871 | J19: 2707.142857 | K19: 660 | L19: 362.5 | M19: 398 | N19: 228.75 | O19: 302.4 | P19: 304 | Q19: 467.8571429 | S19: abshiba2= | T19: abszolút értékű hiba mértéke 2 periódusú mozgóátlagnál | AA19: 16 | AB19: 2515 | AC19: 3110 | AD19: 2908 | AE19: 3090 | AF19: 2962 | AG19: 2942.2 | AH19: 2739.166667 | AI19: 2721 | AJ19: 2721
B20: 18 | C20: 2258 | D20: 3175 | E20: 2845 | F20: 2933.333333 | G20: 2876.5 | H20: 2992 | I20: 2923 | J20: 2914.428571 | K20: 917 | L20: 587 | M20: 675.3333333 | N20: 618.5 | O20: 734 | P20: 665 | Q20: 656.4285714 | S20: abshiba3= | T20: abszolút értékű hiba mértéke 3 periódusú mozgóátlagnál | AA20: 17 | AB20: 3175 | AC20: 2515 | AD20: 2812.5 | AE20: 2777 | AF20: 2946.25 | AG20: 2872.6 | AH20: 2871 | AI20: 2707.142857 | AJ20: 2707.142857
B21: 19 | C21: 2544 | D21: 2258 | E21: 2716.5 | F21: 2649.333333 | G21: 2764.5 | H21: 2752.8 | I21: 2869.666667 | J21: 2828 | K21: 286 | L21: 172.5 | M21: 105.3333333 | N21: 220.5 | O21: 208.8 | P21: 325.6666667 | Q21: 284 | S21: abshiba4= | T21: abszolút értékű hiba mértéke 4 periódusú mozgóátlagnál | AA21: 18 | AB21: 2258 | AC21: 3175 | AD21: 2845 | AE21: 2933.333333 | AF21: 2876.5 | AG21: 2992 | AH21: 2923 | AI21: 2914.428571 | AJ21: 2914.428571
B22: 20 | C22: 1281 | D22: 2544 | E22: 2401 | F22: 2659 | G22: 2623 | H22: 2720.4 | I22: 2718 | J22: 2823.142857 | K22: 1263 | L22: 1120 | M22: 1378 | N22: 1342 | O22: 1439.4 | P22: 1437 | Q22: 1542.142857 | S22: abshiba5= | T22: abszolút értékű hiba mértéke 5 periódusú mozgóátlagnál | AA22: 19 | AB22: 2544 | AC22: 2258 | AD22: 2716.5 | AE22: 2649.333333 | AF22: 2764.5 | AG22: 2752.8 | AH22: 2869.666667 | AI22: 2828 | AJ22: 2828
B23: 21 | C23: 1342 | D23: 1281 | E23: 1912.5 | F23: 2027.666667 | G23: 2314.5 | H23: 2354.6 | I23: 2480.5 | J23: 2512.714286 | K23: 61 | L23: 570.5 | M23: 685.6666667 | N23: 972.5 | O23: 1012.6 | P23: 1138.5 | Q23: 1170.714286 | S23: abshiba6= | T23: abszolút értékű hiba mértéke 6 periódusú mozgóátlagnál | AA23: 20 | AB23: 1281 | AC23: 2544 | AD23: 2401 | AE23: 2659 | AF23: 2623 | AG23: 2720.4 | AH23: 2718 | AI23: 2823.142857 | AJ23: 2823.142857
B24: 22 | C24: 601 | D24: 1342 | E24: 1311.5 | F24: 1722.333333 | G24: 1856.25 | H24: 2120 | I24: 2185.833333 | J24: 2317.857143 | K24: 741 | L24: 710.5 | M24: 1121.333333 | N24: 1255.25 | O24: 1519 | P24: 1584.833333 | Q24: 1716.857143 | S24: abshiba7= | T24: abszolút értékű hiba mértéke 7 periódusú mozgóátlagnál | AA24: 21 | AB24: 1342 | AC24: 1281 | AD24: 1912.5 | AE24: 2027.666667 | AF24: 2314.5 | AG24: 2354.6 | AH24: 2480.5 | AI24: 2512.714286 | AJ24: 2512.714286
B25: 23 | C25: 628 | D25: 601 | E25: 971.5 | F25: 1074.666667 | G25: 1442 | H25: 1605.2 | I25: 1866.833333 | J25: 1959.428571 | K25: 27 | L25: 343.5 | M25: 446.6666667 | N25: 814 | O25: 977.2 | P25: 1238.833333 | Q25: 1331.428571 | AA25: 22 | AB25: 601 | AC25: 1342 | AD25: 1311.5 | AE25: 1722.333333 | AF25: 1856.25 | AG25: 2120 | AH25: 2185.833333 | AI25: 2317.857143 | AJ25: 2317.857143
B26: 24 | C26: 302 | D26: 628 | E26: 614.5 | F26: 857 | G26: 963 | H26: 1279.2 | I26: 1442.333333 | J26: 1689.857143 | K26: 326 | L26: 312.5 | M26: 555 | N26: 661 | O26: 977.2 | P26: 1140.333333 | Q26: 1387.857143 | AA26: 23 | AB26: 628 | AC26: 601 | AD26: 971.5 | AE26: 1074.666667 | AF26: 1442 | AG26: 1605.2 | AH26: 1866.833333 | AI26: 1959.428571 | AJ26: 1959.428571
B27: 25 | C27: 1628 | D27: 302 | E27: 465 | F27: 510.3333333 | G27: 718.25 | H27: 830.8 | I27: 1116.333333 | J27: 1279.428571 | K27: 1326 | L27: 1163 | M27: 1117.666667 | N27: 909.75 | O27: 797.2 | P27: 511.6666667 | Q27: 348.5714286 | AA27: 24 | AB27: 302 | AC27: 628 | AD27: 614.5 | AE27: 857 | AF27: 963 | AG27: 1279.2 | AH27: 1442.333333 | AI27: 1689.857143 | AJ27: 1689.857143
B28: 26 | C28: 316 | D28: 1628 | E28: 965 | F28: 852.6666667 | G28: 789.75 | H28: 900.2 | I28: 963.6666667 | J28: 1189.428571 | K28: 1312 | L28: 649 | M28: 536.6666667 | N28: 473.75 | O28: 584.2 | P28: 647.6666667 | Q28: 873.4285714 | AA28: 25 | AB28: 1628 | AC28: 302 | AD28: 465 | AE28: 510.3333333 | AF28: 718.25 | AG28: 830.8 | AH28: 1116.333333 | AI28: 1279.428571 | AJ28: 1279.428571
A29: 3 | B29: 27 | C29: 1366 | D29: 316 | E29: 972 | F29: 748.6666667 | G29: 718.5 | H29: 695 | I29: 802.8333333 | J29: 871.1428571 | K29: 1050 | L29: 394 | M29: 617.3333333 | N29: 647.5 | O29: 671 | P29: 563.1666667 | Q29: 494.8571429 | AA29: 26 | AB29: 316 | AC29: 1628 | AD29: 965 | AE29: 852.6666667 | AF29: 789.75 | AG29: 900.2 | AH29: 963.6666667 | AI29: 1189.428571 | AJ29: 1189.428571
B30: 28 | C30: 1845 | D30: 1366 | E30: 841 | F30: 1103.333333 | G30: 903 | H30: 848 | I30: 806.8333333 | J30: 883.2857143 | K30: 479 | L30: 1004 | M30: 741.6666667 | N30: 942 | O30: 997 | P30: 1038.166667 | Q30: 961.7142857 | AA30: 27 | AB30: 1366 | AC30: 316 | AD30: 972 | AE30: 748.6666667 | AF30: 718.5 | AG30: 695 | AH30: 802.8333333 | AI30: 871.1428571 | AJ30: 871.1428571
B31: 29 | C31: 2074 | D31: 1845 | E31: 1605.5 | F31: 1175.666667 | G31: 1288.75 | H31: 1091.4 | I31: 1014.166667 | J31: 955.1428571 | K31: 229 | L31: 468.5 | M31: 898.3333333 | N31: 785.25 | O31: 982.6 | P31: 1059.833333 | Q31: 1118.857143 | AA31: 28 | AB31: 1845 | AC31: 1366 | AD31: 841 | AE31: 1103.333333 | AF31: 903 | AG31: 848 | AH31: 806.8333333 | AI31: 883.2857143 | AJ31: 883.2857143
B32: 30 | C32: 1359 | D32: 2074 | E32: 1959.5 | F32: 1761.666667 | G32: 1400.25 | H32: 1445.8 | I32: 1255.166667 | J32: 1165.571429 | K32: 715 | L32: 600.5 | M32: 402.6666667 | N32: 41.25 | O32: 86.8 | P32: 103.8333333 | Q32: 193.4285714 | AA32: 29 | AB32: 2074 | AC32: 1845 | AD32: 1605.5 | AE32: 1175.666667 | AF32: 1288.75 | AG32: 1091.4 | AH32: 1014.166667 | AI32: 955.1428571 | AJ32: 955.1428571
B33: 31 | C33: 1523 | D33: 1359 | E33: 1716.5 | F33: 1759.333333 | G33: 1661 | H33: 1392 | I33: 1431.333333 | J33: 1270 | K33: 164 | L33: 193.5 | M33: 236.3333333 | N33: 138 | O33: 131 | P33: 91.66666667 | Q33: 253 | AA33: 30 | AB33: 1359 | AC33: 2074 | AD33: 1959.5 | AE33: 1761.666667 | AF33: 1400.25 | AG33: 1445.8 | AH33: 1255.166667 | AI33: 1165.571429 | AJ33: 1165.571429
B34: 32 | C34: 285 | D34: 1523 | E34: 1441 | F34: 1652 | G34: 1700.25 | H34: 1633.4 | I34: 1413.833333 | J34: 1444.428571 | K34: 1238 | L34: 1156 | M34: 1367 | N34: 1415.25 | O34: 1348.4 | P34: 1128.833333 | Q34: 1159.428571 | AA34: 31 | AB34: 1523 | AC34: 1359 | AD34: 1716.5 | AE34: 1759.333333 | AF34: 1661 | AG34: 1392 | AH34: 1431.333333 | AI34: 1270 | AJ34: 1270
B35: 33 | C35: 285 | D35: 285 | E35: 904 | F35: 1055.666667 | G35: 1310.25 | H35: 1417.2 | I35: 1408.666667 | J35: 1252.571429 | K35: 0 | L35: 619 | M35: 770.6666667 | N35: 1025.25 | O35: 1132.2 | P35: 1123.666667 | Q35: 967.5714286 | AA35: 32 | AB35: 285 | AC35: 1523 | AD35: 1441 | AE35: 1652 | AF35: 1700.25 | AG35: 1633.4 | AH35: 1413.833333 | AI35: 1444.428571 | AJ35: 1444.428571
B36: 34 | C36: 630 | D36: 285 | E36: 285 | F36: 697.6666667 | G36: 863 | H36: 1105.2 | I36: 1228.5 | J36: 1248.142857 | K36: 345 | L36: 345 | M36: 67.66666667 | N36: 233 | O36: 475.2 | P36: 598.5 | Q36: 618.1428571 | AA36: 33 | AB36: 285 | AC36: 285 | AD36: 904 | AE36: 1055.666667 | AF36: 1310.25 | AG36: 1417.2 | AH36: 1408.666667 | AI36: 1252.571429 | AJ36: 1252.571429
B37: 35 | C37: 767 | D37: 630 | E37: 457.5 | F37: 400 | G37: 680.75 | H37: 816.4 | I37: 1026 | J37: 1143 | K37: 137 | L37: 309.5 | M37: 367 | N37: 86.25 | O37: 49.4 | P37: 259 | Q37: 376 | AA37: 34 | AB37: 630 | AC37: 285 | AD37: 285 | AE37: 697.6666667 | AF37: 863 | AG37: 1105.2 | AH37: 1228.5 | AI37: 1248.142857 | AJ37: 1248.142857
B38: 36 | C38: 217 | D38: 767 | E38: 698.5 | F38: 560.6666667 | G38: 491.75 | H38: 698 | I38: 808.1666667 | J38: 989 | K38: 550 | L38: 481.5 | M38: 343.6666667 | N38: 274.75 | O38: 481 | P38: 591.1666667 | Q38: 772 | AA38: 35 | AB38: 767 | AC38: 630 | AD38: 457.5 | AE38: 400 | AF38: 680.75 | AG38: 816.4 | AH38: 1026 | AI38: 1143 | AJ38: 1143
B39: 37 | C39: 545 | D39: 217 | E39: 492 | F39: 538 | G39: 474.75 | H39: 436.8 | I39: 617.8333333 | J39: 723.7142857 | K39: 328 | L39: 53 | M39: 7 | N39: 70.25 | O39: 108.2 | P39: 72.83333333 | Q39: 178.7142857 | AA39: 36 | AB39: 217 | AC39: 767 | AD39: 698.5 | AE39: 560.6666667 | AF39: 491.75 | AG39: 698 | AH39: 808.1666667 | AI39: 989 | AJ39: 989
B40: 38 | C40: 914 | D40: 545 | E40: 381 | F40: 509.6666667 | G40: 539.75 | H40: 488.8 | I40: 454.8333333 | J40: 607.4285714 | K40: 369 | L40: 533 | M40: 404.3333333 | N40: 374.25 | O40: 425.2 | P40: 459.1666667 | Q40: 306.5714286 | AA40: 37 | AB40: 545 | AC40: 217 | AD40: 492 | AE40: 538 | AF40: 474.75 | AG40: 436.8 | AH40: 617.8333333 | AI40: 723.7142857 | AJ40: 723.7142857
B41: 39 | C41: 2253 | D41: 914 | E41: 729.5 | F41: 558.6666667 | G41: 610.75 | H41: 614.6 | I41: 559.6666667 | J41: 520.4285714 | K41: 1339 | L41: 1523.5 | M41: =ABS($C41-F41) -> 1694.333333 | N41: =ABS($C41-G41) -> 1642.25 | O41: =ABS($C41-H41) -> 1638.4 | P41: =ABS($C41-I41) -> 1693.333333 | Q41: 1732.571429 | AA41: 38 | AB41: 914 | AC41: 545 | AD41: 381 | AE41: 509.6666667 | AF41: 539.75 | AG41: 488.8 | AH41: 454.8333333 | AI41: 607.4285714 | AJ41: 607.4285714
A42: 4 | B42: 40 | C42: 1324 | D42: 2253 | E42: 1583.5 | F42: 1237.333333 | G42: 982.25 | H42: 939.2 | I42: 887.6666667 | J42: 801.5714286 | K42: 929 | L42: 259.5 | M42: 86.66666667 | N42: 341.75 | O42: 384.8 | P42: 436.3333333 | Q42: 522.4285714 | AA42: 39 | AB42: 2253 | AC42: 914 | AD42: 729.5 | AE42: 558.6666667 | AF42: 610.75 | AG42: 614.6 | AH42: 559.6666667 | AI42: 520.4285714 | AJ42: 520.4285714
B43: 41 | C43: 940 | D43: 1324 | E43: 1788.5 | F43: 1497 | G43: 1259 | H43: 1050.6 | I43: 1003.333333 | J43: 950 | K43: 384 | L43: 848.5 | M43: 557 | N43: 319 | O43: 110.6 | P43: 63.33333333 | Q43: 10 | AA43: 40 | AB43: 1324 | AC43: 2253 | AD43: 1583.5 | AE43: 1237.333333 | AF43: 982.25 | AG43: 939.2 | AH43: 887.6666667 | AI43: 801.5714286 | AJ43: 801.5714286
B44: 42 | C44: 220 | D44: 940 | E44: 1132 | F44: 1505.666667 | G44: 1357.75 | H44: 1195.2 | I44: 1032.166667 | J44: 994.2857143 | K44: 720 | L44: 912 | M44: 1285.666667 | N44: 1137.75 | O44: 975.2 | P44: 812.1666667 | Q44: 774.2857143 | AA44: 41 | AB44: 940 | AC44: 1324 | AD44: 1788.5 | AE44: 1497 | AF44: 1259 | AG44: 1050.6 | AH44: 1003.333333 | AI44: 950 | AJ44: 950
B45: 43 | C45: 972 | D45: 220 | E45: 580 | F45: 828 | G45: 1184.25 | H45: 1130.2 | I45: 1032.666667 | J45: 916.1428571 | K45: 752 | L45: 392 | M45: 144 | N45: 212.25 | O45: 158.2 | P45: 60.66666667 | Q45: 55.85714286 | AA45: 42 | AB45: 220 | AC45: 940 | AD45: 1132 | AE45: 1505.666667 | AF45: 1357.75 | AG45: 1195.2 | AH45: 1032.166667 | AI45: 994.2857143 | AJ45: 994.2857143
B46: 44 | C46: 1271 | D46: 972 | E46: 596 | F46: 710.6666667 | G46: 864 | H46: 1141.8 | I46: 1103.833333 | J46: 1024 | K46: 299 | L46: 675 | M46: 560.3333333 | N46: 407 | O46: 129.2 | P46: 167.1666667 | Q46: 247 | AA46: 43 | AB46: 972 | AC46: 220 | AD46: 580 | AE46: 828 | AF46: 1184.25 | AG46: 1130.2 | AH46: 1032.666667 | AI46: 916.1428571 | AJ46: 916.1428571
B47: 45 | C47: 999 | D47: 1271 | E47: 1121.5 | F47: 821 | G47: 850.75 | H47: 945.4 | I47: 1163.333333 | J47: 1127.714286 | K47: 272 | L47: 122.5 | M47: 178 | N47: 148.25 | O47: 53.6 | P47: 164.3333333 | Q47: 128.7142857 | AA47: 44 | AB47: 1271 | AC47: 972 | AD47: 596 | AE47: 710.6666667 | AF47: 864 | AG47: 1141.8 | AH47: 1103.833333 | AI47: 1024 | AJ47: 1024
B48: 46 | C48: 1775 | D48: 999 | E48: 1135 | F48: 1080.666667 | G48: 865.5 | H48: 880.4 | I48: 954.3333333 | J48: 1139.857143 | K48: 776 | L48: 640 | M48: 694.3333333 | N48: 909.5 | O48: 894.6 | P48: 820.6666667 | Q48: 635.1428571 | AA48: 45 | AB48: 999 | AC48: 1271 | AD48: 1121.5 | AE48: 821 | AF48: 850.75 | AG48: 945.4 | AH48: 1163.333333 | AI48: 1127.714286 | AJ48: 1127.714286
B49: 47 | C49: 492 | D49: 1775 | E49: 1387 | F49: 1348.333333 | G49: 1254.25 | H49: 1047.4 | I49: 1029.5 | J49: 1071.571429 | K49: 1283 | L49: 895 | M49: 856.3333333 | N49: 762.25 | O49: 555.4 | P49: 537.5 | Q49: 579.5714286 | AA49: 46 | AB49: 1775 | AC49: 999 | AD49: 1135 | AE49: 1080.666667 | AF49: 865.5 | AG49: 880.4 | AH49: 954.3333333 | AI49: 1139.857143 | AJ49: 1139.857143
B50: 48 | C50: 1997 | D50: 492 | E50: 1133.5 | F50: 1088.666667 | G50: 1134.25 | H50: 1101.8 | I50: 954.8333333 | J50: 952.7142857 | K50: 1505 | L50: 863.5 | M50: 908.3333333 | N50: 862.75 | O50: 895.2 | P50: 1042.166667 | Q50: 1044.285714 | AA50: 47 | AB50: 492 | AC50: 1775 | AD50: 1387 | AE50: 1348.333333 | AF50: 1254.25 | AG50: 1047.4 | AH50: 1029.5 | AI50: 1071.571429 | AJ50: 1071.571429
B51: 49 | C51: 1649 | D51: 1997 | E51: 1244.5 | F51: 1421.333333 | G51: 1315.75 | H51: 1306.8 | I51: 1251 | J51: 1103.714286 | K51: 348 | L51: 404.5 | M51: 227.6666667 | N51: 333.25 | O51: 342.2 | P51: 398 | Q51: 545.2857143 | AA51: 48 | AB51: 1997 | AC51: 492 | AD51: 1133.5 | AE51: 1088.666667 | AF51: 1134.25 | AG51: 1101.8 | AH51: 954.8333333 | AI51: 952.7142857 | AJ51: 952.7142857
B52: 50 | C52: 1263 | D52: 1649 | E52: 1823 | F52: 1379.333333 | G52: 1478.25 | H52: 1382.4 | I52: 1363.833333 | J52: 1307.857143 | K52: 386 | L52: 560 | M52: 116.3333333 | N52: 215.25 | O52: 119.4 | P52: 100.8333333 | Q52: 44.85714286 | AA52: 49 | AB52: 1649 | AC52: 1997 | AD52: 1244.5 | AE52: 1421.333333 | AF52: 1315.75 | AG52: 1306.8 | AH52: 1251 | AI52: 1103.714286 | AJ52: 1103.714286
B53: 51 | C53: 1263 | D53: 1263 | E53: 1456 | F53: 1636.333333 | G53: 1350.25 | H53: 1435.2 | I53: 1362.5 | J53: 1349.428571 | K53: 0 | L53: 193 | M53: 373.3333333 | N53: 87.25 | O53: 172.2 | P53: 99.5 | Q53: 86.42857143 | AA53: 50 | AB53: 1263 | AC53: 1649 | AD53: 1823 | AE53: 1379.333333 | AF53: 1478.25 | AG53: 1382.4 | AH53: 1363.833333 | AI53: 1307.857143 | AJ53: 1307.857143
B54: 52 | C54: 1263 | D54: 1263 | E54: 1263 | F54: 1391.666667 | G54: 1543 | H54: 1332.8 | I54: 1406.5 | J54: 1348.285714 | K54: 0 | L54: 0 | M54: 128.6666667 | N54: 280 | O54: 69.8 | P54: 143.5 | Q54: 85.28571429 | AA54: 51 | AB54: 1263 | AC54: 1263 | AD54: 1456 | AE54: 1636.333333 | AF54: 1350.25 | AG54: 1435.2 | AH54: 1362.5 | AI54: 1349.428571 | AJ54: 1349.428571
A55: 1 | B55: 1 | C55: 1183 | D55: 1263 | E55: 1263 | F55: 1263 | G55: 1359.5 | H55: 1487 | I55: 1321.166667 | J55: 1386 | K55: 80 | L55: 80 | M55: 80 | N55: 176.5 | O55: 304 | P55: 138.1666667 | Q55: 203 | AA55: 52 | AB55: 1263 | AC55: 1263 | AD55: 1263 | AE55: 1391.666667 | AF55: 1543 | AG55: 1332.8 | AH55: 1406.5 | AI55: 1348.285714 | AJ55: 1348.285714
B56: 2 | C56: 1011 | D56: 1183 | E56: 1223 | F56: 1236.333333 | G56: 1243 | H56: 1324.2 | I56: 1436.333333 | J56: 1301.428571 | K56: 172 | L56: 212 | M56: 225.3333333 | N56: 232 | O56: 313.2 | P56: 425.3333333 | Q56: 290.4285714 | AA56: 1 | AB56: 1183 | AC56: 1263 | AD56: 1263 | AE56: 1263 | AF56: 1359.5 | AG56: 1487 | AH56: 1321.166667 | AI56: 1386 | AJ56: 1386
B57: 3 | C57: 773 | D57: 1011 | E57: 1097 | F57: 1152.333333 | G57: 1180 | H57: 1196.6 | I57: 1272 | J57: 1375.571429 | K57: 238 | L57: 324 | M57: 379.3333333 | N57: 407 | O57: 423.6 | P57: 499 | Q57: 602.5714286 | AA57: 2 | AB57: 1011 | AC57: 1183 | AD57: 1223 | AE57: 1236.333333 | AF57: 1243 | AG57: 1324.2 | AH57: 1436.333333 | AI57: 1301.428571 | AJ57: 1301.428571
B58: 4 | C58: 1437 | D58: 773 | E58: 892 | F58: 989 | G58: 1057.5 | H58: 1098.6 | I58: 1126 | J58: 1200.714286 | K58: 664 | L58: 545 | M58: 448 | N58: 379.5 | O58: 338.4 | P58: 311 | Q58: 236.2857143 | AA58: 3 | AB58: 773 | AC58: 1011 | AD58: 1097 | AE58: 1152.333333 | AF58: 1180 | AG58: 1196.6 | AH58: 1272 | AI58: 1375.571429 | AJ58: 1375.571429
B59: 5 | C59: 428 | D59: 1437 | E59: 1105 | F59: 1073.666667 | G59: 1101 | H59: 1133.4 | I59: 1155 | J59: 1170.428571 | K59: 1009 | L59: 677 | M59: 645.6666667 | N59: 673 | O59: 705.4 | P59: 727 | Q59: 742.4285714 | AA59: 4 | AB59: 1437 | AC59: 773 | AD59: 892 | AE59: 989 | AF59: 1057.5 | AG59: 1098.6 | AH59: 1126 | AI59: 1200.714286 | AJ59: 1200.714286
B60: 6 | C60: 397 | D60: 428 | E60: 932.5 | F60: 879.3333333 | G60: 912.25 | H60: 966.4 | I60: 1015.833333 | J60: 1051.142857 | K60: 31 | L60: 535.5 | M60: 482.3333333 | N60: 515.25 | O60: 569.4 | P60: 618.8333333 | Q60: 654.1428571 | AA60: 5 | AB60: 428 | AC60: 1437 | AD60: 1105 | AE60: 1073.666667 | AF60: 1101 | AG60: 1133.4 | AH60: 1155 | AI60: 1170.428571 | AJ60: 1170.428571
B61: 7 | C61: 92 | D61: 397 | E61: 412.5 | F61: 754 | G61: 758.75 | H61: 809.2 | I61: 871.5 | J61: 927.4285714 | K61: 305 | L61: 320.5 | M61: 662 | N61: 666.75 | O61: 717.2 | P61: 779.5 | Q61: 835.4285714 | AA61: 6 | AB61: 397 | AC61: 428 | AD61: 932.5 | AE61: 879.3333333 | AF61: 912.25 | AG61: 966.4 | AH61: 1015.833333 | AI61: 1051.142857 | AJ61: 1051.142857
B62: 8 | C62: 1046 | D62: 92 | E62: 244.5 | F62: 305.6666667 | G62: 588.5 | H62: 625.4 | I62: 689.6666667 | J62: 760.1428571 | K62: 954 | L62: 801.5 | M62: 740.3333333 | N62: 457.5 | O62: 420.6 | P62: 356.3333333 | Q62: 285.8571429 | AA62: 7 | AB62: 92 | AC62: 397 | AD62: 412.5 | AE62: 754 | AF62: 758.75 | AG62: 809.2 | AH62: 871.5 | AI62: 927.4285714 | AJ62: 927.4285714
B63: 9 | C63: 186 | D63: 1046 | E63: 569 | F63: 511.6666667 | G63: 490.75 | H63: 680 | I63: 695.5 | J63: 740.5714286 | K63: 860 | L63: 383 | M63: 325.6666667 | N63: 304.75 | O63: 494 | P63: 509.5 | Q63: 554.5714286 | AA63: 8 | AB63: 1046 | AC63: 92 | AD63: 244.5 | AE63: 305.6666667 | AF63: 588.5 | AG63: 625.4 | AH63: 689.6666667 | AI63: 760.1428571 | AJ63: 760.1428571
B64: 10 | C64: 679 | D64: 186 | E64: 616 | F64: 441.3333333 | G64: 430.25 | H64: 429.8 | I64: 597.6666667 | J64: 622.7142857 | K64: 493 | L64: 63 | M64: 237.6666667 | N64: 248.75 | O64: 249.2 | P64: 81.33333333 | Q64: 56.28571429 | AA64: 9 | AB64: 186 | AC64: 1046 | AD64: 569 | AE64: 511.6666667 | AF64: 490.75 | AG64: 680 | AH64: 695.5 | AI64: 740.5714286 | AJ64: 740.5714286
B65: 11 | C65: 253 | D65: 679 | E65: 432.5 | F65: 637 | G65: 500.75 | H65: 480 | I65: 471.3333333 | J65: 609.2857143 | K65: 426 | L65: 179.5 | M65: 384 | N65: 247.75 | O65: 227 | P65: 218.3333333 | Q65: 356.2857143 | AA65: 10 | AB65: 679 | AC65: 186 | AD65: 616 | AE65: 441.3333333 | AF65: 430.25 | AG65: 429.8 | AH65: 597.6666667 | AI65: 622.7142857 | AJ65: 622.7142857
B66: 12 | C66: 899 | D66: 253 | E66: 466 | F66: 372.6666667 | G66: 541 | H66: 451.2 | I66: 442.1666667 | J66: 440.1428571 | K66: 646 | L66: 433 | M66: 526.3333333 | N66: 358 | O66: 447.8 | P66: 456.8333333 | Q66: 458.8571429 | AA66: 11 | AB66: 253 | AC66: 679 | AD66: 432.5 | AE66: 637 | AF66: 500.75 | AG66: 480 | AH66: 471.3333333 | AI66: 609.2857143 | AJ66: 609.2857143
B67: 13 | C67: 163 | D67: 899 | E67: 576 | F67: 610.3333333 | G67: 504.25 | H67: 612.6 | I67: 525.8333333 | J67: 507.4285714 | K67: 736 | L67: 413 | M67: 447.3333333 | N67: 341.25 | O67: 449.6 | P67: 362.8333333 | Q67: 344.4285714 | AA67: 12 | AB67: 899 | AC67: 253 | AD67: 466 | AE67: 372.6666667 | AF67: 541 | AG67: 451.2 | AH67: 442.1666667 | AI67: 440.1428571 | AJ67: 440.1428571
A68: 2 | B68: 14 | C68: 781 | D68: 163 | E68: 531 | F68: 438.3333333 | G68: 498.5 | H68: 436 | I68: 537.6666667 | J68: 474 | K68: 618 | L68: 250 | M68: 342.6666667 | N68: 282.5 | O68: 345 | P68: 243.3333333 | Q68: 307 | AA68: 13 | AB68: 163 | AC68: 899 | AD68: 576 | AE68: 610.3333333 | AF68: 504.25 | AG68: 612.6 | AH68: 525.8333333 | AI68: 507.4285714 | AJ68: 507.4285714
B69: 15 | C69: 78 | D69: =C68 -> 781 | E69: 472 | F69: 614.3333333 | G69: 524 | H69: 555 | I69: 493.5 | J69: 572.4285714 | K69: =ABS($C69-D69) -> 703 | L69: 394 | M69: 536.3333333 | N69: 446 | O69: 477 | P69: 415.5 | Q69: 494.4285714 | AA69: 14 | AB69: 781 | AC69: 163 | AD69: 531 | AE69: 438.3333333 | AF69: 498.5 | AG69: 436 | AH69: 537.6666667 | AI69: 474 | AJ69: 474
B70: 16 | C70: 875 | D70: 78 | E70: =AVERAGE(C68:C69) -> 429.5 | F70: 340.6666667 | G70: 480.25 | H70: 434.8 | I70: 475.5 | J70: 434.1428571 | K70: 797 | L70: 445.5 | M70: 534.3333333 | N70: 394.75 | O70: 440.2 | P70: 399.5 | Q70: 440.8571429 | AA70: 15 | AB70: 78 | AC70: 781 | AD70: 472 | AE70: 614.3333333 | AF70: 524 | AG70: 555 | AH70: 493.5 | AI70: 572.4285714 | AJ70: 572.4285714
B71: 17 | C71: 374 | D71: 875 | E71: 476.5 | F71: =AVERAGE(C68:C70) -> 578 | G71: 474.25 | H71: 559.2 | I71: 508.1666667 | J71: 532.5714286 | K71: 501 | L71: 102.5 | M71: 204 | N71: 100.25 | O71: 185.2 | P71: 134.1666667 | Q71: 158.5714286 | AA71: 16 | AB71: 875 | AC71: 78 | AD71: 429.5 | AE71: 340.6666667 | AF71: 480.25 | AG71: 434.8 | AH71: 475.5 | AI71: 434.1428571 | AJ71: 434.1428571
B72: 18 | C72: 1292 | D72: 374 | E72: 624.5 | F72: 442.3333333 | G72: =AVERAGE(C68:C71) -> 527 | H72: 454.2 | I72: 528.3333333 | J72: 489 | K72: 918 | L72: 667.5 | M72: 849.6666667 | N72: 765 | O72: 837.8 | P72: 763.6666667 | Q72: 803 | AA72: 17 | AB72: 374 | AC72: 875 | AD72: 476.5 | AE72: 578 | AF72: 474.25 | AG72: 559.2 | AH72: 508.1666667 | AI72: 532.5714286 | AJ72: 532.5714286
B73: 19 | C73: 417 | D73: 1292 | E73: 833 | F73: 847 | G73: 654.75 | H73: =AVERAGE(C68:C72) -> 680 | I73: 593.8333333 | J73: 637.4285714 | K73: 875 | L73: 416 | M73: 430 | N73: 237.75 | O73: 263 | P73: 176.8333333 | Q73: 220.4285714 | AA73: 18 | AB73: 1292 | AC73: 374 | AD73: 624.5 | AE73: 442.3333333 | AF73: 527 | AG73: 454.2 | AH73: 528.3333333 | AI73: 489 | AJ73: 489
B74: 20 | C74: 1575 | D74: 417 | E74: 854.5 | F74: 694.3333333 | G74: 739.5 | H74: 607.2 | I74: =AVERAGE(C68:C73) -> 636.1666667 | J74: 568.5714286 | K74: 1158 | L74: 720.5 | M74: 880.6666667 | N74: 835.5 | O74: 967.8 | P74: 938.8333333 | Q74: 1006.428571 | AA74: 19 | AB74: 417 | AC74: 1292 | AD74: 833 | AE74: 847 | AF74: 654.75 | AG74: 680 | AH74: 593.8333333 | AI74: 637.4285714 | AJ74: 637.4285714
B75: 21 | C75: 568 | D75: 1575 | E75: 996 | F75: 1094.666667 | G75: 914.5 | H75: 906.6 | I75: 768.5 | J75: =AVERAGE(C68:C74) -> 770.2857143 | K75: 1007 | L75: 428 | M75: 526.6666667 | N75: 346.5 | O75: 338.6 | P75: 200.5 | Q75: 202.2857143 | AA75: 20 | AB75: 1575 | AC75: 417 | AD75: 854.5 | AE75: 694.3333333 | AF75: 739.5 | AG75: 607.2 | AH75: 636.1666667 | AI75: 568.5714286 | AJ75: 568.5714286
B76: 22 | C76: 1378 | D76: 568 | E76: 1071.5 | F76: 853.3333333 | G76: 963 | H76: 845.2 | I76: 850.1666667 | J76: 739.8571429 | K76: 810 | L76: 306.5 | M76: 524.6666667 | N76: 415 | O76: 532.8 | P76: 527.8333333 | Q76: 638.1428571 | AA76: 21 | AB76: 568 | AC76: 1575 | AD76: 996 | AE76: 1094.666667 | AF76: 914.5 | AG76: 906.6 | AH76: 768.5 | AI76: 770.2857143 | AJ76: 770.2857143
B77: 23 | C77: 230 | D77: 1378 | E77: 973 | F77: 1173.666667 | G77: 984.5 | H77: 1046 | I77: 934 | J77: 925.5714286 | K77: 1148 | L77: 743 | M77: 943.6666667 | N77: 754.5 | O77: 816 | P77: 704 | Q77: 695.5714286 | AA77: 22 | AB77: 1378 | AC77: 568 | AD77: 1071.5 | AE77: 853.3333333 | AF77: 963 | AG77: 845.2 | AH77: 850.1666667 | AI77: 739.8571429 | AJ77: 739.8571429
B78: 24 | C78: 1546 | D78: 230 | E78: 804 | F78: 725.3333333 | G78: 937.75 | H78: 833.6 | I78: 910 | J78: 833.4285714 | K78: 1316 | L78: 742 | M78: 820.6666667 | N78: 608.25 | O78: 712.4 | P78: 636 | Q78: 712.5714286 | AA78: 23 | AB78: 230 | AC78: 1378 | AD78: 973 | AE78: 1173.666667 | AF78: 984.5 | AG78: 1046 | AH78: 934 | AI78: 925.5714286 | AJ78: 925.5714286
B79: 25 | C79: 1341 | D79: 1546 | E79: 888 | F79: 1051.333333 | G79: 930.5 | H79: 1059.4 | I79: 952.3333333 | J79: 1000.857143 | K79: =ABS($C79-D79) -> 205 | L79: 453 | M79: 289.6666667 | N79: 410.5 | O79: 281.6 | P79: 388.6666667 | Q79: 340.1428571 | AA79: 24 | AB79: 1546 | AC79: 230 | AD79: 804 | AE79: 725.3333333 | AF79: 937.75 | AG79: 833.6 | AH79: 910 | AI79: 833.4285714 | AJ79: 833.4285714
B80: 26 | C80: 1793 | D80: 1341 | E80: 1443.5 | F80: 1039 | G80: 1123.75 | H80: 1012.6 | I80: 1106.333333 | J80: 1007.857143 | K80: 452 | L80: 349.5 | M80: 754 | N80: 669.25 | O80: 780.4 | P80: 686.6666667 | Q80: 785.1428571 | AA80: 25 | AB80: 1341 | AC80: 1546 | AD80: 888 | AE80: 1051.333333 | AF80: 930.5 | AG80: 1059.4 | AH80: 952.3333333 | AI80: 1000.857143 | AJ80: 1000.857143
A81: 3 | B81: 27 | C81: 1582 | D81: 1793 | E81: 1567 | F81: 1560 | G81: 1227.5 | H81: 1257.6 | I81: 1142.666667 | J81: 1204.428571 | K81: 211 | L81: =ABS($C81-E81) -> 15 | M81: 22 | N81: =ABS($C81-G81) -> 354.5 | O81: 324.4 | P81: 439.3333333 | Q81: 377.5714286 | AA81: 26 | AB81: 1793 | AC81: 1341 | AD81: 1443.5 | AE81: 1039 | AF81: 1123.75 | AG81: 1012.6 | AH81: 1106.333333 | AI81: 1007.857143 | AJ81: 1007.857143
B82: 28 | C82: 1126 | D82: 1582 | E82: 1687.5 | F82: 1572 | G82: 1565.5 | H82: 1298.4 | I82: 1311.666667 | J82: 1205.428571 | K82: 456 | L82: 561.5 | M82: 446 | N82: 439.5 | O82: 172.4 | P82: 185.6666667 | Q82: 79.42857143 | AA82: 27 | AB82: 1582 | AC82: 1793 | AD82: 1567 | AE82: 1560 | AF82: 1227.5 | AG82: 1257.6 | AH82: 1142.666667 | AI82: 1204.428571 | AJ82: 1204.428571
B83: 29 | C83: 447 | D83: 1126 | E83: 1354 | F83: 1500.333333 | G83: 1460.5 | H83: 1477.6 | I83: 1269.666667 | J83: 1285.142857 | K83: 679 | L83: 907 | M83: 1053.333333 | N83: 1013.5 | O83: 1030.6 | P83: 822.6666667 | Q83: 838.1428571 | AA83: 28 | AB83: 1126 | AC83: 1582 | AD83: 1687.5 | AE83: 1572 | AF83: 1565.5 | AG83: 1298.4 | AH83: 1311.666667 | AI83: 1205.428571 | AJ83: 1205.428571
B84: 30 | C84: 334 | D84: 447 | E84: 786.5 | F84: 1051.666667 | G84: 1237 | H84: 1257.8 | I84: 1305.833333 | J84: 1152.142857 | K84: 113 | L84: 452.5 | M84: 717.6666667 | N84: 903 | O84: 923.8 | P84: 971.8333333 | Q84: 818.1428571 | AA84: 29 | AB84: 447 | AC84: 1126 | AD84: 1354 | AE84: 1500.333333 | AF84: 1460.5 | AG84: 1477.6 | AH84: 1269.666667 | AI84: 1285.142857 | AJ84: 1285.142857
B85: 31 | C85: 1630 | D85: 334 | E85: 390.5 | F85: 635.6666667 | G85: 872.25 | H85: 1056.4 | I85: 1103.833333 | J85: 1167 | K85: 1296 | L85: 1239.5 | M85: 994.3333333 | N85: 757.75 | O85: 573.6 | P85: 526.1666667 | Q85: 463 | AA85: 30 | AB85: 334 | AC85: 447 | AD85: 786.5 | AE85: 1051.666667 | AF85: 1237 | AG85: 1257.8 | AH85: 1305.833333 | AI85: 1152.142857 | AJ85: 1152.142857
B86: 32 | C86: 170 | D86: 1630 | E86: 982 | F86: 803.6666667 | G86: 884.25 | H86: 1023.8 | I86: 1152 | J86: 1179 | K86: 1460 | L86: 812 | M86: 633.6666667 | N86: 714.25 | O86: 853.8 | P86: 982 | Q86: 1009 | AA86: 31 | AB86: 1630 | AC86: 334 | AD86: 390.5 | AE86: 635.6666667 | AF86: 872.25 | AG86: 1056.4 | AH86: 1103.833333 | AI86: 1167 | AJ86: 1167
B87: 33 | C87: 170 | D87: 170 | E87: 900 | F87: 711.3333333 | G87: 645.25 | H87: 741.4 | I87: 881.5 | J87: 1011.714286 | K87: 0 | L87: 730 | M87: 541.3333333 | N87: 475.25 | O87: 571.4 | P87: 711.5 | Q87: 841.7142857 | AA87: 32 | AB87: 170 | AC87: 1630 | AD87: 982 | AE87: 803.6666667 | AF87: 884.25 | AG87: 1023.8 | AH87: 1152 | AI87: 1179 | AJ87: 1179
B88: 34 | C88: 218 | D88: 170 | E88: 170 | F88: 656.6666667 | G88: 576 | H88: 550.2 | I88: 646.1666667 | J88: 779.8571429 | K88: 48 | L88: 48 | M88: 438.6666667 | N88: 358 | O88: 332.2 | P88: 428.1666667 | Q88: 561.8571429 | AA88: 33 | AB88: 170 | AC88: 170 | AD88: 900 | AE88: 711.3333333 | AF88: 645.25 | AG88: 741.4 | AH88: 881.5 | AI88: 1011.714286 | AJ88: 1011.714286
B89: 35 | C89: 110 | D89: 218 | E89: 194 | F89: 186 | G89: 547 | H89: 504.4 | I89: 494.8333333 | J89: 585 | K89: 108 | L89: 84 | M89: 76 | N89: 437 | O89: 394.4 | P89: 384.8333333 | Q89: 475 | AA89: 34 | AB89: 218 | AC89: 170 | AD89: 170 | AE89: 656.6666667 | AF89: 576 | AG89: 550.2 | AH89: 646.1666667 | AI89: 779.8571429 | AJ89: 779.8571429
B90: 36 | C90: 281 | D90: 110 | E90: 164 | F90: 166 | G90: 167 | H90: 459.6 | I90: 438.6666667 | J90: 439.8571429 | K90: 171 | L90: 117 | M90: 115 | N90: 114 | O90: 178.6 | P90: 157.6666667 | Q90: 158.8571429 | AA90: 35 | AB90: 110 | AC90: 218 | AD90: 194 | AE90: 186 | AF90: 547 | AG90: 504.4 | AH90: 494.8333333 | AI90: 585 | AJ90: 585
B91: 37 | C91: 689 | D91: 281 | E91: 195.5 | F91: 203 | G91: 194.75 | H91: 189.8 | I91: 429.8333333 | J91: 416.1428571 | K91: 408 | L91: 493.5 | M91: 486 | N91: 494.25 | O91: 499.2 | P91: 259.1666667 | Q91: 272.8571429 | AA91: 36 | AB91: 281 | AC91: 110 | AD91: 164 | AE91: 166 | AF91: 167 | AG91: 459.6 | AH91: 438.6666667 | AI91: 439.8571429 | AJ91: 439.8571429
B92: 38 | C92: 1445 | D92: 689 | E92: 485 | F92: 360 | G92: 324.5 | H92: 293.6 | I92: 273 | J92: 466.8571429 | K92: 756 | L92: 960 | M92: 1085 | N92: 1120.5 | O92: 1151.4 | P92: 1172 | Q92: 978.1428571 | AA92: 37 | AB92: 689 | AC92: 281 | AD92: 195.5 | AE92: 203 | AF92: 194.75 | AG92: 189.8 | AH92: 429.8333333 | AI92: 416.1428571 | AJ92: 416.1428571
B93: 39 | C93: 2256 | D93: 1445 | E93: 1067 | F93: 805 | G93: 631.25 | H93: 548.6 | I93: 485.5 | J93: 440.4285714 | K93: 811 | L93: 1189 | M93: 1451 | N93: 1624.75 | O93: 1707.4 | P93: 1770.5 | Q93: 1815.571429 | AA93: 38 | AB93: 1445 | AC93: 689 | AD93: 485 | AE93: 360 | AF93: 324.5 | AG93: 293.6 | AH93: 273 | AI93: 466.8571429 | AJ93: 466.8571429
A94: 4 | B94: 40 | C94: 1480 | D94: 2256 | E94: 1850.5 | F94: 1463.333333 | G94: 1167.75 | H94: 956.2 | I94: 833.1666667 | J94: 738.4285714 | K94: 776 | L94: 370.5 | M94: 16.66666667 | N94: 312.25 | O94: 523.8 | P94: 646.8333333 | Q94: 741.5714286 | AA94: 39 | AB94: 2256 | AC94: 1445 | AD94: 1067 | AE94: 805 | AF94: 631.25 | AG94: 548.6 | AH94: 485.5 | AI94: 440.4285714 | AJ94: 440.4285714
B95: 41 | C95: 1457 | D95: 1480 | E95: 1868 | F95: 1727 | G95: 1467.5 | H95: 1230.2 | I95: 1043.5 | J95: 925.5714286 | K95: 23 | L95: 411 | M95: 270 | N95: 10.5 | O95: 226.8 | P95: 413.5 | Q95: 531.4285714 | AA95: 40 | AB95: 1480 | AC95: 2256 | AD95: 1850.5 | AE95: 1463.333333 | AF95: 1167.75 | AG95: 956.2 | AH95: 833.1666667 | AI95: 738.4285714 | AJ95: 738.4285714
B96: 42 | C96: 1427 | D96: 1457 | E96: 1468.5 | F96: 1731 | G96: 1659.5 | H96: 1465.4 | I96: 1268 | J96: 1102.571429 | K96: 30 | L96: 41.5 | M96: 304 | N96: 232.5 | O96: 38.4 | P96: 159 | Q96: 324.4285714 | AA96: 41 | AB96: 1457 | AC96: 1480 | AD96: 1868 | AE96: 1727 | AF96: 1467.5 | AG96: 1230.2 | AH96: 1043.5 | AI96: 925.5714286 | AJ96: 925.5714286
B97: 43 | C97: 1716 | D97: 1427 | E97: 1442 | F97: 1454.666667 | G97: 1655 | H97: 1613 | I97: 1459 | J97: 1290.714286 | K97: 289 | L97: 274 | M97: 261.3333333 | N97: 61 | O97: 103 | P97: 257 | Q97: 425.2857143 | AA97: 42 | AB97: 1427 | AC97: 1457 | AD97: 1468.5 | AE97: 1731 | AF97: 1659.5 | AG97: 1465.4 | AH97: 1268 | AI97: 1102.571429 | AJ97: 1102.571429
B98: 44 | C98: 1799 | D98: 1716 | E98: 1571.5 | F98: 1533.333333 | G98: 1520 | H98: 1667.2 | I98: 1630.166667 | J98: 1495.714286 | K98: 83 | L98: 227.5 | M98: 265.6666667 | N98: 279 | O98: 131.8 | P98: 168.8333333 | Q98: 303.2857143 | AA98: 43 | AB98: 1716 | AC98: 1427 | AD98: 1442 | AE98: 1454.666667 | AF98: 1655 | AG98: 1613 | AH98: 1459 | AI98: 1290.714286 | AJ98: 1290.714286
B99: 45 | C99: 1799 | D99: 1799 | E99: 1757.5 | F99: 1647.333333 | G99: 1599.75 | H99: 1575.8 | I99: 1689.166667 | J99: 1654.285714 | K99: 0 | L99: 41.5 | M99: 151.6666667 | N99: 199.25 | O99: 223.2 | P99: 109.8333333 | Q99: =ABS($C99-J99) -> 144.7142857 | AA99: 44 | AB99: 1799 | AC99: 1716 | AD99: 1571.5 | AE99: 1533.333333 | AF99: 1520 | AG99: 1667.2 | AH99: 1630.166667 | AI99: 1495.714286 | AJ99: 1495.714286
B100: 46 | C100: 165 | D100: 1799 | E100: 1799 | F100: 1771.333333 | G100: 1685.25 | H100: 1639.6 | I100: 1613 | J100: 1704.857143 | K100: 1634 | L100: 1634 | M100: 1606.333333 | N100: 1520.25 | O100: 1474.6 | P100: 1448 | Q100: 1539.857143 | AA100: 45 | AB100: 1799 | AC100: 1799 | AD100: 1757.5 | AE100: 1647.333333 | AF100: 1599.75 | AG100: 1575.8 | AH100: 1689.166667 | AI100: 1654.285714 | AJ100: 1654.285714
B101: 47 | C101: 252 | D101: 165 | E101: 982 | F101: 1254.333333 | G101: 1369.75 | H101: 1381.2 | I101: 1393.833333 | J101: 1406.142857 | K101: 87 | L101: 730 | M101: 1002.333333 | N101: 1117.75 | O101: 1129.2 | P101: 1141.833333 | Q101: 1154.142857 | AA101: 46 | AB101: 165 | AC101: 1799 | AD101: 1799 | AE101: 1771.333333 | AF101: 1685.25 | AG101: 1639.6 | AH101: 1613 | AI101: 1704.857143 | AJ101: 1704.857143
B102: 48 | C102: 1168 | D102: 252 | E102: 208.5 | F102: 738.6666667 | G102: 1003.75 | H102: 1146.2 | I102: 1193 | J102: 1230.714286 | K102: 916 | L102: 959.5 | M102: 429.3333333 | N102: 164.25 | O102: 21.8 | P102: 25 | Q102: 62.71428571 | AA102: 47 | AB102: 252 | AC102: 165 | AD102: 982 | AE102: 1254.333333 | AF102: 1369.75 | AG102: 1381.2 | AH102: 1393.833333 | AI102: 1406.142857 | AJ102: 1406.142857
B103: 49 | C103: 722 | D103: 1168 | E103: 710 | F103: 528.3333333 | G103: 846 | H103: 1036.6 | I103: 1149.833333 | J103: 1189.428571 | K103: 446 | L103: 12 | M103: 193.6666667 | N103: 124 | O103: 314.6 | P103: 427.8333333 | Q103: 467.4285714 | AA103: 48 | AB103: 1168 | AC103: 252 | AD103: 208.5 | AE103: 738.6666667 | AF103: 1003.75 | AG103: 1146.2 | AH103: 1193 | AI103: 1230.714286 | AJ103: 1230.714286
B104: 50 | C104: 522 | D104: 722 | E104: 945 | F104: 714 | G104: 576.75 | H104: 821.2 | I104: 984.1666667 | J104: 1088.714286 | K104: 200 | L104: 423 | M104: 192 | N104: 54.75 | O104: 299.2 | P104: 462.1666667 | Q104: 566.7142857 | AA104: 49 | AB104: 722 | AC104: 1168 | AD104: 710 | AE104: 528.3333333 | AF104: 846 | AG104: 1036.6 | AH104: 1149.833333 | AI104: 1189.428571 | AJ104: 1189.428571
B105: 51 | C105: 522 | D105: 522 | E105: 622 | F105: 804 | G105: 666 | H105: 565.8 | I105: 771.3333333 | J105: 918.1428571 | K105: 0 | L105: 100 | M105: 282 | N105: 144 | O105: 43.8 | P105: 249.3333333 | Q105: 396.1428571 | AA105: 50 | AB105: 522 | AC105: 722 | AD105: 945 | AE105: 714 | AF105: 576.75 | AG105: 821.2 | AH105: 984.1666667 | AI105: 1088.714286 | AJ105: 1088.714286
B106: 52 | C106: 522 | D106: 522 | E106: 522 | F106: 588.6666667 | G106: 733.5 | H106: 637.2 | I106: 558.5 | J106: 735.7142857 | K106: 0 | L106: 0 | M106: 66.66666667 | N106: 211.5 | O106: 115.2 | P106: 36.5 | Q106: 213.7142857 | AA106: 51 | AB106: 522 | AC106: 522 | AD106: 622 | AE106: 804 | AF106: 666 | AG106: 565.8 | AH106: 771.3333333 | AI106: 918.1428571 | AJ106: 918.1428571
C107: - | D107: 522 | E107: 522 | F107: 522 | G107: 572 | H107: 691.2 | I107: 618 | J107: 553.2857143 | AA107: 52 | AB107: 522 | AC107: 522 | AD107: 522 | AE107: 588.6666667 | AF107: 733.5 | AG107: 637.2 | AH107: 558.5 | AI107: 735.7142857 | AJ107: 735.7142857
C108: - | D108: - | E108: =AVERAGE(C106:C107) -> 522 | F108: 522 | G108: 522 | H108: 572 | I108: 691.2 | J108: 618
K110: =MODE(K10:K106) -> 0 | L110: =MODE(L10:L106) -> 394 | M110: =M115 -> 531.8453608 | N110: 407 | O110: 977.2 | P110: =P115 -> 540.0429553 | Q110: 425.2857143 | R110: módusz
K111: =MEDIAN(K10:K106) -> 479 | L111: =MEDIAN(L10:L106) -> 423 | M111: 447.3333333 | N111: 394.75 | O111: 440.2 | P111: 439.3333333 | Q111: 494.4285714 | R111: medián
K112: =STDEV(K10:K106) -> 428.3206628 | L112: =STDEV(L10:L106) -> 347.0773818 | M112: 375.9385356 | N112: 380.6970362 | O112: 401.174127 | P112: 403.5591147 | Q112: 412.3577017 | R112: szórás
K113: =MIN(K10:K106) -> 0 | L113: =MIN(L10:L106) -> 0 | M113: 7 | N113: 10.5 | O113: 21.8 | P113: 25 | Q113: 10 | R113: min
K114: =MAX(K10:K106) -> 1634 | L114: =MAX(L10:L106) -> 1634 | M114: 1694.333333 | N114: 1642.25 | O114: 1707.4 | P114: 1770.5 | Q114: 1815.571429 | R114: max
K115: =AVERAGE(K10:K106) -> 570.185567 | L115: =AVERAGE(L10:L106) -> 491.2525773 | M115: 531.8453608 | N115: 507.2190722 | O115: 534.0597938 | P115: 540.0429553 | Q115: 574.0206186 | R115: átlag

Sheet COCO_elemzés
AD1: Statisztikai mutatók periódusonként
S2: Rangsor | T2: =AE2 -> módusz | U2: medián | V2: szórás | W2: min | X2: max | Y2: átlag | Z2: Y0 | AA2: becslés | AB2: valid | AE2: módusz | AF2: medián | AG2: szórás | AH2: min | AI2: max | AJ2: átlag
S3: MA1 | T3: =RANK(AE3,AE$3:AE$9,1) -> 1 | U3: 6 | V3: 7 | W3: 1 | X3: 1 | Y3: 6 | Z3: 1000 | AA3: =H47 -> 1002.3 | AB3: =IF(K104*K47<=0,1,0) -> 1 | AD3: MA1 | AE3: 0 | AF3: 479 | AG3: 428.3206628 | AH3: 0 | AI3: 1634 | AJ3: 570.185567
S4: MA2 | T4: 2 | U4: 2 | V4: 1 | W4: 1 | X4: 1 | Y4: 1 | Z4: 1000 | AA4: 1015.8 | AB4: =IF(K105*K48<=0,1,0) -> 1 | AD4: MA2 | AE4: 394 | AF4: 423 | AG4: 347.0773818 | AH4: 0 | AI4: 1634 | AJ4: 491.2525773
S5: MA3 | T5: 5 | U5: 5 | V5: 2 | W5: 3 | X5: 4 | Y5: 3 | Z5: 1000 | AA5: 1000.3 | AB5: 1 | AD5: MA3 | AE5: 531.8453608 | AF5: 447.3333333 | AG5: 375.9385356 | AH5: 7 | AI5: 1694.333333 | AJ5: 531.8453608
S6: MA4 | T6: 3 | U6: 1 | V6: 3 | W6: 5 | X6: 3 | Y6: 2 | Z6: 1000 | AA6: 1011.3 | AB6: 1 | AD6: MA4 | AE6: 407 | AF6: 394.75 | AG6: 380.6970362 | AH6: 10.5 | AI6: 1642.25 | AJ6: 507.2190722
S7: MA5 | T7: 7 | U7: 4 | V7: 4 | W7: 6 | X7: 5 | Y7: 4 | Z7: 1000 | AA7: 991.3 | AB7: 1 | AD7: MA5 | AE7: 977.2 | AF7: 440.2 | AG7: 401.174127 | AH7: 21.8 | AI7: 1707.4 | AJ7: 534.0597938
S8: MA6 | T8: 6 | U8: 3 | V8: 5 | W8: 7 | X8: 6 | Y8: 5 | Z8: 1000 | AA8: 990.3 | AB8: 1 | AD8: MA6 | AE8: 540.0429553 | AF8: 439.3333333 | AG8: 403.5591147 | AH8: 25 | AI8: 1770.5 | AJ8: 540.0429553
S9: MA7 | T9: 4 | U9: 7 | V9: 6 | W9: 4 | X9: 7 | Y9: 7 | Z9: 1000 | AA9: 988.8 | AB9: 1 | AD9: MA7 | AE9: 425.2857143 | AF9: 494.4285714 | AG9: 412.3577017 | AH9: 10 | AI9: 1815.571429 | AJ9: 574.0206186
AE10: módusz | AF10: medián | AG10: szórás | AH10: min | AI10: max | AJ10: átlag
AD11: irány | AE11: 1 | AF11: 1 | AG11: 1 | AH11: 1 | AI11: 1 | AJ11: 1
A17: Azonosító: | B17: 2776281 | C17: Objektumok: | D17: 7 | E17: Attribútumok: | F17: 6 | G17: Lépcsôk: | H17: 7 | I17: Eltolás: | J17: 0 | K17: Leírás: | L17: COCO Y0: 2776281
A19: Rangsor | B19: X(A1) | C19: X(A2) | D19: X(A3) | E19: X(A4) | F19: X(A5) | G19: X(A6) | H19: Y(A7) | K19: Inverz rangsor | L19: módusz | M19: medián | N19: szórás | O19: min | P19: max | Q19: átlag | R19: Y0
A20: O1 | B20: 1 | C20: 6 | D20: 7 | E20: 1 | F20: 1 | G20: 6 | H20: 1000 | K20: MA1 | L20: =$D$17+1-B20 -> 7 | M20: 2 | N20: 1 | O20: 7 | P20: 7 | Q20: 2 | R20: =H20 -> 1000
A21: O2 | B21: 2 | C21: 2 | D21: 1 | E21: 1 | F21: 1 | G21: 1 | H21: 1000 | K21: MA2 | L21: 6 | M21: 6 | N21: 7 | O21: 7 | P21: 7 | Q21: 7 | R21: 1000
A22: O3 | B22: 5 | C22: 5 | D22: 2 | E22: 3 | F22: 4 | G22: 3 | H22: 1000 | K22: MA3 | L22: 3 | M22: 3 | N22: 6 | O22: 5 | P22: 4 | Q22: 5 | R22: 1000
A23: O4 | B23: 3 | C23: 1 | D23: 3 | E23: 5 | F23: 3 | G23: 2 | H23: 1000 | K23: MA4 | L23: 5 | M23: 7 | N23: 5 | O23: 3 | P23: 5 | Q23: 6 | R23: 1000
A24: O5 | B24: 7 | C24: 4 | D24: 4 | E24: 6 | F24: 5 | G24: 4 | H24: 1000 | K24: MA5 | L24: 1 | M24: 4 | N24: 4 | O24: 2 | P24: 3 | Q24: 4 | R24: 1000
A25: O6 | B25: 6 | C25: 3 | D25: 5 | E25: 7 | F25: 6 | G25: 5 | H25: 1000 | K25: MA6 | L25: 2 | M25: 5 | N25: 3 | O25: 1 | P25: 2 | Q25: 3 | R25: 1000
A26: O7 | B26: 4 | C26: 7 | D26: 6 | E26: 4 | F26: 7 | G26: 7 | H26: 1000 | K26: MA7 | L26: 4 | M26: 1 | N26: 2 | O26: 4 | P26: 1 | Q26: 1 | R26: 1000
A28: Lépcsôk(1) | B28: X(A1) | C28: X(A2) | D28: X(A3) | E28: X(A4) | F28: X(A5) | G28: X(A6)
A29: S1 | B29: (988.3+988.3)/(2)=988.25 | C29: (15+6)/(2)=10.5 | D29: (6+996.3)/(2)=501.15 | E29: (6+6)/(2)=6 | F29: (6+6)/(2)=6 | G29: (6+6)/(2)=6
A30: S2 | B30: (973.2+10)/(2)=491.6 | C30: (5+5)/(2)=5 | D30: (5+995.3)/(2)=500.15 | E30: (5+5)/(2)=5 | F30: (5+5)/(2)=5 | G30: (5+5)/(2)=5
A31: S3 | B31: (972.2+9)/(2)=490.6 | C31: (4+4)/(2)=4 | D31: (4+994.3)/(2)=499.15 | E31: (4+4)/(2)=4 | F31: (4+4)/(2)=4 | G31: (4+4)/(2)=4
A32: S4 | B32: (971.2+8)/(2)=489.6 | C32: (3+3)/(2)=3 | D32: (3+993.3)/(2)=498.15 | E32: (3+3)/(2)=3 | F32: (3+3)/(2)=3 | G32: (3+3)/(2)=3
A33: S5 | B33: (970.2+4)/(2)=487.1 | C33: (2+2)/(2)=2 | D33: (2+992.3)/(2)=497.15 | E33: (2+2)/(2)=2 | F33: (2+2)/(2)=2 | G33: (2+2)/(2)=2
A34: S6 | B34: (969.2+3)/(2)=486.1 | C34: (1+1)/(2)=1 | D34: (1+991.3)/(2)=496.15 | E34: (1+1)/(2)=1 | F34: (1+1)/(2)=1 | G34: (1+1)/(2)=1
A35: S7 | B35: (968.2+0)/(2)=484.1 | C35: (0+0)/(2)=0 | D35: (0+0)/(2)=0 | E35: (0+0)/(2)=0 | F35: (0+0)/(2)=0 | G35: (0+0)/(2)=0
A37: Lépcsôk(2) | B37: X(A1) | C37: X(A2) | D37: X(A3) | E37: X(A4) | F37: X(A5) | G37: X(A6)
A38: S1 | B38: 988.3 | C38: 10.5 | D38: 501.1 | E38: 6 | F38: 6 | G38: 6
A39: S2 | B39: 491.6 | C39: 5 | D39: 500.1 | E39: 5 | F39: 5 | G39: 5
A40: S3 | B40: 490.6 | C40: 4 | D40: 499.1 | E40: 4 | F40: 4 | G40: 4
A41: S4 | B41: 489.6 | C41: 3 | D41: 498.1 | E41: 3 | F41: 3 | G41: 3
A42: S5 | B42: 487.1 | C42: 2 | D42: 497.1 | E42: 2 | F42: 2 | G42: 2
A43: S6 | B43: 486.1 | C43: 1 | D43: 496.1 | E43: 1 | F43: 1 | G43: 1
A44: S7 | B44: 484.1 | C44: 0 | D44: 0 | E44: 0 | F44: 0 | G44: 0
A46: COCO:Y0 | B46: módusz | C46: medián | D46: szórás | E46: min | F46: max | G46: átlag | H46: Becslés | I46: Y0 | J46: Delta | K46: Delta/Tény
A47: MA1 | B47: 988.3 | C47: 1 | D47: 0 | E47: 6 | F47: 6 | G47: 1 | H47: 1002.3 | I47: 1000 | J47: -2.3 | K47: -0.23
A48: MA2 | B48: 491.6 | C48: 5 | D48: 501.1 | E48: 6 | F48: 6 | G48: 6 | H48: 1015.8 | I48: 1000 | J48: -15.8 | K48: -1.58
A49: MA3 | B49: 487.1 | C49: 2 | D49: 500.1 | E49: 4 | F49: 3 | G49: 4 | H49: 1000.3 | I49: 1000 | J49: -0.3 | K49: -0.03
A50: MA4 | B50: 490.6 | C50: 10.5 | D50: 499.1 | E50: 2 | F50: 4 | G50: 5 | H50: 1011.3 | I50: 1000 | J50: -11.3 | K50: -1.13
A51: MA5 | B51: 484.1 | C51: 3 | D51: 498.1 | E51: 1 | F51: 2 | G51: 3 | H51: 991.3 | I51: 1000 | J51: 8.7 | K51: 0.87
A52: MA6 | B52: 486.1 | C52: 4 | D52: 497.1 | E52: 0 | F52: 1 | G52: 2 | H52: 990.3 | I52: 1000 | J52: 9.7 | K52: 0.97
A53: MA7 | B53: 489.6 | C53: 0 | D53: 496.1 | E53: 3 | F53: 0 | G53: 0 | H53: 988.8 | I53: 1000 | J53: 11.2 | K53: 1.12
A55: S1 összeg: | B55: 1517.9
A56: S7 összeg: | B56: 484.1
A57: Becslés összeg: | B57: 7000.1
A58: Tény összeg: | B58: 7000
A59: Tény-becslés eltérés: | B59: 0.1
A60: Tény négyzetösszeg:
A61: Becslés négyzetösszeg:
A62: Négyzetösszeg hiba: | B62: 0
A64: Open url
A66: Maximális memória használat: 1.35 Mb
A67: A futtatás idôtartama: 0.06 mp (0 p)
A74: Azonosító: | B74: 2535897 | C74: Objektumok: | D74: 7 | E74: Attribútumok: | F74: 6 | G74: Lépcsôk: | H74: 7 | I74: Eltolás: | J74: 0 | K74: Leírás: | L74: COCO Y0: 2535897
A76: Rangsor | B76: X(A1) | C76: X(A2) | D76: X(A3) | E76: X(A4) | F76: X(A5) | G76: X(A6) | H76: Y(A7)
A77: O1 | B77: 7 | C77: 2 | D77: 1 | E77: 7 | F77: 7 | G77: 2 | H77: 1000
A78: O2 | B78: 6 | C78: 6 | D78: 7 | E78: 7 | F78: 7 | G78: 7 | H78: 1000
A79: O3 | B79: 3 | C79: 3 | D79: 6 | E79: 5 | F79: 4 | G79: 5 | H79: 1000
A80: O4 | B80: 5 | C80: 7 | D80: 5 | E80: 3 | F80: 5 | G80: 6 | H80: 1000
A81: O5 | B81: 1 | C81: 4 | D81: 4 | E81: 2 | F81: 3 | G81: 4 | H81: 1000
A82: O6 | B82: 2 | C82: 5 | D82: 3 | E82: 1 | F82: 2 | G82: 3 | H82: 1000
A83: O7 | B83: 4 | C83: 1 | D83: 2 | E83: 4 | F83: 1 | G83: 1 | H83: 1000
A85: Lépcsôk(1) | B85: X(A1) | C85: X(A2) | D85: X(A3) | E85: X(A4) | F85: X(A5) | G85: X(A6)
A86: S1 | B86: (11+992.7)/(2)=501.85 | C86: (974.8+15)/(2)=494.85 | D86: (19+978.8)/(2)=498.85 | E86: (6+6)/(2)=6 | F86: (6+6)/(2)=6 | G86: (6+6)/(2)=6
A87: S2 | B87: (8+991.7)/(2)=499.85 | C87: (973.8+14)/(2)=493.85 | D87: (5+5)/(2)=5 | E87: (5+5)/(2)=5 | F87: (5+5)/(2)=5 | G87: (5+5)/(2)=5
A88: S3 | B88: (7+990.7)/(2)=498.85 | C88: (972.8+13)/(2)=492.9 | D88: (4+4)/(2)=4 | E88: (4+4)/(2)=4 | F88: (4+4)/(2)=4 | G88: (4+4)/(2)=4
A89: S4 | B89: (3+989.7)/(2)=496.35 | C89: (971.8+12)/(2)=491.9 | D89: (3+3)/(2)=3 | E89: (3+3)/(2)=3 | F89: (3+3)/(2)=3 | G89: (3+3)/(2)=3
A90: S5 | B90: (2+988.7)/(2)=495.35 | C90: (970.8+11)/(2)=490.9 | D90: (2+2)/(2)=2 | E90: (2+2)/(2)=2 | F90: (2+2)/(2)=2 | G90: (2+2)/(2)=2
A91: S6 | B91: (1+987.7)/(2)=494.35 | C91: (969.8+10)/(2)=489.9 | D91: (1+1)/(2)=1 | E91: (1+1)/(2)=1 | F91: (1+1)/(2)=1 | G91: (1+1)/(2)=1
A92: S7 | B92: (0+0)/(2)=0 | C92: (968.8+0)/(2)=484.4 | D92: (0+0)/(2)=0 | E92: (0+0)/(2)=0 | F92: (0+0)/(2)=0 | G92: (0+0)/(2)=0
A94: Lépcsôk(2) | B94: X(A1) | C94: X(A2) | D94: X(A3) | E94: X(A4) | F94: X(A5) | G94: X(A6)
A95: S1 | B95: 501.9 | C95: 494.9 | D95: 498.9 | E95: 6 | F95: 6 | G95: 6
A96: S2 | B96: 499.9 | C96: 493.9 | D96: 5 | E96: 5 | F96: 5 | G96: 5
A97: S3 | B97: 498.9 | C97: 492.9 | D97: 4 | E97: 4 | F97: 4 | G97: 4
A98: S4 | B98: 496.4 | C98: 491.9 | D98: 3 | E98: 3 | F98: 3 | G98: 3
A99: S5 | B99: 495.4 | C99: 490.9 | D99: 2 | E99: 2 | F99: 2 | G99: 2
A100: S6 | B100: 494.4 | C100: 489.9 | D100: 1 | E100: 1 | F100: 1 | G100: 1
A101: S7 | B101: 0 | C101: 484.4 | D101: 0 | E101: 0 | F101: 0 | G101: 0
A103: COCO:Y0 | B103: módusz | C103: medián | D103: szórás | E103: min | F103: max | G103: átlag | H103: Becslés | I103: Y0 | J103: Delta | K103: Delta/Tény
A104: MA1 | B104: 0 | C104: 493.9 | D104: 498.9 | E104: 0 | F104: 0 | G104: 5 | H104: 997.7 | I104: 1000 | J104: 2.3 | K104: 0.23
A105: MA2 | B105: 494.4 | C105: 489.9 | D105: 0 | E105: 0 | F105: 0 | G105: 0 | H105: 984.3 | I105: 1000 | J105: 15.7 | K105: 1.57
A106: MA3 | B106: 498.9 | C106: 492.9 | D106: 1 | E106: 2 | F106: 3 | G106: 2 | H106: 999.7 | I106: 1000 | J106: 0.3 | K106: 0.03
A107: MA4 | B107: 495.4 | C107: 484.4 | D107: 2 | E107: 4 | F107: 2 | G107: 1 | H107: 988.7 | I107: 1000 | J107: 11.3 | K107: 1.13
A108: MA5 | B108: 501.9 | C108: 491.9 | D108: 3 | E108: 5 | F108: 4 | G108: 3 | H108: 1008.7 | I108: 1000 | J108: -8.7 | K108: -0.87
A109: MA6 | B109: 499.9 | C109: 490.9 | D109: 4 | E109: 6 | F109: 5 | G109: 4 | H109: 1009.7 | I109: 1000 | J109: -9.7 | K109: -0.97
A110: MA7 | B110: 496.4 | C110: 494.9 | D110: 5 | E110: 3 | F110: 6 | G110: 6 | H110: 1011.2 | I110: 1000 | J110: -11.2 | K110: -1.12
A112: S1 összeg: | B112: 1513.7
A113: S7 összeg: | B113: 484.4
A114: Becslés összeg: | B114: 7000
A115: Tény összeg: | B115: 7000
A116: Tény-becslés eltérés: | B116: 0
A117: Tény négyzetösszeg:
A118: Becslés négyzetösszeg:
A119: Négyzetösszeg hiba: | B119: 0
A121: Open url
A123: Maximális memória használat: 1.35 Mb
A124: A futtatás idôtartama: 0.03 mp (0 p)

Sheet metrikák_összehasonlítása
A1: Statisztikai mutatók periódusonként
B2: módusz | C2: medián | D2: szórás | E2: min | F2: max | G2: átlag
A3: MA1 | B3: 0 | C3: 479 | D3: 428.3206628 | E3: 0 | F3: 1634 | G3: 570.185567
A4: MA2 | B4: 394 | C4: 423 | D4: 347.0773818 | E4: 0 | F4: 1634 | G4: 491.2525773
A5: MA3 | B5: 531.8453608 | C5: 447.3333333 | D5: 375.9385356 | E5: 7 | F5: 1694.333333 | G5: 531.8453608
A6: MA4 | B6: 407 | C6: 394.75 | D6: 380.6970362 | E6: 10.5 | F6: 1642.25 | G6: 507.2190722
A7: MA5 | B7: 977.2 | C7: 440.2 | D7: 401.174127 | E7: 21.8 | F7: 1707.4 | G7: 534.0597938
A8: MA6 | B8: 540.0429553 | C8: 439.3333333 | D8: 403.5591147 | E8: 25 | F8: 1770.5 | G8: 540.0429553
A9: MA7 | B9: 425.2857143 | C9: 494.4285714 | D9: 412.3577017 | E9: 10 | F9: 1815.571429 | G9: 574.0206186

Sheet mozgóátlag_minősítés_alternatív
A1: 2020-2021 év mozgóátlag szemléltetés | K1: Az eltérések abszolút értékének különbsége
A2: Negyedév | B2: Hét | C2: K (db) | D2: MA1 | E2: MA2 | F2: MA3 | G2: MA4 | H2: MA5 | I2: MA6 | J2: MA7 | K2: abshiba1 | L2: abshiba2 | M2: abshiba3 | N2: abshiba4 | O2: abshiba5 | P2: abshiba6 | Q2: abshiba7
A3: 1 | B3: 1 | C3: 1898 | D3: - | E3: - | F3: - | G3: - | H3: - | I3: - | J3: - | K3: - | L3: - | M3: - | N3: - | O3: - | P3: - | Q3: -
B4: 2 | C4: 1752 | D4: =C3 -> 1898 | E4: - | F4: - | G4: - | H4: - | I4: - | J4: - | K4: =ABS(C4-D4) -> 146 | L4: - | M4: - | N4: - | O4: - | P4: - | Q4: -
B5: 3 | C5: 2550 | D5: =C4 -> 1752 | E5: =AVERAGE(C3:C4) -> 1825 | F5: - | G5: - | H5: - | I5: - | J5: - | K5: 798 | L5: =ABS(D5-E5) -> 73 | M5: - | N5: - | O5: - | P5: - | Q5: - | S5: Jelmagyarázat
B6: 4 | C6: 1826 | D6: 2550 | E6: =AVERAGE(C4:C5) -> 2151 | F6: =AVERAGE(C3:C5) -> 2066.666667 | G6: - | H6: - | I6: - | J6: - | K6: 724 | L6: 399 | M6: =ABS(E6-F6) -> 84.33333333 | N6: - | O6: - | P6: - | Q6: -
B7: 5 | C7: 2471 | D7: 1826 | E7: 2188 | F7: =AVERAGE(C4:C6) -> 2042.666667 | G7: =AVERAGE(C3:C6) -> 2006.5 | H7: - | I7: - | J7: - | K7: 645 | L7: 362 | M7: 145.3333333 | N7: =ABS(F7-G7) -> 36.16666667 | O7: - | P7: - | Q7: - | S7: MA1 = | T7: 1 periódusú mozgóátlag
B8: 6 | C8: 1563 | D8: 2471 | E8: 2148.5 | F8: 2282.333333 | G8: =AVERAGE(C4:C7) -> 2149.75 | H8: =AVERAGE(C3:C7) -> 2099.4 | I8: - | J8: - | K8: 908 | L8: 322.5 | M8: 133.8333333 | N8: 132.5833333 | O8: =ABS(G8-H8) -> 50.35 | P8: - | Q8: - | S8: MA2 = | T8: 2 periódusú mozgóátlag
B9: 7 | C9: 2804 | D9: 1563 | E9: 2017 | F9: 1953.333333 | G9: 2102.5 | H9: =AVERAGE(C4:C8) -> 2032.4 | I9: =AVERAGE(C3:C8) -> 2010 | J9: - | K9: 1241 | L9: 454 | M9: 63.66666667 | N9: 149.1666667 | O9: 70.1 | P9: =ABS(H9-I9) -> 22.4 | Q9: - | S9: MA3 = | T9: 3 periódusú mozgóátlag
B10: 8 | C10: 2341 | D10: 2804 | E10: 2183.5 | F10: 2279.333333 | G10: 2166 | H10: 2242.8 | I10: =AVERAGE(C4:C9) -> 2161 | J10: =AVERAGE(C3:C9) -> 2123.428571 | K10: 463 | L10: 620.5 | M10: 95.83333333 | N10: 113.3333333 | O10: 76.8 | P10: 81.8 | Q10: =ABS(I10-J10) -> 37.57142857 | S10: MA4 = | T10: 4 periódusú mozgóátlag
B11: 9 | C11: 2612 | D11: 2341 | E11: 2572.5 | F11: 2236 | G11: 2294.75 | H11: 2201 | I11: 2259.166667 | J11: =AVERAGE(C4:C10) -> 2186.714286 | K11: 271 | L11: 231.5 | M11: 336.5 | N11: 58.75 | O11: 93.75 | P11: 58.16666667 | Q11: 72.45238095 | S11: MA5 = | T11: 5 periódusú mozgóátlag
B12: 10 | C12: 1724 | D12: 2612 | E12: 2476.5 | F12: 2585.666667 | G12: 2330 | H12: 2358.2 | I12: 2269.5 | J12: 2309.571429 | K12: 888 | L12: 135.5 | M12: 109.1666667 | N12: 255.6666667 | O12: 28.2 | P12: 88.7 | Q12: 40.07142857 | S12: MA6 = | T12: 6 periódusú mozgóátlag
B13: 11 | C13: 2863 | D13: 1724 | E13: 2168 | F13: 2225.666667 | G13: 2370.25 | H13: 2208.8 | I13: 2252.5 | J13: 2191.571429 | K13: 1139 | L13: 444 | M13: 57.66666667 | N13: 144.5833333 | O13: 161.45 | P13: 43.7 | Q13: 60.92857143 | S13: MA7 = | T13: 7 periódusú mozgóátlag
B14: 12 | C14: 2578 | D14: 2863 | E14: 2293.5 | F14: 2399.666667 | G14: 2385 | H14: 2468.8 | I14: 2317.833333 | J14: 2339.714286 | K14: 285 | L14: 569.5 | M14: 106.1666667 | N14: 14.66666667 | O14: 83.8 | P14: 150.9666667 | Q14: 21.88095238
B15: 13 | C15: 3454 | D15: 2578 | E15: 2720.5 | F15: 2388.333333 | G15: 2444.25 | H15: 2423.6 | I15: 2487 | J15: 2355 | K15: 876 | L15: 142.5 | M15: 332.1666667 | N15: 55.91666667 | O15: 20.65 | P15: 63.4 | Q15: 132 | S15: K = | T15: Raktár készlet
A16: 2 | B16: 14 | C16: 2706 | D16: 3454 | E16: 3016 | F16: 2965 | G16: 2654.75 | H16: 2646.2 | I16: 2595.333333 | J16: 2625.142857 | K16: 748 | L16: 438 | M16: 51 | N16: 310.25 | O16: 8.55 | P16: 50.86666667 | Q16: 29.80952381
B17: 15 | C17: 3110 | D17: 2706 | E17: 3080 | F17: 2912.666667 | G17: 2900.25 | H17: 2665 | I17: 2656.166667 | J17: 2611.142857 | K17: 404 | L17: 374 | M17: 167.3333333 | N17: 12.41666667 | O17: 235.25 | P17: 8.833333333 | Q17: 45.02380952 | S17: Az eltérések abszolút értékének különbsége
B18: 16 | C18: 2515 | D18: 3110 | E18: 2908 | F18: 3090 | G18: 2962 | H18: 2942.2 | I18: 2739.166667 | J18: 2721 | K18: 595 | L18: 202 | M18: 182 | N18: 128 | O18: 19.8 | P18: 203.0333333 | Q18: 18.16666667 | S18: abshiba1= | T18: abszolút értékű hiba mértéke 1 periódusú mozgóátlagnál
B19: 17 | C19: 3175 | D19: 2515 | E19: 2812.5 | F19: 2777 | G19: 2946.25 | H19: 2872.6 | I19: 2871 | J19: 2707.142857 | K19: 660 | L19: 297.5 | M19: 35.5 | N19: 169.25 | O19: 73.65 | P19: 1.6 | Q19: 163.8571429 | S19: abshiba2= | T19: abszolút értékű hiba mértéke 2 periódusú mozgóátlagnál
B20: 18 | C20: 2258 | D20: 3175 | E20: 2845 | F20: 2933.333333 | G20: 2876.5 | H20: 2992 | I20: 2923 | J20: 2914.428571 | K20: 917 | L20: 330 | M20: 88.33333333 | N20: 56.83333333 | O20: 115.5 | P20: 69 | Q20: 8.571428571 | S20: abshiba3= | T20: abszolút értékű hiba mértéke 3 periódusú mozgóátlagnál
B21: 19 | C21: 2544 | D21: 2258 | E21: 2716.5 | F21: 2649.333333 | G21: 2764.5 | H21: 2752.8 | I21: 2869.666667 | J21: 2828 | K21: 286 | L21: 458.5 | M21: 67.16666667 | N21: 115.1666667 | O21: 11.7 | P21: 116.8666667 | Q21: 41.66666667 | S21: abshiba4= | T21: abszolút értékű hiba mértéke 4 periódusú mozgóátlagnál
B22: 20 | C22: 1281 | D22: 2544 | E22: 2401 | F22: 2659 | G22: 2623 | H22: 2720.4 | I22: 2718 | J22: 2823.142857 | K22: 1263 | L22: 143 | M22: 258 | N22: 36 | O22: 97.4 | P22: 2.4 | Q22: 105.1428571 | S22: abshiba5= | T22: abszolút értékű hiba mértéke 5 periódusú mozgóátlagnál
B23: 21 | C23: 1342 | D23: 1281 | E23: 1912.5 | F23: 2027.666667 | G23: 2314.5 | H23: 2354.6 | I23: 2480.5 | J23: 2512.714286 | K23: 61 | L23: 631.5 | M23: 115.1666667 | N23: 286.8333333 | O23: 40.1 | P23: 125.9 | Q23: 32.21428571 | S23: abshiba6= | T23: abszolút értékű hiba mértéke 6 periódusú mozgóátlagnál
B24: 22 | C24: 601 | D24: 1342 | E24: 1311.5 | F24: 1722.333333 | G24: 1856.25 | H24: 2120 | I24: 2185.833333 | J24: 2317.857143 | K24: 741 | L24: 30.5 | M24: 410.8333333 | N24: 133.9166667 | O24: 263.75 | P24: 65.83333333 | Q24: 132.0238095 | S24: abshiba7= | T24: abszolút értékű hiba mértéke 7 periódusú mozgóátlagnál
B25: 23 | C25: 628 | D25: 601 | E25: 971.5 | F25: 1074.666667 | G25: 1442 | H25: 1605.2 | I25: 1866.833333 | J25: 1959.428571 | K25: 27 | L25: 370.5 | M25: 103.1666667 | N25: 367.3333333 | O25: 163.2 | P25: 261.6333333 | Q25: 92.5952381
B26: 24 | C26: 302 | D26: 628 | E26: 614.5 | F26: 857 | G26: 963 | H26: 1279.2 | I26: 1442.333333 | J26: 1689.857143 | K26: 326 | L26: 13.5 | M26: 242.5 | N26: 106 | O26: 316.2 | P26: 163.1333333 | Q26: 247.5238095
B27: 25 | C27: 1628 | D27: 302 | E27: 465 | F27: 510.3333333 | G27: 718.25 | H27: 830.8 | I27: 1116.333333 | J27: 1279.428571 | K27: 1326 | L27: 163 | M27: 45.33333333 | N27: 207.9166667 | O27: 112.55 | P27: 285.5333333 | Q27: 163.0952381
B28: 26 | C28: 316 | D28: 1628 | E28: 965 | F28: 852.6666667 | G28: 789.75 | H28: 900.2 | I28: 963.6666667 | J28: 1189.428571 | K28: 1312 | L28: 663 | M28: 112.3333333 | N28: 62.91666667 | O28: 110.45 | P28: 63.46666667 | Q28: 225.7619048
A29: 3 | B29: 27 | C29: 1366 | D29: 316 | E29: 972 | F29: 748.6666667 | G29: 718.5 | H29: 695 | I29: 802.8333333 | J29: 871.1428571 | K29: 1050 | L29: 656 | M29: 223.3333333 | N29: 30.16666667 | O29: 23.5 | P29: 107.8333333 | Q29: 68.30952381
B30: 28 | C30: 1845 | D30: 1366 | E30: 841 | F30: 1103.333333 | G30: 903 | H30: 848 | I30: 806.8333333 | J30: 883.2857143 | K30: 479 | L30: 525 | M30: 262.3333333 | N30: 200.3333333 | O30: 55 | P30: 41.16666667 | Q30: 76.45238095
B31: 29 | C31: 2074 | D31: 1845 | E31: 1605.5 | F31: 1175.666667 | G31: 1288.75 | H31: 1091.4 | I31: 1014.166667 | J31: 955.1428571 | K31: 229 | L31: 239.5 | M31: 429.8333333 | N31: 113.0833333 | O31: 197.35 | P31: 77.23333333 | Q31: 59.02380952
B32: 30 | C32: 1359 | D32: 2074 | E32: 1959.5 | F32: 1761.666667 | G32: 1400.25 | H32: 1445.8 | I32: 1255.166667 | J32: 1165.571429 | K32: 715 | L32: 114.5 | M32: 197.8333333 | N32: 361.4166667 | O32: 45.55 | P32: 190.6333333 | Q32: 89.5952381
B33: 31 | C33: 1523 | D33: 1359 | E33: 1716.5 | F33: 1759.333333 | G33: 1661 | H33: 1392 | I33: 1431.333333 | J33: 1270 | K33: 164 | L33: 357.5 | M33: 42.83333333 | N33: 98.33333333 | O33: 269 | P33: 39.33333333 | Q33: 161.3333333
B34: 32 | C34: 285 | D34: 1523 | E34: 1441 | F34: 1652 | G34: 1700.25 | H34: 1633.4 | I34: 1413.833333 | J34: 1444.428571 | K34: 1238 | L34: 82 | M34: 211 | N34: 48.25 | O34: 66.85 | P34: 219.5666667 | Q34: 30.5952381
B35: 33 | C35: 285 | D35: 285 | E35: 904 | F35: 1055.666667 | G35: 1310.25 | H35: 1417.2 | I35: 1408.666667 | J35: 1252.571429 | K35: 0 | L35: 619 | M35: 151.6666667 | N35: 254.5833333 | O35: 106.95 | P35: 8.533333333 | Q35: 156.0952381
B36: 34 | C36: 630 | D36: 285 | E36: 285 | F36: 697.6666667 | G36: 863 | H36: 1105.2 | I36: 1228.5 | J36: 1248.142857 | K36: =ABS(C36-D36) -> 345 | L36: 0 | M36: 412.6666667 | N36: 165.3333333 | O36: 242.2 | P36: 123.3 | Q36: 19.64285714
B37: 35 | C37: 767 | D37: 630 | E37: 457.5 | F37: 400 | G37: 680.75 | H37: 816.4 | I37: 1026 | J37: 1143 | K37: 137 | L37: =ABS(D37-E37) -> 172.5 | M37: 57.5 | N37: 280.75 | O37: 135.65 | P37: 209.6 | Q37: 117
B38: 36 | C38: 217 | D38: 767 | E38: 698.5 | F38: 560.6666667 | G38: 491.75 | H38: 698 | I38: 808.1666667 | J38: 989 | K38: 550 | L38: 68.5 | M38: =ABS(E38-F38) -> 137.8333333 | N38: 68.91666667 | O38: 206.25 | P38: 110.1666667 | Q38: 180.8333333
B39: 37 | C39: 545 | D39: 217 | E39: 492 | F39: 538 | G39: 474.75 | H39: 436.8 | I39: 617.8333333 | J39: 723.7142857 | K39: 328 | L39: 275 | M39: 46 | N39: =ABS(F39-G39) -> 63.25 | O39: 37.95 | P39: 181.0333333 | Q39: 105.8809524
B40: 38 | C40: 914 | D40: 545 | E40: 381 | F40: 509.6666667 | G40: 539.75 | H40: 488.8 | I40: 454.8333333 | J40: 607.4285714 | K40: 369 | L40: 164 | M40: 128.6666667 | N40: 30.08333333 | O40: =ABS(G40-H40) -> 50.95 | P40: 33.96666667 | Q40: 152.5952381
B41: 39 | C41: 2253 | D41: 914 | E41: 729.5 | F41: 558.6666667 | G41: 610.75 | H41: 614.6 | I41: 559.6666667 | J41: 520.4285714 | K41: 1339 | L41: 184.5 | M41: 170.8333333 | N41: 52.08333333 | O41: 3.85 | P41: =ABS(H41-I41) -> 54.93333333 | Q41: 39.23809524
A42: 4 | B42: 40 | C42: 1324 | D42: 2253 | E42: 1583.5 | F42: 1237.333333 | G42: 982.25 | H42: 939.2 | I42: 887.6666667 | J42: 801.5714286 | K42: 929 | L42: 669.5 | M42: 346.1666667 | N42: 255.0833333 | O42: 43.05 | P42: 51.53333333 | Q42: =ABS(I42-J42) -> 86.0952381
B43: 41 | C43: 940 | D43: 1324 | E43: 1788.5 | F43: 1497 | G43: 1259 | H43: 1050.6 | I43: 1003.333333 | J43: 950 | K43: 384 | L43: 464.5 | M43: 291.5 | N43: 238 | O43: 208.4 | P43: 47.26666667 | Q43: 53.33333333
B44: 42 | C44: 220 | D44: 940 | E44: 1132 | F44: 1505.666667 | G44: 1357.75 | H44: 1195.2 | I44: 1032.166667 | J44: 994.2857143 | K44: 720 | L44: 192 | M44: 373.6666667 | N44: 147.9166667 | O44: 162.55 | P44: 163.0333333 | Q44: 37.88095238
B45: 43 | C45: 972 | D45: 220 | E45: 580 | F45: 828 | G45: 1184.25 | H45: 1130.2 | I45: 1032.666667 | J45: 916.1428571 | K45: 752 | L45: 360 | M45: 248 | N45: 356.25 | O45: 54.05 | P45: 97.53333333 | Q45: 116.5238095
B46: 44 | C46: 1271 | D46: 972 | E46: 596 | F46: 710.6666667 | G46: 864 | H46: 1141.8 | I46: 1103.833333 | J46: 1024 | K46: 299 | L46: 376 | M46: 114.6666667 | N46: 153.3333333 | O46: 277.8 | P46: 37.96666667 | Q46: 79.83333333
B47: 45 | C47: 999 | D47: 1271 | E47: 1121.5 | F47: 821 | G47: 850.75 | H47: 945.4 | I47: 1163.333333 | J47: 1127.714286 | K47: 272 | L47: 149.5 | M47: 300.5 | N47: 29.75 | O47: 94.65 | P47: 217.9333333 | Q47: 35.61904762
B48: 46 | C48: 1775 | D48: 999 | E48: 1135 | F48: 1080.666667 | G48: 865.5 | H48: 880.4 | I48: 954.3333333 | J48: 1139.857143 | K48: 776 | L48: 136 | M48: 54.33333333 | N48: 215.1666667 | O48: 14.9 | P48: 73.93333333 | Q48: 185.5238095
B49: 47 | C49: 492 | D49: 1775 | E49: 1387 | F49: 1348.333333 | G49: 1254.25 | H49: 1047.4 | I49: 1029.5 | J49: 1071.571429 | K49: 1283 | L49: 388 | M49: 38.66666667 | N49: 94.08333333 | O49: 206.85 | P49: 17.9 | Q49: 42.07142857
B50: 48 | C50: 1997 | D50: 492 | E50: 1133.5 | F50: 1088.666667 | G50: 1134.25 | H50: 1101.8 | I50: 954.8333333 | J50: 952.7142857 | K50: 1505 | L50: 641.5 | M50: 44.83333333 | N50: 45.58333333 | O50: 32.45 | P50: 146.9666667 | Q50: 2.119047619
B51: 49 | C51: 1649 | D51: 1997 | E51: 1244.5 | F51: 1421.333333 | G51: 1315.75 | H51: 1306.8 | I51: 1251 | J51: 1103.714286 | K51: 348 | L51: 752.5 | M51: 176.8333333 | N51: 105.5833333 | O51: 8.95 | P51: 55.8 | Q51: 147.2857143
B52: 50 | C52: 1263 | D52: 1649 | E52: 1823 | F52: 1379.333333 | G52: 1478.25 | H52: 1382.4 | I52: 1363.833333 | J52: 1307.857143 | K52: 386 | L52: 174 | M52: 443.6666667 | N52: 98.91666667 | O52: 95.85 | P52: 18.56666667 | Q52: 55.97619048
B53: 51 | C53: 1263 | D53: 1263 | E53: 1456 | F53: 1636.333333 | G53: 1350.25 | H53: 1435.2 | I53: 1362.5 | J53: 1349.428571 | K53: 0 | L53: 193 | M53: 180.3333333 | N53: 286.0833333 | O53: 84.95 | P53: 72.7 | Q53: 13.07142857
B54: 52 | C54: 1263 | D54: 1263 | E54: 1263 | F54: 1391.666667 | G54: 1543 | H54: 1332.8 | I54: 1406.5 | J54: 1348.285714 | K54: 0 | L54: 0 | M54: 128.6666667 | N54: 151.3333333 | O54: 210.2 | P54: 73.7 | Q54: 58.21428571
A55: 1 | B55: 1 | C55: 1183 | D55: =C54 -> 1263 | E55: =AVERAGE(C53:C54) -> 1263 | F55: =AVERAGE(C52:C54) -> 1263 | G55: =AVERAGE(C51:C54) -> 1359.5 | H55: =AVERAGE(C50:C54) -> 1487 | I55: =AVERAGE(C49:C54) -> 1321.166667 | J55: =AVERAGE(C48:C54) -> 1386 | K55: 80 | L55: 0 | M55: 0 | N55: 96.5 | O55: 127.5 | P55: 165.8333333 | Q55: 64.83333333
B56: 2 | C56: 1011 | D56: 1183 | E56: =AVERAGE(C54:C55) -> 1223 | F56: =AVERAGE(C53:C55) -> 1236.333333 | G56: =AVERAGE(C52:C55) -> 1243 | H56: =AVERAGE(C51:C55) -> 1324.2 | I56: 1436.333333 | J56: 1301.428571 | K56: 172 | L56: 40 | M56: 13.33333333 | N56: 6.666666667 | O56: 81.2 | P56: 112.1333333 | Q56: 134.9047619
B57: 3 | C57: 773 | D57: 1011 | E57: 1097 | F57: =AVERAGE(C54:C56) -> 1152.333333 | G57: =AVERAGE(C53:C56) -> 1180 | H57: =AVERAGE(C52:C56) -> 1196.6 | I57: 1272 | J57: 1375.571429 | K57: 238 | L57: 86 | M57: 55.33333333 | N57: 27.66666667 | O57: 16.6 | P57: 75.4 | Q57: 103.5714286
B58: 4 | C58: 1437 | D58: 773 | E58: 892 | F58: 989 | G58: =AVERAGE(C54:C57) -> 1057.5 | H58: =AVERAGE(C53:C57) -> 1098.6 | I58: 1126 | J58: 1200.714286 | K58: 664 | L58: 119 | M58: 97 | N58: 68.5 | O58: 41.1 | P58: 27.4 | Q58: 74.71428571
B59: 5 | C59: 428 | D59: 1437 | E59: 1105 | F59: 1073.666667 | G59: 1101 | H59: =AVERAGE(C54:C58) -> 1133.4 | I59: 1155 | J59: 1170.428571 | K59: 1009 | L59: 332 | M59: 31.33333333 | N59: 27.33333333 | O59: 32.4 | P59: 21.6 | Q59: 15.42857143
B60: 6 | C60: 397 | D60: 428 | E60: 932.5 | F60: 879.3333333 | G60: 912.25 | H60: 966.4 | I60: 1015.833333 | J60: 1051.142857 | K60: 31 | L60: 504.5 | M60: 53.16666667 | N60: 32.91666667 | O60: 54.15 | P60: 49.43333333 | Q60: 35.30952381
B61: 7 | C61: 92 | D61: 397 | E61: 412.5 | F61: 754 | G61: 758.75 | H61: 809.2 | I61: 871.5 | J61: 927.4285714 | K61: 305 | L61: 15.5 | M61: 341.5 | N61: 4.75 | O61: 50.45 | P61: 62.3 | Q61: 55.92857143
B62: 8 | C62: 1046 | D62: 92 | E62: 244.5 | F62: 305.6666667 | G62: 588.5 | H62: 625.4 | I62: 689.6666667 | J62: =AVERAGE(C55:C61) -> 760.1428571 | K62: 954 | L62: 152.5 | M62: 61.16666667 | N62: 282.8333333 | O62: 36.9 | P62: 64.26666667 | Q62: 70.47619048
B63: 9 | C63: 186 | D63: 1046 | E63: 569 | F63: 511.6666667 | G63: 490.75 | H63: 680 | I63: 695.5 | J63: 740.5714286 | K63: 860 | L63: 477 | M63: 57.33333333 | N63: 20.91666667 | O63: 189.25 | P63: 15.5 | Q63: 45.07142857
B64: 10 | C64: 679 | D64: 186 | E64: 616 | F64: 441.3333333 | G64: 430.25 | H64: 429.8 | I64: 597.6666667 | J64: 622.7142857 | K64: 493 | L64: 430 | M64: 174.6666667 | N64: 11.08333333 | O64: 0.45 | P64: 167.8666667 | Q64: 25.04761905
B65: 11 | C65: 253 | D65: 679 | E65: 432.5 | F65: 637 | G65: 500.75 | H65: 480 | I65: 471.3333333 | J65: 609.2857143 | K65: 426 | L65: 246.5 | M65: 204.5 | N65: 136.25 | O65: 20.75 | P65: 8.666666667 | Q65: 137.952381
B66: 12 | C66: 899 | D66: 253 | E66: 466 | F66: 372.6666667 | G66: 541 | H66: 451.2 | I66: 442.1666667 | J66: 440.1428571 | K66: 646 | L66: 213 | M66: 93.33333333 | N66: 168.3333333 | O66: 89.8 | P66: 9.033333333 | Q66: 2.023809524
B67: 13 | C67: 163 | D67: 899 | E67: 576 | F67: 610.3333333 | G67: 504.25 | H67: 612.6 | I67: 525.8333333 | J67: 507.4285714 | K67: 736 | L67: 323 | M67: 34.33333333 | N67: 106.0833333 | O67: 108.35 | P67: 86.76666667 | Q67: 18.4047619
A68: 2 | B68: 14 | C68: 781 | D68: 163 | E68: 531 | F68: 438.3333333 | G68: 498.5 | H68: 436 | I68: 537.6666667 | J68: 474 | K68: =ABS(C68-D68) -> 618 | L68: 368 | M68: 92.66666667 | N68: 60.16666667 | O68: 62.5 | P68: 101.6666667 | Q68: 63.66666667
B69: 15 | C69: 78 | D69: =C68 -> 781 | E69: 472 | F69: 614.3333333 | G69: 524 | H69: 555 | I69: 493.5 | J69: 572.4285714 | K69: 703 | L69: =ABS(D69-E69) -> 309 | M69: 142.3333333 | N69: 90.33333333 | O69: 31 | P69: 61.5 | Q69: 78.92857143
B70: 16 | C70: 875 | D70: 78 | E70: =AVERAGE(C68:C69) -> 429.5 | F70: 340.6666667 | G70: 480.25 | H70: 434.8 | I70: 475.5 | J70: 434.1428571 | K70: 797 | L70: 351.5 | M70: =ABS(E70-F70) -> 88.83333333 | N70: 139.5833333 | O70: 45.45 | P70: 40.7 | Q70: 41.35714286
B71: 17 | C71: 374 | D71: 875 | E71: 476.5 | F71: =AVERAGE(C68:C70) -> 578 | G71: 474.25 | H71: 559.2 | I71: 508.1666667 | J71: 532.5714286 | K71: 501 | L71: 398.5 | M71: 101.5 | N71: =ABS(F71-G71) -> 103.75 | O71: 84.95 | P71: 51.03333333 | Q71: 24.4047619
B72: 18 | C72: 1292 | D72: 374 | E72: 624.5 | F72: 442.3333333 | G72: =AVERAGE(C68:C71) -> 527 | H72: 454.2 | I72: 528.3333333 | J72: 489 | K72: 918 | L72: 250.5 | M72: 182.1666667 | N72: 84.66666667 | O72: =ABS(G72-H72) -> 72.8 | P72: 74.13333333 | Q72: 39.33333333
B73: 19 | C73: 417 | D73: 1292 | E73: 833 | F73: 847 | G73: 654.75 | H73: =AVERAGE(C68:C72) -> 680 | I73: 593.8333333 | J73: 637.4285714 | K73: 875 | L73: 459 | M73: 14 | N73: 192.25 | O73: 25.25 | P73: =ABS(H73-I73) -> 86.16666667 | Q73: 43.5952381
B74: 20 | C74: 1575 | D74: 417 | E74: 854.5 | F74: 694.3333333 | G74: 739.5 | H74: 607.2 | I74: =AVERAGE(C68:C73) -> 636.1666667 | J74: 568.5714286 | K74: 1158 | L74: 437.5 | M74: 160.1666667 | N74: 45.16666667 | O74: 132.3 | P74: 28.96666667 | Q74: =ABS(I74-J74) -> 67.5952381
B75: 21 | C75: 568 | D75: 1575 | E75: 996 | F75: 1094.666667 | G75: 914.5 | H75: 906.6 | I75: 768.5 | J75: 770.2857143 | K75: 1007 | L75: 579 | M75: 98.66666667 | N75: 180.1666667 | O75: 7.9 | P75: 138.1 | Q75: 1.785714286
B76: 22 | C76: 1378 | D76: 568 | E76: 1071.5 | F76: 853.3333333 | G76: 963 | H76: 845.2 | I76: 850.1666667 | J76: 739.8571429 | K76: 810 | L76: 503.5 | M76: 218.1666667 | N76: 109.6666667 | O76: 117.8 | P76: 4.966666667 | Q76: 110.3095238
B77: 23 | C77: 230 | D77: 1378 | E77: 973 | F77: 1173.666667 | G77: 984.5 | H77: 1046 | I77: 934 | J77: 925.5714286 | K77: 1148 | L77: 405 | M77: 200.6666667 | N77: 189.1666667 | O77: 61.5 | P77: 112 | Q77: 8.428571429
B78: 24 | C78: 1546 | D78: 230 | E78: 804 | F78: 725.3333333 | G78: 937.75 | H78: 833.6 | I78: 910 | J78: 833.4285714 | K78: 1316 | L78: 574 | M78: 78.66666667 | N78: 212.4166667 | O78: 104.15 | P78: 76.4 | Q78: 76.57142857
B79: 25 | C79: 1341 | D79: 1546 | E79: 888 | F79: 1051.333333 | G79: 930.5 | H79: 1059.4 | I79: 952.3333333 | J79: 1000.857143 | K79: 205 | L79: 658 | M79: 163.3333333 | N79: 120.8333333 | O79: 128.9 | P79: 107.0666667 | Q79: 48.52380952
B80: 26 | C80: 1793 | D80: 1341 | E80: 1443.5 | F80: 1039 | G80: 1123.75 | H80: 1012.6 | I80: 1106.333333 | J80: 1007.857143 | K80: 452 | L80: 102.5 | M80: 404.5 | N80: 84.75 | O80: 111.15 | P80: 93.73333333 | Q80: 98.47619048
A81: 3 | B81: 27 | C81: 1582 | D81: 1793 | E81: 1567 | F81: 1560 | G81: 1227.5 | H81: 1257.6 | I81: 1142.666667 | J81: 1204.428571 | K81: 211 | L81: 226 | M81: 7 | N81: 332.5 | O81: 30.1 | P81: 114.9333333 | Q81: 61.76190476
B82: 28 | C82: 1126 | D82: 1582 | E82: 1687.5 | F82: 1572 | G82: 1565.5 | H82: 1298.4 | I82: 1311.666667 | J82: 1205.428571 | K82: 456 | L82: 105.5 | M82: 115.5 | N82: 6.5 | O82: 267.1 | P82: 13.26666667 | Q82: 106.2380952
B83: 29 | C83: 447 | D83: 1126 | E83: 1354 | F83: 1500.333333 | G83: 1460.5 | H83: 1477.6 | I83: 1269.666667 | J83: 1285.142857 | K83: 679 | L83: 228 | M83: 146.3333333 | N83: 39.83333333 | O83: 17.1 | P83: 207.9333333 | Q83: 15.47619048
B84: 30 | C84: 334 | D84: 447 | E84: 786.5 | F84: 1051.666667 | G84: 1237 | H84: 1257.8 | I84: 1305.833333 | J84: 1152.142857 | K84: 113 | L84: 339.5 | M84: 265.1666667 | N84: 185.3333333 | O84: 20.8 | P84: 48.03333333 | Q84: 153.6904762
B85: 31 | C85: 1630 | D85: 334 | E85: 390.5 | F85: 635.6666667 | G85: 872.25 | H85: 1056.4 | I85: 1103.833333 | J85: 1167 | K85: 1296 | L85: 56.5 | M85: 245.1666667 | N85: 236.5833333 | O85: 184.15 | P85: 47.43333333 | Q85: 63.16666667
B86: 32 | C86: 170 | D86: 1630 | E86: 982 | F86: 803.6666667 | G86: 884.25 | H86: 1023.8 | I86: 1152 | J86: 1179 | K86: 1460 | L86: 648 | M86: 178.3333333 | N86: 80.58333333 | O86: 139.55 | P86: 128.2 | Q86: 27
B87: 33 | C87: 170 | D87: 170 | E87: 900 | F87: 711.3333333 | G87: 645.25 | H87: 741.4 | I87: 881.5 | J87: 1011.714286 | K87: 0 | L87: 730 | M87: 188.6666667 | N87: 66.08333333 | O87: 96.15 | P87: 140.1 | Q87: 130.2142857
B88: 34 | C88: 218 | D88: 170 | E88: 170 | F88: 656.6666667 | G88: 576 | H88: 550.2 | I88: 646.1666667 | J88: 779.8571429 | K88: 48 | L88: 0 | M88: 486.6666667 | N88: 80.66666667 | O88: 25.8 | P88: 95.96666667 | Q88: 133.6904762
B89: 35 | C89: 110 | D89: 218 | E89: 194 | F89: 186 | G89: 547 | H89: 504.4 | I89: 494.8333333 | J89: 585 | K89: 108 | L89: 24 | M89: 8 | N89: 361 | O89: 42.6 | P89: 9.566666667 | Q89: 90.16666667
B90: 36 | C90: 281 | D90: 110 | E90: 164 | F90: 166 | G90: 167 | H90: 459.6 | I90: 438.6666667 | J90: 439.8571429 | K90: 171 | L90: 54 | M90: 2 | N90: 1 | O90: 292.6 | P90: 20.93333333 | Q90: 1.19047619
B91: 37 | C91: 689 | D91: 281 | E91: 195.5 | F91: 203 | G91: 194.75 | H91: 189.8 | I91: 429.8333333 | J91: 416.1428571 | K91: 408 | L91: 85.5 | M91: 7.5 | N91: 8.25 | O91: 4.95 | P91: 240.0333333 | Q91: 13.69047619
B92: 38 | C92: 1445 | D92: 689 | E92: 485 | F92: 360 | G92: 324.5 | H92: 293.6 | I92: 273 | J92: 466.8571429 | K92: 756 | L92: 204 | M92: 125 | N92: 35.5 | O92: 30.9 | P92: 20.6 | Q92: 193.8571429
B93: 39 | C93: 2256 | D93: 1445 | E93: 1067 | F93: 805 | G93: 631.25 | H93: 548.6 | I93: 485.5 | J93: 440.4285714 | K93: 811 | L93: 378 | M93: 262 | N93: 173.75 | O93: 82.65 | P93: 63.1 | Q93: 45.07142857
A94: 4 | B94: 40 | C94: 1480 | D94: 2256 | E94: 1850.5 | F94: 1463.333333 | G94: 1167.75 | H94: 956.2 | I94: 833.1666667 | J94: 738.4285714 | K94: 776 | L94: 405.5 | M94: 387.1666667 | N94: 295.5833333 | O94: 211.55 | P94: 123.0333333 | Q94: 94.73809524
B95: 41 | C95: 1457 | D95: 1480 | E95: 1868 | F95: 1727 | G95: 1467.5 | H95: 1230.2 | I95: 1043.5 | J95: 925.5714286 | K95: 23 | L95: 388 | M95: 141 | N95: 259.5 | O95: 237.3 | P95: 186.7 | Q95: 117.9285714
B96: 42 | C96: 1427 | D96: 1457 | E96: 1468.5 | F96: 1731 | G96: 1659.5 | H96: 1465.4 | I96: 1268 | J96: 1102.571429 | K96: 30 | L96: 11.5 | M96: 262.5 | N96: 71.5 | O96: 194.1 | P96: 197.4 | Q96: 165.4285714
B97: 43 | C97: 1716 | D97: 1427 | E97: 1442 | F97: 1454.666667 | G97: 1655 | H97: 1613 | I97: 1459 | J97: 1290.714286 | K97: 289 | L97: 15 | M97: 12.66666667 | N97: 200.3333333 | O97: 42 | P97: 154 | Q97: 168.2857143
B98: 44 | C98: 1799 | D98: 1716 | E98: 1571.5 | F98: 1533.333333 | G98: 1520 | H98: 1667.2 | I98: 1630.166667 | J98: 1495.714286 | K98: 83 | L98: 144.5 | M98: 38.16666667 | N98: 13.33333333 | O98: 147.2 | P98: 37.03333333 | Q98: 134.452381
B99: 45 | C99: 1799 | D99: 1799 | E99: 1757.5 | F99: 1647.333333 | G99: 1599.75 | H99: 1575.8 | I99: 1689.166667 | J99: 1654.285714 | K99: 0 | L99: 41.5 | M99: 110.1666667 | N99: 47.58333333 | O99: 23.95 | P99: 113.3666667 | Q99: 34.88095238
B100: 46 | C100: 165 | D100: 1799 | E100: 1799 | F100: 1771.333333 | G100: 1685.25 | H100: 1639.6 | I100: 1613 | J100: 1704.857143 | K100: =ABS(C100-D100) -> 1634 | L100: 0 | M100: 27.66666667 | N100: 86.08333333 | O100: 45.65 | P100: 26.6 | Q100: 91.85714286
B101: 47 | C101: 252 | D101: 165 | E101: 982 | F101: 1254.333333 | G101: 1369.75 | H101: 1381.2 | I101: 1393.833333 | J101: 1406.142857 | K101: 87 | L101: =ABS(D101-E101) -> 817 | M101: 272.3333333 | N101: 115.4166667 | O101: 11.45 | P101: 12.63333333 | Q101: 12.30952381
B102: 48 | C102: 1168 | D102: 252 | E102: 208.5 | F102: 738.6666667 | G102: 1003.75 | H102: 1146.2 | I102: 1193 | J102: 1230.714286 | K102: 916 | L102: 43.5 | M102: =ABS(E102-F102) -> 530.1666667 | N102: 265.0833333 | O102: 142.45 | P102: 46.8 | Q102: 37.71428571
B103: 49 | C103: 722 | D103: 1168 | E103: 710 | F103: 528.3333333 | G103: 846 | H103: 1036.6 | I103: 1149.833333 | J103: 1189.428571 | K103: 446 | L103: 458 | M103: 181.6666667 | N103: =ABS(F103-G103) -> 317.6666667 | O103: 190.6 | P103: 113.2333333 | Q103: 39.5952381
B104: 50 | C104: 522 | D104: 722 | E104: 945 | F104: 714 | G104: 576.75 | H104: 821.2 | I104: 984.1666667 | J104: 1088.714286 | K104: 200 | L104: 223 | M104: 231 | N104: 137.25 | O104: 244.45 | P104: 162.9666667 | Q104: 104.547619
B105: 51 | C105: 522 | D105: 522 | E105: 622 | F105: 804 | G105: 666 | H105: 565.8 | I105: 771.3333333 | J105: 918.1428571 | K105: 0 | L105: 100 | M105: 182 | N105: 138 | O105: 100.2 | P105: 205.5333333 | Q105: 146.8095238
B106: 52 | C106: 522 | D106: 522 | E106: 522 | F106: 588.6666667 | G106: 733.5 | H106: 637.2 | I106: 558.5 | J106: 735.7142857 | K106: 0 | L106: 0 | M106: 66.66666667 | N106: 144.8333333 | O106: 96.3 | P106: 78.7 | Q106: 177.2142857
C107: - | D107: 522 | E107: 522 | F107: 522 | G107: 572 | H107: 691.2 | I107: 618 | J107: 553.2857143 | K107: - | L107: 0 | M107: 0 | N107: 50 | O107: 119.2 | P107: 73.2 | Q107: 64.71428571
C108: - | D108: - | E108: =AVERAGE(C106:C107) -> 522 | F108: 522 | G108: 522 | H108: 572 | I108: 691.2 | J108: 618 | K108: - | L108: - | M108: 0 | N108: 0 | O108: 50 | P108: 119.2 | Q108: 73.2
K110: =MODE(K4:K108) -> 0 | L110: =MODE(L5:L108) -> 0 | M110: =MODE(M6:M108) -> 0 | N110: =MODE(N7:N108) -> 200.3333333 | O110: =MODE(O8:O108) -> 84.95 | P110: 0 | Q110: =MODE(Q10:Q108) -> 45.07142857 | R110: módusz
K111: =MEDIAN(K4:K108) -> 501 | L111: =MEDIAN(L5:L108) -> 250.5 | M111: =MEDIAN(M6:M108) -> 128.6666667 | N111: =MEDIAN(N7:N108) -> 107.875 | O111: =MEDIAN(O8:O108) -> 82.65 | P111: =MEDIAN(P9:P108) -> 74.03333333 | Q111: =MEDIAN(Q10:Q108) -> 64.83333333 | R111: medián
K112: =STDEV(K4:K108) -> 425.0340847 | L112: =STDEV(L5:L108) -> 212.5170424 | M112: =STDEV(M6:M108) -> 122.293397 | N112: =STDEV(N7:N108) -> 97.71651374 | O112: =STDEV(O8:O108) -> 79.0647113 | P112: =STDEV(P9:P108) -> 65.7144215 | Q112: =STDEV(Q10:Q108) -> 55.7074528 | R112: szórás
K113: =MIN(K4:K108) -> 0 | L113: =MIN(L5:L108) -> 0 | M113: =MIN(M6:M108) -> 0 | N113: =MIN(N7:N108) -> 0 | O113: =MIN(O8:O108) -> 0.45 | P113: =MIN(P9:P108) -> 1.6 | Q113: =MIN(Q10:Q108) -> 1.19047619 | R113: min
K114: =MAX(K4:K108) -> 1634 | L114: =MAX(L5:L108) -> 817 | M114: =MAX(M6:M108) -> 530.1666667 | N114: =MAX(N7:N108) -> 367.3333333 | O114: =MAX(O8:O108) -> 316.2 | P114: =MAX(P9:P108) -> 285.5333333 | Q114: =MAX(Q10:Q108) -> 247.5238095 | R114: max
K115: =AVERAGE(K4:K108) -> 580.2912621 | L115: =AVERAGE(L5:L108) -> 290.1456311 | M115: =AVERAGE(M6:M108) -> 157.2880259 | N115: =AVERAGE(N7:N108) -> 129.9003268 | O115: =AVERAGE(O8:O108) -> 99.15148515 | P115: =AVERAGE(P9:P108) -> 90.425 | Q115: =AVERAGE(Q10:Q108) -> 79.05084175 | R115: átlag

Sheet sorszámozás_alternatív
B1: módusz | C1: medián | D1: szórás | E1: min | F1: max | G1: átlag
A2: ma1 | B2: 0 | C2: 501 | D2: 425.0340847 | E2: 0 | F2: 1634 | G2: 580.2912621
A3: ma2 | B3: 0 | C3: 250.5 | D3: 212.5170424 | E3: 0 | F3: 817 | G3: 290.1456311
A4: ma3 | B4: 0 | C4: 128.6666667 | D4: 122.293397 | E4: 0 | F4: 530.1666667 | G4: 157.2880259
A5: ma4 | B5: 200.3333333 | C5: 107.875 | D5: 97.71651374 | E5: 0 | F5: 367.3333333 | G5: 129.9003268
A6: ma5 | B6: 84.95 | C6: 82.65 | D6: 79.0647113 | E6: 0.45 | F6: 316.2 | G6: 99.15148515
A7: ma6 | B7: 0 | C7: 74.03333333 | D7: 65.7144215 | E7: 1.6 | F7: 285.5333333 | G7: 90.425
A8: ma7 | B8: 45.07142857 | C8: 64.83333333 | D8: 55.7074528 | E8: 1.19047619 | F8: 247.5238095 | G8: 79.05084175
B9: módusz | C9: medián | D9: szórás | E9: min | F9: max | G9: átlag
A10: irány | B10: 1 | C10: 1 | D10: 1 | E10: 1 | F10: 1 | G10: 1
A12: Rangsor | B12: módusz | C12: medián | D12: szórás | E12: min | F12: max | G12: átlag | H12: Y0 | I12: Naiv megoldás
A13: MA1 | B13: =RANK(B2,B$2:B$8,B$10) -> 1 | C13: 7 | D13: 7 | E13: 1 | F13: 7 | G13: 7 | H13: 1000 | I13: =SUM(B13:G13) -> 30 | N13: 0 | O13: 0 | P13: 0 | Q13: 200.3333333 | R13: 84.95 | S13: 90.425 | T13: 45.07142857 | U13: módusz
A14: MA2 | B14: 1 | C14: 6 | D14: 6 | E14: 1 | F14: 6 | G14: 6 | H14: 1000 | I14: =SUM(B14:G14) -> 26 | N14: 501 | O14: 250.5 | P14: 128.6666667 | Q14: 107.875 | R14: 82.65 | S14: 74.03333333 | T14: 64.83333333 | U14: medián
A15: MA3 | B15: 1 | C15: 5 | D15: 5 | E15: 1 | F15: 5 | G15: 5 | H15: 1000 | I15: 22 | N15: 425.0340847 | O15: 212.5170424 | P15: 122.293397 | Q15: 97.71651374 | R15: 79.0647113 | S15: 65.7144215 | T15: 55.7074528 | U15: szórás
A16: MA4 | B16: 7 | C16: 4 | D16: 4 | E16: 1 | F16: 4 | G16: 4 | H16: 1000 | I16: 24 | N16: 0 | O16: 0 | P16: 0 | Q16: 0 | R16: 0.45 | S16: 1.6 | T16: 1.19047619 | U16: min
A17: MA5 | B17: 6 | C17: 3 | D17: 3 | E17: 5 | F17: 3 | G17: 3 | H17: 1000 | I17: 23 | N17: 1634 | O17: 817 | P17: 530.1666667 | Q17: 367.3333333 | R17: 316.2 | S17: 285.5333333 | T17: 247.5238095 | U17: max
A18: MA6 | B18: 1 | C18: 2 | D18: 2 | E18: 7 | F18: 2 | G18: 2 | H18: 1000 | I18: 16 | N18: 580.2912621 | O18: 290.1456311 | P18: 157.2880259 | Q18: 129.9003268 | R18: 99.15148515 | S18: 90.425 | T18: 79.05084175 | U18: átlag
A19: MA7 | B19: 5 | C19: 1 | D19: 1 | E19: 6 | F19: 1 | G19: 1 | H19: 1000 | I19: 15
B22: módusz | C22: medián | D22: szórás | E22: min | F22: max | G22: átlag
A23: ma1 | B23: 0 | C23: 501 | D23: 425.0340847 | E23: 0 | F23: 1634 | G23: 580.2912621
A24: ma2 | B24: 0 | C24: 250.5 | D24: 212.5170424 | E24: 0 | F24: 817 | G24: 290.1456311
A25: ma3 | B25: 0 | C25: 128.6666667 | D25: 122.293397 | E25: 0 | F25: 530.1666667 | G25: 157.2880259
A26: ma4 | B26: 200.3333333 | C26: 107.875 | D26: 97.71651374 | E26: 0 | F26: 367.3333333 | G26: 129.9003268
A27: ma5 | B27: 84.95 | C27: 82.65 | D27: 79.0647113 | E27: 0.45 | F27: 316.2 | G27: 99.15148515
A28: ma6 | B28: 0 | C28: 74.03333333 | D28: 65.7144215 | E28: 1.6 | F28: 285.5333333 | G28: 90.425
A29: ma7 | B29: 45.07142857 | C29: 64.83333333 | D29: 55.7074528 | E29: 1.19047619 | F29: 247.5238095 | G29: 79.05084175
B30: módusz | C30: medián | D30: szórás | E30: min | F30: max | G30: átlag
A31: irány | B31: 1 | C31: 1 | D31: 1 | E31: 1 | F31: 1 | G31: 1

Sheet COCO_elemzés_alternatív
A5: Azonosító: | B5: 8998654 | C5: Objektumok: | D5: 7 | E5: Attribútumok: | F5: 6 | G5: Lépcsôk: | H5: 7 | I5: Eltolás: | J5: 0 | K5: Leírás: | L5: COCO Y0: 8998654 | R5: Azonosító: | S5: 1313967 | T5: Objektumok: | U5: 7 | V5: Attribútumok: | W5: 6 | X5: Lépcsôk: | Y5: 7 | Z5: Eltolás: | AA5: 0 | AB5: Leírás: | AC5: COCO Y0: 1313967
A7: Rangsor | B7: =sorszámozás_alternatív!B12 -> módusz | C7: =sorszámozás_alternatív!C12 -> medián | D7: =sorszámozás_alternatív!D12 -> szórás | E7: =sorszámozás_alternatív!E12 -> min | F7: =sorszámozás_alternatív!F12 -> max | G7: =sorszámozás_alternatív!G12 -> átlag | H7: =sorszámozás_alternatív!H12 -> Y0 | J7: inverz | K7: inverz | L7: inverz | M7: inverz | N7: inverz | O7: inverz | P7: Y0 | R7: Rangsor | S7: =B7 -> módusz | T7: =C7 -> medián | U7: szórás | V7: min | W7: max | X7: átlag | Y7: Y0
A8: =sorszámozás_alternatív!A13 -> MA1 | B8: 1 | C8: 7 | D8: 7 | E8: 1 | F8: 7 | G8: 7 | H8: 1000 | J8: =8-B8 -> 7 | K8: =8-C8 -> 1 | L8: =8-D8 -> 1 | M8: 7 | N8: 1 | O8: 1 | P8: 1000 | R8: =A8 -> MA1 | S8: 7 | T8: 1 | U8: 1 | V8: 7 | W8: 1 | X8: 1 | Y8: 1000 | Z8: <-- stróman kizárása
A9: =sorszámozás_alternatív!A14 -> MA2 | B9: 1 | C9: 6 | D9: 6 | E9: 1 | F9: 6 | G9: 6 | H9: 1000 | J9: 7 | K9: 2 | L9: 2 | M9: 7 | N9: 2 | O9: 2 | P9: 1000 | R9: =A9 -> MA2 | S9: 7 | T9: 2 | U9: 2 | V9: 7 | W9: 2 | X9: 2 | Y9: 1000
A10: =sorszámozás_alternatív!A15 -> MA3 | B10: 1 | C10: 5 | D10: 5 | E10: 1 | F10: 5 | G10: 5 | H10: 1000 | J10: 7 | K10: 3 | L10: 3 | M10: 7 | N10: 3 | O10: 3 | P10: 1000 | R10: MA3 | S10: 7 | T10: 3 | U10: 3 | V10: 7 | W10: 3 | X10: 3 | Y10: 1000
A11: =sorszámozás_alternatív!A16 -> MA4 | B11: 7 | C11: 4 | D11: 4 | E11: 1 | F11: 4 | G11: 4 | H11: 1000 | J11: 1 | K11: 4 | L11: 4 | M11: =8-E11 -> 7 | N11: 4 | O11: 4 | P11: 1000 | R11: MA4 | S11: 1 | T11: 4 | U11: 4 | V11: 7 | W11: 4 | X11: 4 | Y11: 1000
A12: =sorszámozás_alternatív!A17 -> MA5 | B12: 6 | C12: 3 | D12: 3 | E12: 5 | F12: 3 | G12: 3 | H12: 1000 | J12: 2 | K12: 5 | L12: 5 | M12: 3 | N12: 5 | O12: 5 | P12: 1000 | R12: MA5 | S12: 2 | T12: 5 | U12: 5 | V12: 3 | W12: 5 | X12: 5 | Y12: 1000
A13: =sorszámozás_alternatív!A18 -> MA6 | B13: 1 | C13: 2 | D13: 2 | E13: 7 | F13: 2 | G13: 2 | H13: 1000 | J13: 7 | K13: 6 | L13: 6 | M13: 1 | N13: 6 | O13: 6 | P13: 1000 | R13: MA6 | S13: 7 | T13: 6 | U13: 6 | V13: 1 | W13: 6 | X13: 6 | Y13: 1000
A14: =sorszámozás_alternatív!A19 -> MA7 | B14: 5 | C14: 1 | D14: 1 | E14: 6 | F14: 1 | G14: 1 | H14: 1000 | J14: 3 | K14: 7 | L14: 7 | M14: 2 | N14: 7 | O14: 7 | P14: 1000 | R14: MA7 | S14: 3 | T14: 7 | U14: 7 | V14: 2 | W14: 7 | X14: 7 | Y14: 1000
A16: Lépcsôk(1) | B16: X(A1) | C16: X(A2) | D16: X(A3) | E16: X(A4) | F16: X(A5) | G16: X(A6) | R16: Lépcsôk(1) | S16: X(A1) | T16: X(A2) | U16: X(A3) | V16: X(A4) | W16: X(A5) | X16: X(A6)
A17: S1 | B17: (492+12)/(2)=252 | C17: (494+974)/(2)=734 | D17: (6+6)/(2)=6 | E17: (500+20)/(2)=260 | F17: (6+6)/(2)=6 | G17: (6+6)/(2)=6 | R17: S1 | S17: (12+988)/(2)=500 | T17: (982+990)/(2)=986 | U17: (6+6)/(2)=6 | V17: (20+996)/(2)=508 | W17: (6+6)/(2)=6 | X17: (6+6)/(2)=6
A18: S2 | B18: (491+11)/(2)=251 | C18: (493+973)/(2)=733 | D18: (5+5)/(2)=5 | E18: (499+19)/(2)=259 | F18: (5+5)/(2)=5 | G18: (5+5)/(2)=5 | R18: S2 | S18: (11+987)/(2)=499 | T18: (981+989)/(2)=985 | U18: (5+5)/(2)=5 | V18: (14+995)/(2)=504.5 | W18: (5+5)/(2)=5 | X18: (5+5)/(2)=5
A19: S3 | B19: (490+10)/(2)=250 | C19: (492+972)/(2)=732 | D19: (4+4)/(2)=4 | E19: (498+18)/(2)=258 | F19: (4+4)/(2)=4 | G19: (4+4)/(2)=4 | R19: S3 | S19: (10+5)/(2)=7.5 | T19: (980+988)/(2)=984 | U19: (4+4)/(2)=4 | V19: (5+5)/(2)=5 | W19: (4+4)/(2)=4 | X19: (4+4)/(2)=4
A20: S4 | B20: (489+9)/(2)=249 | C20: (491+971)/(2)=731 | D20: (3+3)/(2)=3 | E20: (497+17)/(2)=257 | F20: (3+3)/(2)=3 | G20: (3+3)/(2)=3 | R20: S4 | S20: (3+3)/(2)=3 | T20: (979+3)/(2)=491 | U20: (3+3)/(2)=3 | V20: (3+3)/(2)=3 | W20: (3+3)/(2)=3 | X20: (3+3)/(2)=3
A21: S5 | B21: (487+7)/(2)=247 | C21: (2+970)/(2)=486 | D21: (2+2)/(2)=2 | E21: (495+15)/(2)=255 | F21: (2+2)/(2)=2 | G21: (2+2)/(2)=2 | R21: S5 | S21: (2+2)/(2)=2 | T21: (978+2)/(2)=490 | U21: (2+2)/(2)=2 | V21: (2+2)/(2)=2 | W21: (2+2)/(2)=2 | X21: (2+2)/(2)=2
A22: S6 | B22: (1+1)/(2)=1 | C22: (1+969)/(2)=485 | D22: (1+1)/(2)=1 | E22: (1+1)/(2)=1 | F22: (1+1)/(2)=1 | G22: (1+1)/(2)=1 | R22: S6 | S22: (1+1)/(2)=1 | T22: (977+1)/(2)=489 | U22: (1+1)/(2)=1 | V22: (1+1)/(2)=1 | W22: (1+1)/(2)=1 | X22: (1+1)/(2)=1
A23: S7 | B23: (0+0)/(2)=0 | C23: (0+968)/(2)=484 | D23: (0+0)/(2)=0 | E23: (0+0)/(2)=0 | F23: (0+0)/(2)=0 | G23: (0+0)/(2)=0 | R23: S7 | S23: (0+0)/(2)=0 | T23: (976+0)/(2)=488 | U23: (0+0)/(2)=0 | V23: (0+0)/(2)=0 | W23: (0+0)/(2)=0 | X23: (0+0)/(2)=0
A25: Lépcsôk(2) | B25: X(A1) | C25: X(A2) | D25: X(A3) | E25: X(A4) | F25: X(A5) | G25: X(A6) | R25: Lépcsôk(2) | S25: X(A1) | T25: X(A2) | U25: X(A3) | V25: X(A4) | W25: X(A5) | X25: X(A6)
A26: S1 | B26: 252 | C26: 734 | D26: 6 | E26: 260 | F26: 6 | G26: 6 | R26: S1 | S26: 500 | T26: 986 | U26: 6 | V26: 508 | W26: 6 | X26: 6
A27: S2 | B27: 251 | C27: 733 | D27: 5 | E27: 259 | F27: 5 | G27: 5 | R27: S2 | S27: 499 | T27: 985 | U27: 5 | V27: 504.5 | W27: 5 | X27: 5
A28: S3 | B28: 250 | C28: 732 | D28: 4 | E28: 258 | F28: 4 | G28: 4 | R28: S3 | S28: 7.5 | T28: 984 | U28: 4 | V28: 5 | W28: 4 | X28: 4
A29: S4 | B29: 249 | C29: 731 | D29: 3 | E29: 257 | F29: 3 | G29: 3 | R29: S4 | S29: 3 | T29: 491 | U29: 3 | V29: 3 | W29: 3 | X29: 3
A30: S5 | B30: 247 | C30: 486 | D30: 2 | E30: 255 | F30: 2 | G30: 2 | R30: S5 | S30: 2 | T30: 490 | U30: 2 | V30: 2 | W30: 2 | X30: 2
A31: S6 | B31: 1 | C31: 485 | D31: 1 | E31: 1 | F31: 1 | G31: 1 | R31: S6 | S31: 1 | T31: 489 | U31: 1 | V31: 1 | W31: 1 | X31: 1
A32: S7 | B32: 0 | C32: 484 | D32: 0 | E32: 0 | F32: 0 | G32: 0 | R32: S7 | S32: 0 | T32: 488 | U32: 0 | V32: 0 | W32: 0 | X32: 0
A34: COCO:Y0 | B34: X(A1) | C34: X(A2) | D34: X(A3) | E34: X(A4) | F34: X(A5) | G34: X(A6) | H34: Becslés | I34: Tény+0 | J34: Delta | K34: Delta/Tény | R34: COCO:Y0 | S34: X(A1) | T34: X(A2) | U34: X(A3) | V34: X(A4) | W34: X(A5) | X34: X(A6) | Y34: Becslés | Z34: Tény+0 | AA34: Delta | AB34: Delta/Tény
A35: O1 | B35: 252 | C35: 484 | D35: 0 | E35: 260 | F35: 0 | G35: 0 | H35: 996 | I35: 1000 | J35: 4 | K35: 0.4 | R35: O1 | S35: 0 | T35: 986 | U35: 6 | V35: 0 | W35: 6 | X35: 6 | Y35: 1004 | Z35: 1000 | AA35: -4 | AB35: -0.4
A36: O2 | B36: 252 | C36: 485 | D36: 1 | E36: 260 | F36: 1 | G36: 1 | H36: 1000 | I36: 1000 | J36: 0 | K36: 0 | R36: O2 | S36: 0 | T36: 985 | U36: 5 | V36: 0 | W36: 5 | X36: 5 | Y36: 1000 | Z36: 1000 | AA36: 0 | AB36: 0
A37: O3 | B37: 252 | C37: 486 | D37: 2 | E37: 260 | F37: 2 | G37: 2 | H37: 1004 | I37: 1000 | J37: -4 | K37: -0.4 | R37: O3 | S37: 0 | T37: 984 | U37: 4 | V37: 0 | W37: 4 | X37: 4 | Y37: 996 | Z37: 1000 | AA37: 4 | AB37: 0.4
A38: O4 | B38: 0 | C38: 731 | D38: 3 | E38: 260 | F38: 3 | G38: 3 | H38: 1000 | I38: 1000 | J38: 0 | K38: 0 | R38: O4 | S38: 500 | T38: 491 | U38: 3 | V38: 0 | W38: 3 | X38: 3 | Y38: 1000 | Z38: 1000 | AA38: 0 | AB38: 0
A39: O5 | B39: 1 | C39: 732 | D39: 4 | E39: 255 | F39: 4 | G39: 4 | H39: 1000 | I39: 1000 | J39: 0 | K39: 0 | R39: O5 | S39: 499 | T39: 490 | U39: 2 | V39: 5 | W39: 2 | X39: 2 | Y39: 1000 | Z39: 1000 | AA39: 0 | AB39: 0
A40: O6 | B40: 252 | C40: 733 | D40: 5 | E40: 0 | F40: 5 | G40: 5 | H40: 1000 | I40: 1000 | J40: 0 | K40: 0 | R40: O6 | S40: 0 | T40: 489 | U40: 1 | V40: 508 | W40: 1 | X40: 1 | Y40: 1000 | Z40: 1000 | AA40: 0 | AB40: 0
A41: O7 | B41: 247 | C41: 734 | D41: 6 | E41: 1 | F41: 6 | G41: 6 | H41: 1000 | I41: 1000 | J41: 0 | K41: 0 | R41: O7 | S41: 7.5 | T41: 488 | U41: 0 | V41: 504.5 | W41: 0 | X41: 0 | Y41: 1000 | Z41: 1000 | AA41: 0 | AB41: 0
A43: S1 összeg: | B43: 1264 | R43: S1 összeg: | S43: 2012
A44: S7 összeg: | B44: 484 | R44: S7 összeg: | S44: 488
A45: Becslés összeg: | B45: 7000 | R45: Becslés összeg: | S45: 7000
A46: Tény összeg: | B46: 7000 | R46: Tény összeg: | S46: 7000
A47: Tény-becslés eltérés: | B47: 0 | R47: Tény-becslés eltérés: | S47: 0
A48: Tény négyzetösszeg: | R48: Tény négyzetösszeg:
A49: Becslés négyzetösszeg: | R49: Becslés négyzetösszeg:
A50: Négyzetösszeg hiba: | B50: 0 | R50: Négyzetösszeg hiba: | S50: 0
A52: Open url | R52: Open url
A54: Maximális memória használat: 1.34 Mb | R54: Maximális memória használat: 1.34 Mb
A55: A futtatás idôtartama: 0.02 mp (0 p) | R55: A futtatás idôtartama: 0.03 mp (0 p)

Sheet COCO_eredmény_alternatív
A5: Azonosító: | B5: 9433090 | C5: Objektumok: | D5: 6 | E5: Attribútumok: | F5: 6 | G5: Lépcsôk: | H5: 7 | I5: Eltolás: | J5: 0 | K5: Leírás: | L5: COCO Y0: 9433090 | N5: Azonosító: | O5: 9404910 | P5: Objektumok: | Q5: 5 | R5: Attribútumok: | S5: 6 | T5: Lépcsôk: | U5: 7 | V5: Eltolás: | W5: 0 | X5: Leírás: | Y5: COCO Y0: 9404910
O6: Átlag? | T6: Átlag!
A7: Rangsor | B7: =COCO_elemzés_alternatív!B7 -> módusz | C7: =COCO_elemzés_alternatív!C7 -> medián | D7: =COCO_elemzés_alternatív!D7 -> szórás | E7: =COCO_elemzés_alternatív!E7 -> min | F7: =COCO_elemzés_alternatív!F7 -> max | G7: =COCO_elemzés_alternatív!G7 -> átlag | H7: =COCO_elemzés_alternatív!H7 -> Y0 | N7: Rangsor | O7: X(A1) | P7: X(A2) | Q7: X(A3) | R7: X(A4) | S7: X(A5) | T7: X(A6) | U7: Y(A7) | Y7: =Q7 -> X(A3) | Z7: =S7 -> X(A5) | AA7: =T7 -> X(A6)
A8: =COCO_elemzés_alternatív!A9 -> MA2 | B8: 1 | C8: 6 | D8: 6 | E8: 1 | F8: 6 | G8: 6 | H8: 1000 | I8: <-- stróman kizárása | N8: =A9 -> MA3 | O8: 1 | P8: 5 | Q8: 5 | R8: 1 | S8: 5 | T8: 5 | U8: 1000 | X8: =N8 -> MA3 | Y8: 5 | Z8: 5 | AA8: 5 | AB8: 1000
A9: =COCO_elemzés_alternatív!A10 -> MA3 | B9: 1 | C9: 5 | D9: 5 | E9: 1 | F9: 5 | G9: 5 | H9: 1000 | N9: =A10 -> MA4 | O9: 7 | P9: 4 | Q9: 4 | R9: 1 | S9: 4 | T9: 4 | U9: 1000 | X9: MA4 | Y9: 4 | Z9: 4 | AA9: 4 | AB9: 1000
A10: =COCO_elemzés_alternatív!A11 -> MA4 | B10: 7 | C10: 4 | D10: 4 | E10: 1 | F10: 4 | G10: 4 | H10: 1000 | N10: MA5 | O10: 6 | P10: 3 | Q10: 3 | R10: 5 | S10: 3 | T10: 3 | U10: 1000 | X10: MA5 | Y10: 3 | Z10: 3 | AA10: 3 | AB10: 1000
A11: =COCO_elemzés_alternatív!A12 -> MA5 | B11: 6 | C11: 3 | D11: 3 | E11: 5 | F11: 3 | G11: 3 | H11: 1000 | N11: MA6 | O11: 1 | P11: 2 | Q11: 2 | R11: 7 | S11: 2 | T11: 2 | U11: 1000 | X11: MA6 | Y11: 2 | Z11: 2 | AA11: 2 | AB11: 1000
A12: =COCO_elemzés_alternatív!A13 -> MA6 | B12: 1 | C12: 2 | D12: 2 | E12: 7 | F12: 2 | G12: 2 | H12: 1000 | N12: MA7 | O12: 5 | P12: 1 | Q12: 1 | R12: 6 | S12: 1 | T12: 1 | U12: 1000 | X12: =N12 -> MA7 | Y12: 1 | Z12: 1 | AA12: 1 | AB12: 1000 | AC12: <--győztes
A13: =COCO_elemzés_alternatív!A14 -> MA7 | B13: 5 | C13: 1 | D13: 1 | E13: 6 | F13: 1 | G13: 1 | H13: 1000
N14: Lépcsôk(1) | O14: X(A1) | P14: X(A2) | Q14: X(A3) | R14: X(A4) | S14: X(A5) | T14: X(A6)
A15: Lépcsôk(1) | B15: X(A1) | C15: X(A2) | D15: X(A3) | E15: X(A4) | F15: X(A5) | G15: X(A6) | N15: S1 | O15: (0+7)/(1)=7 | P15: (0+979)/(1)=979 | Q15: (0+6)/(1)=6 | R15: (0+15)/(1)=15 | S15: (0+6)/(1)=6 | T15: (0+6)/(1)=6
A16: S1 | B16: (492+8)/(2)=250 | C16: (494+978)/(2)=736 | D16: (6+6)/(2)=6 | E16: (500+16)/(2)=258 | F16: (6+6)/(2)=6 | G16: (6+6)/(2)=6 | N16: S2 | O16: (0+6)/(1)=6 | P16: (0+978)/(1)=978 | Q16: (0+5)/(1)=5 | R16: (0+14)/(1)=14 | S16: (0+5)/(1)=5 | T16: (0+5)/(1)=5
A17: S2 | B17: (491+7)/(2)=249 | C17: (493+977)/(2)=735 | D17: (5+5)/(2)=5 | E17: (499+15)/(2)=257 | F17: (5+5)/(2)=5 | G17: (5+5)/(2)=5 | N17: S3 | O17: (0+5)/(1)=5 | P17: (0+977)/(1)=977 | Q17: (0+4)/(1)=4 | R17: (0+13)/(1)=13 | S17: (0+4)/(1)=4 | T17: (0+4)/(1)=4
A18: S3 | B18: (490+6)/(2)=248 | C18: (492+976)/(2)=734 | D18: (4+4)/(2)=4 | E18: (498+14)/(2)=256 | F18: (4+4)/(2)=4 | G18: (4+4)/(2)=4 | N18: S4 | O18: (0+4)/(1)=4 | P18: (0+976)/(1)=976 | Q18: (0+3)/(1)=3 | R18: (0+12)/(1)=12 | S18: (0+3)/(1)=3 | T18: (0+3)/(1)=3
A19: S4 | B19: (489+5)/(2)=247 | C19: (491+975)/(2)=733 | D19: (3+3)/(2)=3 | E19: (497+13)/(2)=255 | F19: (3+3)/(2)=3 | G19: (3+3)/(2)=3 | N19: S5 | O19: (0+2)/(1)=2 | P19: (0+972)/(1)=972 | Q19: (0+2)/(1)=2 | R19: (0+10)/(1)=10 | S19: (0+2)/(1)=2 | T19: (0+2)/(1)=2
A20: S5 | B20: (487+3)/(2)=245 | C20: (2+974)/(2)=488 | D20: (2+2)/(2)=2 | E20: (495+11)/(2)=253 | F20: (2+2)/(2)=2 | G20: (2+2)/(2)=2 | N20: S6 | O20: (0+1)/(1)=1 | P20: (0+1)/(1)=1 | Q20: (0+1)/(1)=1 | R20: (0+1)/(1)=1 | S20: (0+1)/(1)=1 | T20: (0+1)/(1)=1
A21: S6 | B21: (1+1)/(2)=1 | C21: (1+973)/(2)=487 | D21: (1+1)/(2)=1 | E21: (1+1)/(2)=1 | F21: (1+1)/(2)=1 | G21: (1+1)/(2)=1 | N21: S7 | O21: (0+0)/(1)=0 | P21: (0+0)/(1)=0 | Q21: (0+0)/(1)=0 | R21: (0+0)/(1)=0 | S21: (0+0)/(1)=0 | T21: (0+0)/(1)=0
A22: S7 | B22: (0+0)/(2)=0 | C22: (0+0)/(2)=0 | D22: (0+0)/(2)=0 | E22: (0+0)/(2)=0 | F22: (0+0)/(2)=0 | G22: (0+0)/(2)=0
N23: Lépcsôk(2) | O23: X(A1) | P23: X(A2) | Q23: X(A3) | R23: X(A4) | S23: X(A5) | T23: X(A6)
A24: Lépcsôk(2) | B24: X(A1) | C24: X(A2) | D24: X(A3) | E24: X(A4) | F24: X(A5) | G24: X(A6) | N24: S1 | O24: 7 | P24: 979 | Q24: 6 | R24: 15 | S24: 6 | T24: 6
A25: S1 | B25: 250 | C25: 736 | D25: 6 | E25: 258 | F25: 6 | G25: 6 | N25: S2 | O25: 6 | P25: 978 | Q25: 5 | R25: 14 | S25: 5 | T25: 5
A26: S2 | B26: 249 | C26: 735 | D26: 5 | E26: 257 | F26: 5 | G26: 5 | N26: S3 | O26: 5 | P26: 977 | Q26: 4 | R26: 13 | S26: 4 | T26: 4
A27: S3 | B27: 248 | C27: 734 | D27: 4 | E27: 256 | F27: 4 | G27: 4 | N27: S4 | O27: 4 | P27: 976 | Q27: 3 | R27: 12 | S27: 3 | T27: 3
A28: S4 | B28: 247 | C28: 733 | D28: 3 | E28: 255 | F28: 3 | G28: 3 | N28: S5 | O28: 2 | P28: 972 | Q28: 2 | R28: 10 | S28: 2 | T28: 2
A29: S5 | B29: 245 | C29: 488 | D29: 2 | E29: 253 | F29: 2 | G29: 2 | N29: S6 | O29: 1 | P29: 1 | Q29: 1 | R29: 1 | S29: 1 | T29: 1
A30: S6 | B30: 1 | C30: 487 | D30: 1 | E30: 1 | F30: 1 | G30: 1 | N30: S7 | O30: 0 | P30: 0 | Q30: 0 | R30: 0 | S30: 0 | T30: 0
A31: S7 | B31: 0 | C31: 0 | D31: 0 | E31: 0 | F31: 0 | G31: 0
N32: COCO:Y0 | O32: X(A1) | P32: X(A2) | Q32: X(A3) | R32: X(A4) | S32: X(A5) | T32: X(A6) | U32: Becslés | V32: Tény+0 | W32: Delta | X32: Delta/Tény
A33: COCO:Y0 | B33: X(A1) | C33: X(A2) | D33: X(A3) | E33: X(A4) | F33: X(A5) | G33: X(A6) | H33: Becslés | I33: Tény+0 | J33: Delta | K33: Delta/Tény | N33: O1 | O33: 7 | P33: 972 | Q33: 2 | R33: 15 | S33: 2 | T33: 2 | U33: 1000 | V33: 1000 | W33: 0 | X33: 0
A34: O1 | B34: 250 | C34: 487 | D34: 1 | E34: 258 | F34: 1 | G34: 1 | H34: 998 | I34: 1000 | J34: 2 | K34: 0.2 | N34: O2 | O34: 0 | P34: 976 | Q34: 3 | R34: 15 | S34: 3 | T34: 3 | U34: 1000 | V34: 1000 | W34: 0 | X34: 0
A35: O2 | B35: 250 | C35: 488 | D35: 2 | E35: 258 | F35: 2 | G35: 2 | H35: 1002 | I35: 1000 | J35: -2 | K35: -0.2 | N35: O3 | O35: 1 | P35: 977 | Q35: 4 | R35: 10 | S35: 4 | T35: 4 | U35: 1000 | V35: 1000 | W35: 0 | X35: 0
A36: O3 | B36: 0 | C36: 733 | D36: 3 | E36: 258 | F36: 3 | G36: 3 | H36: 1000 | I36: 1000 | J36: 0 | K36: 0 | N36: O4 | O36: 7 | P36: 978 | Q36: 5 | R36: 0 | S36: 5 | T36: 5 | U36: 1000 | V36: 1000 | W36: 0 | X36: 0
A37: O4 | B37: 1 | C37: 734 | D37: 4 | E37: 253 | F37: 4 | G37: 4 | H37: 1000 | I37: 1000 | J37: 0 | K37: 0 | N37: O5 | O37: 2 | P37: 979 | Q37: 6 | R37: 1 | S37: 6 | T37: 6 | U37: 1000 | V37: 1000 | W37: 0 | X37: 0
A38: O5 | B38: 250 | C38: 735 | D38: 5 | E38: 0 | F38: 5 | G38: 5 | H38: 1000 | I38: 1000 | J38: 0 | K38: 0
A39: O6 | B39: 245 | C39: 736 | D39: 6 | E39: 1 | F39: 6 | G39: 6 | H39: 1000 | I39: 1000 | J39: 0 | K39: 0 | N39: S1 összeg: | O39: 1019
N40: S7 összeg: | O40: 0
A41: S1 összeg: | B41: 1262 | N41: Becslés összeg: | O41: 5000
A42: S7 összeg: | B42: 0 | N42: Tény összeg: | O42: 5000
A43: Becslés összeg: | B43: 6000 | N43: Tény-becslés eltérés: | O43: 0
A44: Tény összeg: | B44: 6000 | N44: Tény négyzetösszeg:
A45: Tény-becslés eltérés: | B45: 0 | N45: Becslés négyzetösszeg:
A46: Tény négyzetösszeg: | N46: Négyzetösszeg hiba: | O46: 0
A47: Becslés négyzetösszeg:
A48: Négyzetösszeg hiba: | B48: 0 | N48: Open url
A50: Open url | N50: Maximális memória használat: 1.34 Mb
N51: A futtatás idôtartama: 0.02 mp (0 p)
A52: Maximális memória használat: 1.34 Mb
A53: A futtatás idôtartama: 0.05 mp (0 p)
